Workbook

Sheet Introduction
B2: State guideline: Flood evacuation route improvements - Supporting tool
B3: This tool supports Stage one: option feasibility assessment and Stage two: multi-criteria assessment of the State guideline: Flood evacuation route improvements (the guideline). The tool is not intended to be used independently to assess flood evacuation route improvements and is to be used in conjunction with the assessment process in the guideline. Disclaimer This Support Tool is provided to assist users in undertaking the options assessment process outlined in the State guideline: Flood evacuation route improvements (guideline). The guideline is intended to support users in identifying ‘fair and reasonable’ improvements to flood evacuation routes and improving evacuation. Neither the process nor information in this Support Tool is intended to be exhaustive. Neither TMR nor QRA make any representations or warranties about the accuracy, reliability, completeness or suitability for any particular purpose of the process or information contained in the guideline or this Support Tool. Neither TMR nor QRA will be liable for any loss or damage suffered by users, caused by any error, inaccuracy, incompleteness or other similar defect in this Support Tool or in reliance of any of its contents. Use of this Support Tool or compliance with the guideline is not evidence that TMR or QRA will endorse any development, contribute to any development, commit to its own development or grant, or consider granting, funding in any capacity to any user of this guideline or other entity.
B8: This Smarter Solutions Multi-Criteria Assessment (MCA) Tool provides a clear line-of-sight across the Department of Transport and Main Roads' (TMR) infrastructure planning and investment process, providing assurance that the Network Optimisation Framework is embedded in our decision-making. The MCA Tool has been designed for use in selecting a preferred option, or ranking alternate options, where network optimisation solutions (NOS) are included within assessment processes. The MCA Tool applies a standardised consideration of NOS relative to large capital infrastructure, ensuring TMR is delivering the right infrastructure at the right time and aligning with government policy direction for investment as outlined in the Queensland Government's State Infrastructure Plan.

Sheet Identify potential options
B2: Identify potential options
B3: Enter the long list of potential options for assessment in the table below.
C6: Name
B7: Option 1
B8: Option 2
B9: Option 3
B10: Option 4
B11: Option 5
B12: Option 6
B13: Option 7
B14: Option 8
B15: Option 9
B16: Option 10
B17: Option 11
B18: Option 12
B19: Option 13
B20: Option 14
B21: Option 15
B22: Option 16
B23: Option 17
B24: Option 18
B25: Option 19
B26: Option 20

Sheet Option feasibility assessment
B2: Stage one: option feasibility assessment For each option select the response to the feasibility indicators and the high level cost estimate, before selecting the outcome. Where 'Redefine option' is selected as the outcome, return to the Identify Potential Options worksheet to redefine the option. Following re-assessment complete this worksheet for the redefined option. Where 'Collect further information required' is selected as the outcome, collect further information to re-assess the option. Following this, complete this worksheet with the additional information.
T4: Yes/No | U4: Lookup | V4: Unique Category | W4: Category Lookup
B5: Options | C5: Feasibility Indicators | H5: High level cost estimate | I5: Outcome | J5: Action
C6: The option is likely to reduce risk to life for the affected population | D6: The option is unlikely to cause significant environmental or cultural heritage impacts that are unable to be mitigated | E6: The community supports the option and is likely to respond | F6: The option is unlikely to cause adverse significant flood impacts that cannot be mitigated | G6: The option is physically and technically feasible when considering engineering, constructability or legal constraints | L6: Scoring | M6: Indicator met | N6: More information | O6: Indicator not met | U6: =SUM(V7:V37) -> 0
B7: =IF(INDEX('Identify potential options'!$C$7:$C$26,ROWS($B$7:$B7))=0,"",(INDEX('Identify potential options'!$C$7:$C$26,ROWS($B$7:$B7)))) ->  | C7: Select | D7: Select | E7: Select | F7: Select | G7: Select | H7: Select | I7: Select | J7: =IF(I7="Redefine option","Return to identify potential options and redefine option before re-assessing",IF(I7="Collect further information","Collect additional information, re-assess",IF(I7="Progress to MCA","Shortlist for stage two: MCA",IF(I7="Eliminate option","Eliminate, proposed option is not feasible","")))) ->  | M7: =COUNTIF($C7:$H7,$M$6)/COUNTA($C$6:$H$6) -> 0 | N7: =COUNTIF($C7:$H7,$N$6)/COUNTA($C$6:$H$6) -> 0 | O7: =COUNTIF($C7:$H7,$O$6)/COUNTA($C$6:$H$6) -> 0 | S7: =IF(I7="Progress to MCA",1,0) -> 0 | T7: =IF(S7=1,SUM($S$7:S7),"") ->  | U7: =IF(AND(T7=1,COUNTIFS($B$7:$B7,B7,$T$7:$T7,1)=1),1,0) -> 0 | V7: =IF(U7=1,SUM($U7:U$7),"") -> 
B8: =IF(INDEX('Identify potential options'!$C$7:$C$26,ROWS($B$7:$B8))=0,"",(INDEX('Identify potential options'!$C$7:$C$26,ROWS($B$7:$B8)))) ->  | C8: Select | D8: Select | E8: Select | F8: Select | G8: Select | H8: Select | I8: Select | J8: =IF(I8="Redefine option","Return to identify potential options and redefine option before re-assessing",IF(I8="Collect further information","Collect additional information, re-assess",IF(I8="Progress to MCA","Shortlist for stage two: MCA",IF(I8="Eliminate option","Eliminate, proposed option is not feasible","")))) ->  | M8: 0 | N8: 0 | O8: 0 | S8: 0 | T8: =IF(S8=1,SUM($S$7:S8),"") ->  | U8: =IF(AND(T8=1,COUNTIFS($B$7:$B8,B8,$T$7:$T8,1)=1),1,0) -> 0 | V8: =IF(U8=1,SUM($U$7:U8),"") -> 
B9: =IF(INDEX('Identify potential options'!$C$7:$C$26,ROWS($B$7:$B9))=0,"",(INDEX('Identify potential options'!$C$7:$C$26,ROWS($B$7:$B9)))) ->  | C9: Select | D9: Select | E9: Select | F9: Select | G9: Select | H9: Select | I9: Select | M9: 0 | N9: 0 | O9: 0 | S9: 0 | T9: =IF(S9=1,SUM($S$7:S9),"") ->  | U9: =IF(AND(T9=1,COUNTIFS($B$7:$B9,B9,$T$7:$T9,1)=1),1,0) -> 0 | V9: =IF(U9=1,SUM($U$7:U9),"") -> 
B10: =IF(INDEX('Identify potential options'!$C$7:$C$26,ROWS($B$7:$B10))=0,"",(INDEX('Identify potential options'!$C$7:$C$26,ROWS($B$7:$B10)))) ->  | C10: Select | D10: Select | E10: Select | F10: Select | G10: Select | H10: Select | I10: Select | M10: 0 | N10: 0 | O10: 0 | S10: 0 | T10: =IF(S10=1,SUM($S$7:S10),"") ->  | U10: =IF(AND(T10=1,COUNTIFS($B$7:$B10,B10,$T$7:$T10,1)=1),1,0) -> 0 | V10: =IF(U10=1,SUM($U$7:U10),"") -> 
B11: =IF(INDEX('Identify potential options'!$C$7:$C$26,ROWS($B$7:$B11))=0,"",(INDEX('Identify potential options'!$C$7:$C$26,ROWS($B$7:$B11)))) ->  | C11: Select | D11: Select | E11: Select | F11: Select | G11: Select | H11: Select | I11: Select | M11: 0 | N11: 0 | O11: 0 | S11: 0 | T11: =IF(S11=1,SUM($S$7:S11),"") ->  | U11: =IF(AND(T11=1,COUNTIFS($B$7:$B11,B11,$T$7:$T11,1)=1),1,0) -> 0 | V11: =IF(U11=1,SUM($U$7:U11),"") -> 
B12: =IF(INDEX('Identify potential options'!$C$7:$C$26,ROWS($B$7:$B12))=0,"",(INDEX('Identify potential options'!$C$7:$C$26,ROWS($B$7:$B12)))) ->  | C12: Select | D12: Select | E12: Select | F12: Select | G12: Select | H12: Select | I12: Select | M12: 0 | N12: 0 | O12: 0 | S12: 0 | T12: =IF(S12=1,SUM($S$7:S12),"") ->  | U12: =IF(AND(T12=1,COUNTIFS($B$7:$B12,B12,$T$7:$T12,1)=1),1,0) -> 0 | V12: =IF(U12=1,SUM($U$7:U12),"") -> 
B13: =IF(INDEX('Identify potential options'!$C$7:$C$26,ROWS($B$7:$B13))=0,"",(INDEX('Identify potential options'!$C$7:$C$26,ROWS($B$7:$B13)))) ->  | C13: Select | D13: Select | E13: Select | F13: Select | G13: Select | H13: Select | I13: Select | M13: 0 | N13: 0 | O13: 0 | S13: 0 | T13: =IF(S13=1,SUM($S$7:S13),"") ->  | U13: =IF(AND(T13=1,COUNTIFS($B$7:$B13,B13,$T$7:$T13,1)=1),1,0) -> 0 | V13: =IF(U13=1,SUM($U$7:U13),"") -> 
B14: =IF(INDEX('Identify potential options'!$C$7:$C$26,ROWS($B$7:$B14))=0,"",(INDEX('Identify potential options'!$C$7:$C$26,ROWS($B$7:$B14)))) ->  | C14: Select | D14: Select | E14: Select | F14: Select | G14: Select | H14: Select | I14: Select | M14: 0 | N14: 0 | O14: 0 | S14: 0 | T14: =IF(S14=1,SUM($S$7:S14),"") ->  | U14: =IF(AND(T14=1,COUNTIFS($B$7:$B14,B14,$T$7:$T14,1)=1),1,0) -> 0 | V14: =IF(U14=1,SUM($U$7:U14),"") -> 
B15: =IF(INDEX('Identify potential options'!$C$7:$C$26,ROWS($B$7:$B15))=0,"",(INDEX('Identify potential options'!$C$7:$C$26,ROWS($B$7:$B15)))) ->  | C15: Select | D15: Select | E15: Select | F15: Select | G15: Select | H15: Select | I15: Select | M15: 0 | N15: 0 | O15: 0 | S15: 0 | T15: =IF(S15=1,SUM($S$7:S15),"") ->  | U15: =IF(AND(T15=1,COUNTIFS($B$7:$B15,B15,$T$7:$T15,1)=1),1,0) -> 0 | V15: =IF(U15=1,SUM($U$7:U15),"") -> 
B16: =IF(INDEX('Identify potential options'!$C$7:$C$26,ROWS($B$7:$B16))=0,"",(INDEX('Identify potential options'!$C$7:$C$26,ROWS($B$7:$B16)))) ->  | C16: Select | D16: Select | E16: Select | F16: Select | G16: Select | H16: Select | I16: Select | M16: 0 | N16: 0 | O16: 0 | S16: 0 | T16: =IF(S16=1,SUM($S$7:S16),"") ->  | U16: =IF(AND(T16=1,COUNTIFS($B$7:$B16,B16,$T$7:$T16,1)=1),1,0) -> 0 | V16: =IF(U16=1,SUM($U$7:U16),"") -> 
B17: =IF(INDEX('Identify potential options'!$C$7:$C$26,ROWS($B$7:$B17))=0,"",(INDEX('Identify potential options'!$C$7:$C$26,ROWS($B$7:$B17)))) ->  | C17: Select | D17: Select | E17: Select | F17: Select | G17: Select | H17: Select | I17: Select | M17: 0 | N17: 0 | O17: 0 | S17: =IF(I17="Progress to MCA",1,0) -> 0 | T17: =IF(S17=1,SUM($S$7:S17),"") ->  | U17: =IF(AND(T17=1,COUNTIFS($B$7:$B17,B17,$T$7:$T17,1)=1),1,0) -> 0 | V17: =IF(U17=1,SUM($U$7:U17),"") -> 
B18: =IF(INDEX('Identify potential options'!$C$7:$C$26,ROWS($B$7:$B18))=0,"",(INDEX('Identify potential options'!$C$7:$C$26,ROWS($B$7:$B18)))) ->  | C18: Select | D18: Select | E18: Select | F18: Select | G18: Select | H18: Select | I18: Select | M18: 0 | N18: 0 | O18: 0 | S18: 0 | T18: =IF(S18=1,SUM($S$7:S18),"") ->  | U18: =IF(AND(T18=1,COUNTIFS($B$7:$B18,B18,$T$7:$T18,1)=1),1,0) -> 0 | V18: =IF(U18=1,SUM($U$7:U18),"") -> 
B19: =IF(INDEX('Identify potential options'!$C$7:$C$26,ROWS($B$7:$B19))=0,"",(INDEX('Identify potential options'!$C$7:$C$26,ROWS($B$7:$B19)))) ->  | C19: Select | D19: Select | E19: Select | F19: Select | G19: Select | H19: Select | I19: Select | M19: 0 | N19: 0 | O19: 0 | S19: 0 | T19: =IF(S19=1,SUM($S$7:S19),"") ->  | U19: =IF(AND(T19=1,COUNTIFS($B$7:$B19,B19,$T$7:$T19,1)=1),1,0) -> 0 | V19: =IF(U19=1,SUM($U$7:U19),"") -> 
B20: =IF(INDEX('Identify potential options'!$C$7:$C$26,ROWS($B$7:$B20))=0,"",(INDEX('Identify potential options'!$C$7:$C$26,ROWS($B$7:$B20)))) ->  | C20: Select | D20: Select | E20: Select | F20: Select | G20: Select | H20: Select | I20: Select | M20: 0 | N20: 0 | O20: 0 | S20: 0 | T20: =IF(S20=1,SUM($S$7:S20),"") ->  | U20: =IF(AND(T20=1,COUNTIFS($B$7:$B20,B20,$T$7:$T20,1)=1),1,0) -> 0 | V20: =IF(U20=1,SUM($U$7:U20),"") -> 
B21: =IF(INDEX('Identify potential options'!$C$7:$C$26,ROWS($B$7:$B21))=0,"",(INDEX('Identify potential options'!$C$7:$C$26,ROWS($B$7:$B21)))) ->  | C21: Select | D21: Select | E21: Select | F21: Select | G21: Select | H21: Select | I21: Select | M21: 0 | N21: 0 | O21: 0 | S21: 0 | T21: =IF(S21=1,SUM($S$7:S21),"") ->  | U21: =IF(AND(T21=1,COUNTIFS($B$7:$B21,B21,$T$7:$T21,1)=1),1,0) -> 0 | V21: =IF(U21=1,SUM($U$7:U21),"") -> 
B22: =IF(INDEX('Identify potential options'!$C$7:$C$26,ROWS($B$7:$B22))=0,"",(INDEX('Identify potential options'!$C$7:$C$26,ROWS($B$7:$B22)))) ->  | C22: Select | D22: Select | E22: Select | F22: Select | G22: Select | H22: Select | I22: Select | M22: 0 | N22: 0 | O22: 0 | S22: 0 | T22: =IF(S22=1,SUM($S$7:S22),"") ->  | U22: =IF(AND(T22=1,COUNTIFS($B$7:$B22,B22,$T$7:$T22,1)=1),1,0) -> 0 | V22: =IF(U22=1,SUM($U$7:U22),"") -> 
B23: =IF(INDEX('Identify potential options'!$C$7:$C$26,ROWS($B$7:$B23))=0,"",(INDEX('Identify potential options'!$C$7:$C$26,ROWS($B$7:$B23)))) ->  | C23: Select | D23: Select | E23: Select | F23: Select | G23: Select | H23: Select | I23: Select | M23: 0 | N23: 0 | O23: 0 | S23: 0 | T23: =IF(S23=1,SUM($S$7:S23),"") ->  | U23: =IF(AND(T23=1,COUNTIFS($B$7:$B23,B23,$T$7:$T23,1)=1),1,0) -> 0 | V23: =IF(U23=1,SUM($U$7:U23),"") -> 
B24: =IF(INDEX('Identify potential options'!$C$7:$C$26,ROWS($B$7:$B24))=0,"",(INDEX('Identify potential options'!$C$7:$C$26,ROWS($B$7:$B24)))) ->  | C24: Select | D24: Select | E24: Select | F24: Select | G24: Select | H24: Select | I24: Select | M24: 0 | N24: 0 | O24: 0 | S24: 0 | T24: =IF(S24=1,SUM($S$7:S24),"") ->  | U24: =IF(AND(T24=1,COUNTIFS($B$7:$B24,B24,$T$7:$T24,1)=1),1,0) -> 0 | V24: =IF(U24=1,SUM($U$7:U24),"") -> 
B25: =IF(INDEX('Identify potential options'!$C$7:$C$26,ROWS($B$7:$B25))=0,"",(INDEX('Identify potential options'!$C$7:$C$26,ROWS($B$7:$B25)))) ->  | C25: Select | D25: Select | E25: Select | F25: Select | G25: Select | H25: Select | I25: Select | M25: 0 | N25: 0 | O25: 0 | S25: 0 | T25: =IF(S25=1,SUM($S$7:S25),"") ->  | U25: =IF(AND(T25=1,COUNTIFS($B$7:$B25,B25,$T$7:$T25,1)=1),1,0) -> 0 | V25: =IF(U25=1,SUM($U$7:U25),"") -> 
B26: =IF(INDEX('Identify potential options'!$C$7:$C$26,ROWS($B$7:$B26))=0,"",(INDEX('Identify potential options'!$C$7:$C$26,ROWS($B$7:$B26)))) ->  | C26: Select | D26: Select | E26: Select | F26: Select | G26: Select | H26: Select | I26: Select | M26: 0 | N26: 0 | O26: 0 | S26: 0 | T26: =IF(S26=1,SUM($S$7:S26),"") ->  | U26: =IF(AND(T26=1,COUNTIFS($B$7:$B26,B26,$T$7:$T26,1)=1),1,0) -> 0 | V26: =IF(U26=1,SUM($U$7:U26),"") -> 

Sheet Multi-criteria assessment
D2: Stage two: multi-criteria assessment Short listed options for assessment in the stage two: multi-criteria assessment are shown in the table below.
A6: =MAX('Option feasibility assessment'!$T:$T) -> 0 | E6: Name
A7: =IF(ROWS($A$6:$A6)>$A$6,"",ROWS($A$6:$A6)) ->  | B7: =IF(A7="","",MATCH(A7,'Option feasibility assessment'!$T:$T,0)) ->  | D7: =IF($B7="","",IF(INDEX('Identify potential options'!$B:$B,$B7)=0,"",INDEX('Identify potential options'!$B:$B,$B7))) ->  | E7: =IF($B7="","",IF(INDEX('Option feasibility assessment'!$B:$B,$B7)=0,"",INDEX('Option feasibility assessment'!$B:$B,$B7))) -> 
A8: =IF(ROWS($A$6:$A7)>$A$6,"",ROWS($A$6:$A7)) ->  | B8: =IF(A8="","",MATCH(A8,'Option feasibility assessment'!$T:$T,0)) ->  | C8: =IF(ROWS($C$7:$C7)>$C$7,"",ROWS($C$7:$C7)) ->  | D8: =IF($B8="","",IF(INDEX('Identify potential options'!$B:$B,$B8)=0,"",INDEX('Identify potential options'!$B:$B,$B8))) ->  | E8: =IF($B8="","",IF(INDEX('Option feasibility assessment'!$B:$B,$B8)=0,"",INDEX('Option feasibility assessment'!$B:$B,$B8))) -> 
A9: =IF(ROWS($A$6:$A8)>$A$6,"",ROWS($A$6:$A8)) ->  | B9: =IF(A9="","",MATCH(A9,'Option feasibility assessment'!$T:$T,0)) ->  | C9: =IF(ROWS($C$7:$C8)>$C$7,"",ROWS($C$7:$C8)) ->  | D9: =IF($B9="","",IF(INDEX('Identify potential options'!$B:$B,$B9)=0,"",INDEX('Identify potential options'!$B:$B,$B9))) ->  | E9: =IF($B9="","",IF(INDEX('Option feasibility assessment'!$B:$B,$B9)=0,"",INDEX('Option feasibility assessment'!$B:$B,$B9))) -> 
A10: =IF(ROWS($A$6:$A9)>$A$6,"",ROWS($A$6:$A9)) ->  | B10: =IF(A10="","",MATCH(A10,'Option feasibility assessment'!$T:$T,0)) ->  | C10: =IF(ROWS($C$7:$C9)>$C$7,"",ROWS($C$7:$C9)) ->  | D10: =IF($B10="","",IF(INDEX('Identify potential options'!$B:$B,$B10)=0,"",INDEX('Identify potential options'!$B:$B,$B10))) ->  | E10: =IF($B10="","",IF(INDEX('Option feasibility assessment'!$B:$B,$B10)=0,"",INDEX('Option feasibility assessment'!$B:$B,$B10))) -> 
A11: =IF(ROWS($A$6:$A10)>$A$6,"",ROWS($A$6:$A10)) ->  | B11: =IF(A11="","",MATCH(A11,'Option feasibility assessment'!$T:$T,0)) ->  | C11: =IF(ROWS($C$7:$C10)>$C$7,"",ROWS($C$7:$C10)) ->  | D11: =IF($B11="","",IF(INDEX('Identify potential options'!$B:$B,$B11)=0,"",INDEX('Identify potential options'!$B:$B,$B11))) ->  | E11: =IF($B11="","",IF(INDEX('Option feasibility assessment'!$B:$B,$B11)=0,"",INDEX('Option feasibility assessment'!$B:$B,$B11))) -> 
A12: =IF(ROWS($A$6:$A11)>$A$6,"",ROWS($A$6:$A11)) ->  | B12: =IF(A12="","",MATCH(A12,'Option feasibility assessment'!$T:$T,0)) ->  | C12: =IF(ROWS($C$7:$C11)>$C$7,"",ROWS($C$7:$C11)) ->  | D12: =IF($B12="","",IF(INDEX('Identify potential options'!$B:$B,$B12)=0,"",INDEX('Identify potential options'!$B:$B,$B12))) ->  | E12: =IF($B12="","",IF(INDEX('Option feasibility assessment'!$B:$B,$B12)=0,"",INDEX('Option feasibility assessment'!$B:$B,$B12))) -> 
A13: =IF(ROWS($A$6:$A12)>$A$6,"",ROWS($A$6:$A12)) ->  | B13: =IF(A13="","",MATCH(A13,'Option feasibility assessment'!$T:$T,0)) ->  | C13: =IF(ROWS($C$7:$C12)>$C$7,"",ROWS($C$7:$C12)) ->  | D13: =IF($B13="","",IF(INDEX('Identify potential options'!$B:$B,$B13)=0,"",INDEX('Identify potential options'!$B:$B,$B13))) ->  | E13: =IF($B13="","",IF(INDEX('Option feasibility assessment'!$B:$B,$B13)=0,"",INDEX('Option feasibility assessment'!$B:$B,$B13))) -> 
A14: =IF(ROWS($A$6:$A13)>$A$6,"",ROWS($A$6:$A13)) ->  | B14: =IF(A14="","",MATCH(A14,'Option feasibility assessment'!$T:$T,0)) ->  | C14: =IF(ROWS($C$7:$C13)>$C$7,"",ROWS($C$7:$C13)) ->  | D14: =IF($B14="","",IF(INDEX('Identify potential options'!$B:$B,$B14)=0,"",INDEX('Identify potential options'!$B:$B,$B14))) ->  | E14: =IF($B14="","",IF(INDEX('Option feasibility assessment'!$B:$B,$B14)=0,"",INDEX('Option feasibility assessment'!$B:$B,$B14))) -> 
A15: =IF(ROWS($A$6:$A14)>$A$6,"",ROWS($A$6:$A14)) ->  | B15: =IF(A15="","",MATCH(A15,'Option feasibility assessment'!$T:$T,0)) ->  | C15: =IF(ROWS($C$7:$C14)>$C$7,"",ROWS($C$7:$C14)) ->  | D15: =IF($B15="","",IF(INDEX('Identify potential options'!$B:$B,$B15)=0,"",INDEX('Identify potential options'!$B:$B,$B15))) ->  | E15: =IF($B15="","",IF(INDEX('Option feasibility assessment'!$B:$B,$B15)=0,"",INDEX('Option feasibility assessment'!$B:$B,$B15))) -> 
A16: =IF(ROWS($A$6:$A15)>$A$6,"",ROWS($A$6:$A15)) ->  | B16: =IF(A16="","",MATCH(A16,'Option feasibility assessment'!$T:$T,0)) ->  | C16: =IF(ROWS($C$7:$C15)>$C$7,"",ROWS($C$7:$C15)) ->  | D16: =IF($B16="","",IF(INDEX('Identify potential options'!$B:$B,$B16)=0,"",INDEX('Identify potential options'!$B:$B,$B16))) ->  | E16: =IF($B16="","",IF(INDEX('Option feasibility assessment'!$B:$B,$B16)=0,"",INDEX('Option feasibility assessment'!$B:$B,$B16))) -> 
A17: =IF(ROWS($A$6:$A16)>$A$6,"",ROWS($A$6:$A16)) ->  | B17: =IF(A17="","",MATCH(A17,'Option feasibility assessment'!$T:$T,0)) ->  | C17: =IF(ROWS($C$7:$C16)>$C$7,"",ROWS($C$7:$C16)) ->  | D17: =IF($B17="","",IF(INDEX('Identify potential options'!$B:$B,$B17)=0,"",INDEX('Identify potential options'!$B:$B,$B17))) ->  | E17: =IF($B17="","",IF(INDEX('Option feasibility assessment'!$B:$B,$B17)=0,"",INDEX('Option feasibility assessment'!$B:$B,$B17))) -> 
A18: =IF(ROWS($A$6:$A17)>$A$6,"",ROWS($A$6:$A17)) ->  | B18: =IF(A18="","",MATCH(A18,'Option feasibility assessment'!$T:$T,0)) ->  | C18: =IF(ROWS($C$7:$C17)>$C$7,"",ROWS($C$7:$C17)) ->  | D18: =IF($B18="","",IF(INDEX('Identify potential options'!$B:$B,$B18)=0,"",INDEX('Identify potential options'!$B:$B,$B18))) ->  | E18: =IF($B18="","",IF(INDEX('Option feasibility assessment'!$B:$B,$B18)=0,"",INDEX('Option feasibility assessment'!$B:$B,$B18))) -> 
A19: =IF(ROWS($A$6:$A18)>$A$6,"",ROWS($A$6:$A18)) ->  | B19: =IF(A19="","",MATCH(A19,'Option feasibility assessment'!$T:$T,0)) ->  | C19: =IF(ROWS($C$7:$C18)>$C$7,"",ROWS($C$7:$C18)) ->  | D19: =IF($B19="","",IF(INDEX('Identify potential options'!$B:$B,$B19)=0,"",INDEX('Identify potential options'!$B:$B,$B19))) ->  | E19: =IF($B19="","",IF(INDEX('Option feasibility assessment'!$B:$B,$B19)=0,"",INDEX('Option feasibility assessment'!$B:$B,$B19))) -> 
A20: =IF(ROWS($A$6:$A19)>$A$6,"",ROWS($A$6:$A19)) ->  | B20: =IF(A20="","",MATCH(A20,'Option feasibility assessment'!$T:$T,0)) ->  | D20: =IF($B20="","",IF(INDEX('Identify potential options'!$B:$B,$B20)=0,"",INDEX('Identify potential options'!$B:$B,$B20))) ->  | E20: =IF($B20="","",IF(INDEX('Option feasibility assessment'!$B:$B,$B20)=0,"",INDEX('Option feasibility assessment'!$B:$B,$B20))) -> 
A21: =IF(ROWS($A$6:$A20)>$A$6,"",ROWS($A$6:$A20)) ->  | B21: =IF(A21="","",MATCH(A21,'Option feasibility assessment'!$T:$T,0)) ->  | D21: =IF($B21="","",IF(INDEX('Identify potential options'!$B:$B,$B21)=0,"",INDEX('Identify potential options'!$B:$B,$B21))) ->  | E21: =IF($B21="","",IF(INDEX('Option feasibility assessment'!$B:$B,$B21)=0,"",INDEX('Option feasibility assessment'!$B:$B,$B21))) -> 
A22: =IF(ROWS($A$6:$A21)>$A$6,"",ROWS($A$6:$A21)) ->  | B22: =IF(A22="","",MATCH(A22,'Option feasibility assessment'!$T:$T,0)) ->  | D22: =IF($B22="","",IF(INDEX('Identify potential options'!$B:$B,$B22)=0,"",INDEX('Identify potential options'!$B:$B,$B22))) ->  | E22: =IF($B22="","",IF(INDEX('Option feasibility assessment'!$B:$B,$B22)=0,"",INDEX('Option feasibility assessment'!$B:$B,$B22))) -> 
A23: =IF(ROWS($A$6:$A22)>$A$6,"",ROWS($A$6:$A22)) ->  | B23: =IF(A23="","",MATCH(A23,'Option feasibility assessment'!$T:$T,0)) ->  | D23: =IF($B23="","",IF(INDEX('Identify potential options'!$B:$B,$B23)=0,"",INDEX('Identify potential options'!$B:$B,$B23))) ->  | E23: =IF($B23="","",IF(INDEX('Option feasibility assessment'!$B:$B,$B23)=0,"",INDEX('Option feasibility assessment'!$B:$B,$B23))) -> 
A24: =IF(ROWS($A$6:$A23)>$A$6,"",ROWS($A$6:$A23)) ->  | B24: =IF(A24="","",MATCH(A24,'Option feasibility assessment'!$T:$T,0)) ->  | D24: =IF($B24="","",IF(INDEX('Identify potential options'!$B:$B,$B24)=0,"",INDEX('Identify potential options'!$B:$B,$B24))) ->  | E24: =IF($B24="","",IF(INDEX('Option feasibility assessment'!$B:$B,$B24)=0,"",INDEX('Option feasibility assessment'!$B:$B,$B24))) -> 
A25: =IF(ROWS($A$6:$A24)>$A$6,"",ROWS($A$6:$A24)) ->  | B25: =IF(A25="","",MATCH(A25,'Option feasibility assessment'!$T:$T,0)) ->  | D25: =IF($B25="","",IF(INDEX('Identify potential options'!$B:$B,$B25)=0,"",INDEX('Identify potential options'!$B:$B,$B25))) ->  | E25: =IF($B25="","",IF(INDEX('Option feasibility assessment'!$B:$B,$B25)=0,"",INDEX('Option feasibility assessment'!$B:$B,$B25))) -> 
A26: =IF(ROWS($A$6:$A25)>$A$6,"",ROWS($A$6:$A25)) ->  | B26: =IF(A26="","",MATCH(A26,'Option feasibility assessment'!$T:$T,0)) ->  | D26: =IF($B26="","",IF(INDEX('Identify potential options'!$B:$B,$B26)=0,"",INDEX('Identify potential options'!$B:$B,$B26))) ->  | E26: =IF($B26="","",IF(INDEX('Option feasibility assessment'!$B:$B,$B26)=0,"",INDEX('Option feasibility assessment'!$B:$B,$B26))) -> 

Sheet Targeted indicators
B2: Targeted indicators Short-listed options will be assessed against the targeted indicators for each criteria shown in the table below. Where a targeted indicator is not applicable for all options under assessment, ensure the assigned scores for the indicator are the same for all options. For example, if all options being assessed are non-infrastructure options. Assign a score of five to all options for the targeted indicator under flood behaviour/impacts criterion.
B6: Criteria | C6: Targeted indicator | D6: Use? | E6: Measure | F6: Scoring descriptors
F7: 1 (lowest) | G7: 2 | H7: 3 | I7: 4 | J7: 5 (highest) | L7: Yes/No | M7: Lookup | N7: Unique Category | O7: Category Lookup | Q7: Unique Indicator | R7: Indicator Lookup
N8: =SUM(N9:N20) -> 6 | Q8: =SUM(Q9:Q20) -> 12
B9: Safety | C9: Ability to evacuate to safer locations or evacuation centres | D9: Yes | E9: Descriptive | F9: Insufficient ability to evacuate | G9: Some ability to evacuate | H9: Sufficient ability to evacuate | I9: Substantial ability to evacuate | J9: Very substantial ability to evacuate | L9: =IF(D9="Yes",1,0) -> 1 | M9: =IF(L9=1,SUM($L$9:L9),"") -> 1 | N9: =IF(AND(L9=1,COUNTIFS($B$9:$B9,B9,$L$9:$L9,1)=1),1,0) -> 1 | O9: =IF(N9=1,SUM($N$9:N9),"") -> 1 | Q9: =IF(AND(L9=1,COUNTIFS($C$9:$C9,C9,$L$9:$L9,1)=1),1,0) -> 1 | R9: =IF(Q9=1,SUM($Q$9:Q9),"") -> 1
B10: Safety | C10: Population at risk | D10: Yes | E10: Descriptive | F10: Extreme risk | G10: High risk | H10: Medium risk | I10: Low risk | J10: Very low risk | L10: 1 | M10: =IF(L10=1,SUM($L$9:L10),"") -> 2 | N10: =IF(AND(L10=1,COUNTIFS($B$9:$B10,B10,$L$9:$L10,1)=1),1,0) -> 0 | O10: =IF(N10=1,SUM($N$9:N10),"") ->  | Q10: =IF(AND(L10=1,COUNTIFS($C$9:$C10,C10,$L$9:$L10,1)=1),1,0) -> 1 | R10: =IF(Q10=1,SUM($Q$9:Q10),"") -> 2
B11: Safety | C11: Isolation duration and risk | D11: Yes | E11: Descriptive | F11: Extreme risk to life due to isolation | G11: High risk to life due to isolation | H11: Medium risk to life due to isolation | I11: Low risk to life due to isolation | J11: Very low risk to life due to isolation | L11: 1 | M11: =IF(L11=1,SUM($L$9:L11),"") -> 3 | N11: =IF(AND(L11=1,COUNTIFS($B$9:$B11,B11,$L$9:$L11,1)=1),1,0) -> 0 | O11: =IF(N11=1,SUM($N$9:N11),"") ->  | Q11: =IF(AND(L11=1,COUNTIFS($C$9:$C11,C11,$L$9:$L11,1)=1),1,0) -> 1 | R11: =IF(Q11=1,SUM($Q$9:Q11),"") -> 3
B12: Economic | C12: Economic growth and investment | D12: Yes | E12: Descriptive | F12: No potential economic growth and investment | G12: Minor potential economic growth and investment | H12: Moderate potential economic growth and investment | I12: Significant potential economic growth and investment | J12: Very significant potential economic growth and investment | L12: 1 | M12: =IF(L12=1,SUM($L$9:L12),"") -> 4 | N12: =IF(AND(L12=1,COUNTIFS($B$9:$B12,B12,$L$9:$L12,1)=1),1,0) -> 1 | O12: =IF(N12=1,SUM($N$9:N12),"") -> 2 | Q12: =IF(AND(L12=1,COUNTIFS($C$9:$C12,C12,$L$9:$L12,1)=1),1,0) -> 1 | R12: =IF(Q12=1,SUM($Q$9:Q12),"") -> 4
B13: Economic | C13: Damages and costs (property, assets and operations) | D13: Yes | E13: Descriptive | F13: No reduction in flood damages and costs | G13: Minor reduction in flood damages and costs | H13: Moderate reduction in flood damages and costs | I13: Significant reduction in flood damages and costs | J13: Very significant reduction in flood damages and costs | L13: 1 | M13: =IF(L13=1,SUM($L$9:L13),"") -> 5 | N13: =IF(AND(L13=1,COUNTIFS($B$9:$B13,B13,$L$9:$L13,1)=1),1,0) -> 0 | O13: =IF(N13=1,SUM($N$9:N13),"") ->  | Q13: =IF(AND(L13=1,COUNTIFS($C$9:$C13,C13,$L$9:$L13,1)=1),1,0) -> 1 | R13: =IF(Q13=1,SUM($Q$9:Q13),"") -> 5
B14: Environmental and cultural heritage impact | C14: Overall impact on fauna connectivity (fish passage/fauna movement) | D14: Yes | E14: Descriptive | F14: Significant negative impact to fauna connectivity | G14: Moderate negative impact to fauna connectivity | H14: Minor negative impact to fauna connectivity | I14: Negligble impact to fauna connectivity | J14: Positive impact to fauna connectivity | L14: 1 | M14: =IF(L14=1,SUM($L$9:L14),"") -> 6 | N14: =IF(AND(L14=1,COUNTIFS($B$9:$B14,B14,$L$9:$L14,1)=1),1,0) -> 1 | O14: =IF(N14=1,SUM($N$9:N14),"") -> 3 | Q14: =IF(AND(L14=1,COUNTIFS($C$9:$C14,C14,$L$9:$L14,1)=1),1,0) -> 1 | R14: =IF(Q14=1,SUM($Q$9:Q14),"") -> 6
B15: Environmental and cultural heritage impact | C15: Overall impacts to vegetation and habitat | D15: Yes | E15: Descriptive | F15: Significant negative vegetation and habitat impacts | G15: Moderate negative vegetation and habitat impacts | H15: Minor negative vegetation and habitat impacts | I15: Negligble vegetation and habitat impacts | J15: Positive vegetation and habitat impacts | L15: =IF(D15="Yes",1,0) -> 1 | M15: =IF(L15=1,SUM($L$9:L15),"") -> 7 | N15: =IF(AND(L15=1,COUNTIFS($B$9:$B15,B15,$L$9:$L15,1)=1),1,0) -> 0 | O15: =IF(N15=1,SUM($N$9:N15),"") ->  | Q15: =IF(AND(L15=1,COUNTIFS($C$9:$C15,C15,$L$9:$L15,1)=1),1,0) -> 1 | R15: =IF(Q15=1,SUM($Q$9:Q15),"") -> 7
B16: Environmental and cultural heritage impact | C16: Impact on cultural heritage sites | D16: Yes | E16: Descriptive | F16: Very significant cultural heritage impacts | G16: Significant cultural heritage impacts | H16: Moderate cultural heritage impacts | I16: Minor cultural heritage impacts | J16: No cultural heritage impacts | L16: 1 | M16: =IF(L16=1,SUM($L$9:L16),"") -> 8 | N16: =IF(AND(L16=1,COUNTIFS($B$9:$B16,B16,$L$9:$L16,1)=1),1,0) -> 0 | O16: =IF(N16=1,SUM($N$9:N16),"") ->  | Q16: =IF(AND(L16=1,COUNTIFS($C$9:$C16,C16,$L$9:$L16,1)=1),1,0) -> 1 | R16: =IF(Q16=1,SUM($Q$9:Q16),"") -> 8
B17: Social | C17: Disruption to daily life | D17: Yes | E17: Descriptive | F17: No improvement in disruption to daily life | G17: Minor improvement in disruption to daily life | H17: Moderate improvement in disruption to daily life | I17: Significant improvement in disruption to daily life | J17: Very significant improvement in disruption to daily life | L17: 1 | M17: =IF(L17=1,SUM($L$9:L17),"") -> 9 | N17: =IF(AND(L17=1,COUNTIFS($B$9:$B17,B17,$L$9:$L17,1)=1),1,0) -> 1 | O17: =IF(N17=1,SUM($N$9:N17),"") -> 4 | Q17: =IF(AND(L17=1,COUNTIFS($C$9:$C17,C17,$L$9:$L17,1)=1),1,0) -> 1 | R17: =IF(Q17=1,SUM($Q$9:Q17),"") -> 9
B18: Social | C18: Additional community benefits | D18: Yes | E18: Descriptive | F18: No additional community benefits | G18: Minor additional community benefits | H18: Moderate additional community benefits | I18: Significant additional community benefits | J18: Very significant additional community benefits | L18: 1 | M18: =IF(L18=1,SUM($L$9:L18),"") -> 10 | N18: =IF(AND(L18=1,COUNTIFS($B$9:$B18,B18,$L$9:$L18,1)=1),1,0) -> 0 | O18: =IF(N18=1,SUM($N$9:N18),"") ->  | Q18: =IF(AND(L18=1,COUNTIFS($C$9:$C18,C18,$L$9:$L18,1)=1),1,0) -> 1 | R18: =IF(Q18=1,SUM($Q$9:Q18),"") -> 10
B19: Flood behaviour/impact | C19: Flood impacts | D19: Yes | E19: Change in water level | F19: Very significant adverse flood impacts | G19: Significant adverse flood impacts | H19: Moderate adverse flood impacts | I19: Minor adverse flood impacts | J19: Negligible flood impacts | L19: 1 | M19: =IF(L19=1,SUM($L$9:L19),"") -> 11 | N19: =IF(AND(L19=1,COUNTIFS($B$9:$B19,B19,$L$9:$L19,1)=1),1,0) -> 1 | O19: =IF(N19=1,SUM($N$9:N19),"") -> 5 | Q19: =IF(AND(L19=1,COUNTIFS($C$9:$C19,C19,$L$9:$L19,1)=1),1,0) -> 1 | R19: =IF(Q19=1,SUM($Q$9:Q19),"") -> 11
B20: Additional constraints | C20: Engineering/construction constraints | D20: Yes | E20: Descriptive | F20: Very significant evidence of potential engineering or constructability issues | G20: Significant evidence of potential engineering or constructability issues | H20: Moderate evidence of potential engineering or constructability issues | I20: Minor evidence of potential engineering or constructability issues | J20: No evidence of potential engineering or constructability issues | L20: 1 | M20: =IF(L20=1,SUM($L$9:L20),"") -> 12 | N20: =IF(AND(L20=1,COUNTIFS($B$9:$B20,B20,$L$9:$L20,1)=1),1,0) -> 1 | O20: =IF(N20=1,SUM($N$9:N20),"") -> 6 | Q20: =IF(AND(L20=1,COUNTIFS($C$9:$C20,C20,$L$9:$L20,1)=1),1,0) -> 1 | R20: =IF(Q20=1,SUM($Q$9:Q20),"") -> 12

Sheet MCA criteria weighting
D2: Multi-criteria Assessment criteria weighting (pairwise method) This tool applies the pairwise method to determine weightings. To determine criteria weightings, complete the pairwise matrix below. If applying no weighting ensure a nil response is provided in all the input fields.
F5: Safety | G5: Economic | H5: Environmental and cultural heritage impact | I5: Social | J5: Flood behaviour/impact | K5: Additional constraints | L5: Occurrence +1 | M5: WEIGHTING
F6: =IF(F5="","",INDEX('General Calc'!$B$5:$B$24,COLUMNS($F$5:F$5))) -> A | G6: =IF(G5="","",INDEX('General Calc'!$B$5:$B$24,COLUMNS($F$5:G$5))) -> B | H6: =IF(H5="","",INDEX('General Calc'!$B$5:$B$24,COLUMNS($F$5:H$5))) -> C | I6: =IF(I5="","",INDEX('General Calc'!$B$5:$B$24,COLUMNS($F$5:I$5))) -> D | J6: =IF(J5="","",INDEX('General Calc'!$B$5:$B$24,COLUMNS($F$5:J$5))) -> E | K6: =IF(K5="","",INDEX('General Calc'!$B$5:$B$24,COLUMNS($F$5:K$5))) -> F
D7: Safety | E7: =IF(D7="","",INDEX('General Calc'!$B$5:$B$24,ROWS($E$7:$E7))) -> A | F7: =IF($E7="","",$E7) -> A | G7: - | H7: - | I7: - | J7: - | K7: - | L7: =IF($D7="","",COUNTIF($F$7:$K$12,$E7)) -> 1 | M7: =IF($D7="","",L7/$L$13) -> 0.1666666667
D8: Economic | E8: =IF(D8="","",INDEX('General Calc'!$B$5:$B$24,ROWS($E$7:$E8))) -> B | G8: =IF($E8="","",$E8) -> B | H8: - | I8: - | J8: - | K8: - | L8: 1 | M8: 0.1666666667
D9: Environmental and cultural heritage impact | E9: =IF(D9="","",INDEX('General Calc'!$B$5:$B$24,ROWS($E$7:$E9))) -> C | H9: =IF($E9="","",$E9) -> C | I9: - | J9: - | K9: - | L9: 1 | M9: 0.1666666667
D10: Social | E10: =IF(D10="","",INDEX('General Calc'!$B$5:$B$24,ROWS($E$7:$E10))) -> D | I10: =IF($E10="","",$E10) -> D | J10: - | K10: - | L10: 1 | M10: 0.1666666667
D11: Flood behaviour/impact | E11: =IF(D11="","",INDEX('General Calc'!$B$5:$B$24,ROWS($E$7:$E11))) -> E | J11: =IF($E11="","",$E11) -> E | K11: - | L11: 1 | M11: 0.1666666667
D12: Additional constraints | E12: =IF(D12="","",INDEX('General Calc'!$B$5:$B$24,ROWS($E$7:$E12))) -> F | K12: =IF($E12="","",$E12) -> F | L12: 1 | M12: 0.1666666667
L13: =SUM(L7:L12) -> 6
F14: =C17 -> Safety | G14: =C18 -> Safety | H14: =C19 -> Safety | I14: =C20 -> Economic | J14: =C21 -> Economic | K14: =C22 -> Environmental and cultural heritage impact
F15: =IF(ROWS($D$17:$D17)>'Targeted indicators'!$Q$8,"",INDEX('Targeted indicators'!$C:$C,MATCH(ROWS($D$17:$D17),'Targeted indicators'!$R:$R,0))) -> Ability to evacuate to safer locations or evacuation centres | G15: =IF(ROWS($D$17:$D18)>'Targeted indicators'!$Q$8,"",INDEX('Targeted indicators'!$C:$C,MATCH(ROWS($D$17:$D18),'Targeted indicators'!$R:$R,0))) -> Population at risk | H15: =IF(ROWS($D$17:$D19)>'Targeted indicators'!$N$8,"",INDEX('Targeted indicators'!$C:$C,MATCH(ROWS($D$17:$D19),'Targeted indicators'!$R:$R,0))) -> Isolation duration and risk | I15: =IF(ROWS($D$17:$D20)>'Targeted indicators'!$Q$8,"",INDEX('Targeted indicators'!$C:$C,MATCH(ROWS($D$17:$D20),'Targeted indicators'!$R:$R,0))) -> Economic growth and investment | J15: =IF(ROWS($D$17:$D21)>'Targeted indicators'!$Q$8,"",INDEX('Targeted indicators'!$C:$C,MATCH(ROWS($D$17:$D21),'Targeted indicators'!$R:$R,0))) -> Damages and costs (property, assets and operations) | K15: =IF(ROWS($D$17:$D22)>'Targeted indicators'!$Q$8,"",INDEX('Targeted indicators'!$C:$C,MATCH(ROWS($D$17:$D22),'Targeted indicators'!$R:$R,0))) -> Overall impact on fauna connectivity (fish passage/fauna movement) | L15: Occurrence +1 | M15: WEIGHTING
F16: =IF(F15="","",INDEX('General Calc'!$B$5:$B$24,COLUMNS($F$5:F$5))) -> A | G16: =IF(G15="","",INDEX('General Calc'!$B$5:$B$24,COLUMNS($F$5:G$5))) -> B | H16: =IF(H15="","",INDEX('General Calc'!$B$5:$B$24,COLUMNS($F$5:H$5))) -> C | I16: =IF(I15="","",INDEX('General Calc'!$B$5:$B$24,COLUMNS($F$5:I$5))) -> D | J16: =IF(J15="","",INDEX('General Calc'!$B$5:$B$24,COLUMNS($F$5:J$5))) -> E | K16: =IF(K15="","",INDEX('General Calc'!$B$5:$B$24,COLUMNS($F$5:K$5))) -> F
C17: =IF(ROWS($D$17:$D17)>'Targeted indicators'!$Q$8,"",INDEX('Targeted indicators'!$B:$B,MATCH(ROWS($D$17:$D17),'Targeted indicators'!$R:$R,0))) -> Safety | D17: =IF(ROWS($D$17:$D17)>'Targeted indicators'!$Q$8,"",INDEX('Targeted indicators'!$C:$C,MATCH(ROWS($D$17:$D17),'Targeted indicators'!$R:$R,0))) -> Ability to evacuate to safer locations or evacuation centres | E17: =IF(D17="","",INDEX('General Calc'!$B$5:$B$24,ROWS($E$17:$E17))) -> A | F17: =IF($E17="","",$E17) -> A | G17: A | H17: A | I17: A | J17: A | K17: A | L17: =IF(C17="","",COUNTIF(OFFSET($E$16,COUNTA($C$17:C17),COUNTA($C$17:C17),1,COUNTIF(OFFSET($E$13,1,COUNTA($C$17:C17),1,10),C17)),E17)) -> 3 | M17: =IF($D17="","",L17/N17) -> 0.5 | N17: =IF(C17="","",SUMIF(C:C,C17,L:L)) -> 6
C18: =IF(ROWS($D$17:$D18)>'Targeted indicators'!$Q$8,"",INDEX('Targeted indicators'!$B:$B,MATCH(ROWS($D$17:$D18),'Targeted indicators'!$R:$R,0))) -> Safety | D18: =IF(ROWS($D$17:$D18)>'Targeted indicators'!$Q$8,"",INDEX('Targeted indicators'!$C:$C,MATCH(ROWS($D$17:$D18),'Targeted indicators'!$R:$R,0))) -> Population at risk | E18: =IF(D18="","",INDEX('General Calc'!$B$5:$B$24,ROWS($E$17:$E18))) -> B | G18: =IF($E18="","",$E18) -> B | H18: B | I18: B | J18: B | K18: B | L18: =IF(C18="","",COUNTIF(OFFSET($E$16,COUNTA($C$17:C18),COUNTA($C$17:C18),1,COUNTIF(OFFSET($E$13,1,COUNTA($C$17:C18),1,10),C18)),E18)) -> 2 | M18: =IF($D18="","",L18/N18) -> 0.3333333333 | N18: 6
C19: =IF(ROWS($D$17:$D19)>'Targeted indicators'!$Q$8,"",INDEX('Targeted indicators'!$B:$B,MATCH(ROWS($D$17:$D19),'Targeted indicators'!$R:$R,0))) -> Safety | D19: =IF(ROWS($D$17:$D19)>'Targeted indicators'!$Q$8,"",INDEX('Targeted indicators'!$C:$C,MATCH(ROWS($D$17:$D19),'Targeted indicators'!$R:$R,0))) -> Isolation duration and risk | E19: =IF(D19="","",INDEX('General Calc'!$B$5:$B$24,ROWS($E$17:$E19))) -> C | H19: =IF($E19="","",$E19) -> C | I19: C | J19: C | K19: C | L19: =IF(C19="","",COUNTIF(OFFSET($E$16,COUNTA($C$17:C19),COUNTA($C$17:C19),1,COUNTIF(OFFSET($E$13,1,COUNTA($C$17:C19),1,10),C19)),E19)) -> 1 | M19: 0.1666666667 | N19: 6
C20: =IF(ROWS($D$17:$D20)>'Targeted indicators'!$Q$8,"",INDEX('Targeted indicators'!$B:$B,MATCH(ROWS($D$17:$D20),'Targeted indicators'!$R:$R,0))) -> Economic | D20: =IF(ROWS($D$17:$D20)>'Targeted indicators'!$Q$8,"",INDEX('Targeted indicators'!$C:$C,MATCH(ROWS($D$17:$D20),'Targeted indicators'!$R:$R,0))) -> Economic growth and investment | E20: =IF(D20="","",INDEX('General Calc'!$B$5:$B$24,ROWS($E$17:$E20))) -> D | I20: =IF($E20="","",$E20) -> D | J20: D | K20: D | L20: =IF(C20="","",COUNTIF(OFFSET($E$16,COUNTA($C$17:C20),COUNTA($C$17:C20),1,COUNTIF(OFFSET($E$13,1,COUNTA($C$17:C20),1,10),C20)),E20)) -> 2 | M20: 0.6666666667 | N20: 3
C21: =IF(ROWS($D$17:$D21)>'Targeted indicators'!$Q$8,"",INDEX('Targeted indicators'!$B:$B,MATCH(ROWS($D$17:$D21),'Targeted indicators'!$R:$R,0))) -> Economic | D21: =IF(ROWS($D$17:$D21)>'Targeted indicators'!$Q$8,"",INDEX('Targeted indicators'!$C:$C,MATCH(ROWS($D$17:$D21),'Targeted indicators'!$R:$R,0))) -> Damages and costs (property, assets and operations) | E21: =IF(D21="","",INDEX('General Calc'!$B$5:$B$24,ROWS($E$17:$E21))) -> E | J21: =IF($E21="","",$E21) -> E | K21: E | L21: =IF(C21="","",COUNTIF(OFFSET($E$16,COUNTA($C$17:C21),COUNTA($C$17:C21),1,COUNTIF(OFFSET($E$13,1,COUNTA($C$17:C21),1,10),C21)),E21)) -> 1 | M21: 0.3333333333 | N21: 3
C22: =IF(ROWS($D$17:$D22)>'Targeted indicators'!$Q$8,"",INDEX('Targeted indicators'!$B:$B,MATCH(ROWS($D$17:$D22),'Targeted indicators'!$R:$R,0))) -> Environmental and cultural heritage impact | D22: =IF(ROWS($D$17:$D22)>'Targeted indicators'!$Q$8,"",INDEX('Targeted indicators'!$C:$C,MATCH(ROWS($D$17:$D22),'Targeted indicators'!$R:$R,0))) -> Overall impact on fauna connectivity (fish passage/fauna movement) | E22: =IF(D22="","",INDEX('General Calc'!$B$5:$B$24,ROWS($E$17:$E22))) -> F | K22: =IF($E22="","",$E22) -> F | L22: =IF(C22="","",COUNTIF(OFFSET($E$16,COUNTA($C$17:C22),COUNTA($C$17:C22),1,COUNTIF(OFFSET($E$13,1,COUNTA($C$17:C22),1,10),C22)),E22)) -> 1
C23: =IF(ROWS($D$17:$D23)>'Targeted indicators'!$Q$8,"",INDEX('Targeted indicators'!$B:$B,MATCH(ROWS($D$17:$D23),'Targeted indicators'!$R:$R,0))) -> Environmental and cultural heritage impact | D23: =IF(ROWS($D$17:$D23)>'Targeted indicators'!$Q$8,"",INDEX('Targeted indicators'!$C:$C,MATCH(ROWS($D$17:$D23),'Targeted indicators'!$R:$R,0))) -> Overall impacts to vegetation and habitat | E23: =IF(D23="","",INDEX('General Calc'!$B$5:$B$24,ROWS($E$17:$E23))) -> G | L23: =IF(C23="","",COUNTIF(OFFSET($E$16,COUNTA($C$17:C23),COUNTA($C$17:C23),1,COUNTIF(OFFSET($E$13,1,COUNTA($C$17:C23),1,10),C23)),E23)) -> 
C24: =IF(ROWS($D$17:$D24)>'Targeted indicators'!$Q$8,"",INDEX('Targeted indicators'!$B:$B,MATCH(ROWS($D$17:$D24),'Targeted indicators'!$R:$R,0))) -> Environmental and cultural heritage impact | D24: =IF(ROWS($D$17:$D24)>'Targeted indicators'!$Q$8,"",INDEX('Targeted indicators'!$C:$C,MATCH(ROWS($D$17:$D24),'Targeted indicators'!$R:$R,0))) -> Impact on cultural heritage sites | E24: =IF(D24="","",INDEX('General Calc'!$B$5:$B$24,ROWS($E$17:$E24))) -> H | L24: =IF(C24="","",COUNTIF(OFFSET($E$16,COUNTA($C$17:C24),COUNTA($C$17:C24),1,COUNTIF(OFFSET($E$13,1,COUNTA($C$17:C24),1,10),C24)),E24)) -> 
C25: =IF(ROWS($D$17:$D25)>'Targeted indicators'!$Q$8,"",INDEX('Targeted indicators'!$B:$B,MATCH(ROWS($D$17:$D25),'Targeted indicators'!$R:$R,0))) -> Social | D25: =IF(ROWS($D$17:$D25)>'Targeted indicators'!$Q$8,"",INDEX('Targeted indicators'!$C:$C,MATCH(ROWS($D$17:$D25),'Targeted indicators'!$R:$R,0))) -> Disruption to daily life | E25: =IF(D25="","",INDEX('General Calc'!$B$5:$B$24,ROWS($E$17:$E25))) -> I | L25: =IF(C25="","",COUNTIF(OFFSET($E$16,COUNTA($C$17:C25),COUNTA($C$17:C25),1,COUNTIF(OFFSET($E$13,1,COUNTA($C$17:C25),1,10),C25)),E25)) -> 
C26: =IF(ROWS($D$17:$D26)>'Targeted indicators'!$Q$8,"",INDEX('Targeted indicators'!$B:$B,MATCH(ROWS($D$17:$D26),'Targeted indicators'!$R:$R,0))) -> Social | D26: =IF(ROWS($D$17:$D26)>'Targeted indicators'!$Q$8,"",INDEX('Targeted indicators'!$C:$C,MATCH(ROWS($D$17:$D26),'Targeted indicators'!$R:$R,0))) -> Additional community benefits | E26: =IF(D26="","",INDEX('General Calc'!$B$5:$B$24,ROWS($E$17:$E26))) -> J | L26: =IF(C26="","",COUNTIF(OFFSET($E$16,COUNTA($C$17:C26),COUNTA($C$17:C26),1,COUNTIF(OFFSET($E$13,1,COUNTA($C$17:C26),1,10),C26)),E26)) -> 
C27: =IF(ROWS($D$17:$D27)>'Targeted indicators'!$Q$8,"",INDEX('Targeted indicators'!$B:$B,MATCH(ROWS($D$17:$D27),'Targeted indicators'!$R:$R,0))) -> Flood behaviour/impact | D27: =IF(ROWS($D$17:$D27)>'Targeted indicators'!$Q$8,"",INDEX('Targeted indicators'!$C:$C,MATCH(ROWS($D$17:$D27),'Targeted indicators'!$R:$R,0))) -> Flood impacts | E27: =IF(D27="","",INDEX('General Calc'!$B$5:$B$24,ROWS($E$17:$E27))) -> K | L27: =IF(C27="","",COUNTIF(OFFSET($E$16,COUNTA($C$17:C27),COUNTA($C$17:C27),1,COUNTIF(OFFSET($E$13,1,COUNTA($C$17:C27),1,10),C27)),E27)) -> 
C28: =IF(ROWS($D$17:$D28)>'Targeted indicators'!$Q$8,"",INDEX('Targeted indicators'!$B:$B,MATCH(ROWS($D$17:$D28),'Targeted indicators'!$R:$R,0))) -> Additional constraints | D28: =IF(ROWS($D$17:$D28)>'Targeted indicators'!$Q$8,"",INDEX('Targeted indicators'!$C:$C,MATCH(ROWS($D$17:$D28),'Targeted indicators'!$R:$R,0))) -> Engineering/construction constraints | E28: =IF(D28="","",INDEX('General Calc'!$B$5:$B$24,ROWS($E$17:$E28))) -> L | L28: =IF(C28="","",COUNTIF(OFFSET($E$16,COUNTA($C$17:C28),COUNTA($C$17:C28),1,COUNTIF(OFFSET($E$13,1,COUNTA($C$17:C28),1,10),C28)),E28)) -> 
C29: =IF(ROWS($D$17:$D29)>'Targeted indicators'!$Q$8,"",INDEX('Targeted indicators'!$B:$B,MATCH(ROWS($D$17:$D29),'Targeted indicators'!$R:$R,0))) ->  | D29: =IF(ROWS($D$17:$D29)>'Targeted indicators'!$Q$8,"",INDEX('Targeted indicators'!$C:$C,MATCH(ROWS($D$17:$D29),'Targeted indicators'!$R:$R,0))) ->  | E29: =IF(D29="","",INDEX('General Calc'!$B$5:$B$24,ROWS($E$17:$E29))) ->  | L29: =IF(C29="","",COUNTIF(OFFSET($E$16,COUNTA($C$17:C29),COUNTA($C$17:C29),1,COUNTIF(OFFSET($E$13,1,COUNTA($C$17:C29),1,10),C29)),E29)) -> 
C30: =IF(ROWS($D$17:$D30)>'Targeted indicators'!$Q$8,"",INDEX('Targeted indicators'!$B:$B,MATCH(ROWS($D$17:$D30),'Targeted indicators'!$R:$R,0))) ->  | D30: =IF(ROWS($D$17:$D30)>'Targeted indicators'!$N$8,"",INDEX('Targeted indicators'!$C:$C,MATCH(ROWS($D$17:$D30),'Targeted indicators'!$R:$R,0))) ->  | E30: =IF(D30="","",INDEX('General Calc'!$B$5:$B$24,ROWS($E$17:$E30))) ->  | L30: =IF(C30="","",COUNTIF(OFFSET($E$16,COUNTA($C$17:C30),COUNTA($C$17:C30),1,COUNTIF(OFFSET($E$13,1,COUNTA($C$17:C30),1,10),C30)),E30)) -> 
C31: =IF(ROWS($D$17:$D31)>'Targeted indicators'!$Q$8,"",INDEX('Targeted indicators'!$B:$B,MATCH(ROWS($D$17:$D31),'Targeted indicators'!$R:$R,0))) ->  | D31: =IF(ROWS($D$17:$D31)>'Targeted indicators'!$N$8,"",INDEX('Targeted indicators'!$C:$C,MATCH(ROWS($D$17:$D31),'Targeted indicators'!$R:$R,0))) ->  | E31: =IF(D31="","",INDEX('General Calc'!$B$5:$B$24,ROWS($E$17:$E31))) ->  | L31: =IF(C31="","",COUNTIF(OFFSET($E$16,COUNTA($C$17:C31),COUNTA($C$17:C31),1,COUNTIF(OFFSET($E$13,1,COUNTA($C$17:C31),1,10),C31)),E31)) -> 
C32: =IF(ROWS($D$17:$D32)>'Targeted indicators'!$Q$8,"",INDEX('Targeted indicators'!$B:$B,MATCH(ROWS($D$17:$D32),'Targeted indicators'!$R:$R,0))) ->  | D32: =IF(ROWS($D$17:$D32)>'Targeted indicators'!$N$8,"",INDEX('Targeted indicators'!$C:$C,MATCH(ROWS($D$17:$D32),'Targeted indicators'!$R:$R,0))) ->  | E32: =IF(D32="","",INDEX('General Calc'!$B$5:$B$24,ROWS($E$17:$E32))) ->  | L32: =IF(C32="","",COUNTIF(OFFSET($E$16,COUNTA($C$17:C32),COUNTA($C$17:C32),1,COUNTIF(OFFSET($E$13,1,COUNTA($C$17:C32),1,10),C32)),E32)) -> 
C33: =IF(ROWS($D$17:$D33)>'Targeted indicators'!$Q$8,"",INDEX('Targeted indicators'!$B:$B,MATCH(ROWS($D$17:$D33),'Targeted indicators'!$R:$R,0))) ->  | D33: =IF(ROWS($D$17:$D33)>'Targeted indicators'!$N$8,"",INDEX('Targeted indicators'!$C:$C,MATCH(ROWS($D$17:$D33),'Targeted indicators'!$R:$R,0))) ->  | E33: =IF(D33="","",INDEX('General Calc'!$B$5:$B$24,ROWS($E$17:$E33))) ->  | L33: =IF(C33="","",COUNTIF(OFFSET($E$16,COUNTA($C$17:C33),COUNTA($C$17:C33),1,COUNTIF(OFFSET($E$13,1,COUNTA($C$17:C33),1,10),C33)),E33)) -> 
C34: =IF(ROWS($D$17:$D34)>'Targeted indicators'!$Q$8,"",INDEX('Targeted indicators'!$B:$B,MATCH(ROWS($D$17:$D34),'Targeted indicators'!$R:$R,0))) ->  | D34: =IF(ROWS($D$17:$D34)>'Targeted indicators'!$N$8,"",INDEX('Targeted indicators'!$C:$C,MATCH(ROWS($D$17:$D34),'Targeted indicators'!$R:$R,0))) ->  | E34: =IF(D34="","",INDEX('General Calc'!$B$5:$B$24,ROWS($E$17:$E34))) ->  | L34: =IF(C34="","",COUNTIF(OFFSET($E$16,COUNTA($C$17:C34),COUNTA($C$17:C34),1,COUNTIF(OFFSET($E$13,1,COUNTA($C$17:C34),1,10),C34)),E34)) -> 
C35: =IF(ROWS($D$17:$D35)>'Targeted indicators'!$Q$8,"",INDEX('Targeted indicators'!$B:$B,MATCH(ROWS($D$17:$D35),'Targeted indicators'!$R:$R,0))) ->  | D35: =IF(ROWS($D$17:$D35)>'Targeted indicators'!$N$8,"",INDEX('Targeted indicators'!$C:$C,MATCH(ROWS($D$17:$D35),'Targeted indicators'!$R:$R,0))) ->  | E35: =IF(D35="","",INDEX('General Calc'!$B$5:$B$24,ROWS($E$17:$E35))) ->  | L35: =IF(C35="","",COUNTIF(OFFSET($E$16,COUNTA($C$17:C35),COUNTA($C$17:C35),1,COUNTIF(OFFSET($E$13,1,COUNTA($C$17:C35),1,10),C35)),E35)) -> 
C36: =IF(ROWS($D$17:$D36)>'Targeted indicators'!$Q$8,"",INDEX('Targeted indicators'!$B:$B,MATCH(ROWS($D$17:$D36),'Targeted indicators'!$R:$R,0))) ->  | D36: =IF(ROWS($D$17:$D36)>'Targeted indicators'!$N$8,"",INDEX('Targeted indicators'!$C:$C,MATCH(ROWS($D$17:$D36),'Targeted indicators'!$R:$R,0))) ->  | E36: =IF(D36="","",INDEX('General Calc'!$B$5:$B$24,ROWS($E$17:$E36))) ->  | L36: =IF(C36="","",COUNTIF(OFFSET($E$16,COUNTA($C$17:C36),COUNTA($C$17:C36),1,COUNTIF(OFFSET($E$13,1,COUNTA($C$17:C36),1,10),C36)),E36)) -> 
L37: =SUM(L17:L36) -> 

Sheet Scoring
B2: Scoring Enter scores of between 1 to 5 for each of the targeted indicators. Score descriptors can be found in the Targeted indicators worksheet. Ensure scores have been assigned for each targeted indicator and option being assessed. Errors will occur in calculating scores, if a score has not been assigned. Note, after inputting scores, if there are changes to the options feasibility assessment resulting in the removal or addition of options scores will need to be re-entered to avoid errors in calculating scores.
F3: =TRANSPOSE('Multi-criteria assessment'!$E$7:$E$26) -> 
B4: Criteria | C4: Targeted Indicator | D4: Pairwise Comparison | E4: Base Case | F4: =IF(F3=0,"",F3) ->  | G4: =IF(G3=0,"",G3) -> 
B5: ='Targeted indicators'!B9 -> Safety | C5: ='Targeted indicators'!C9 -> Ability to evacuate to safer locations or evacuation centres | D5: =IF(B5="","",VLOOKUP(B5,'MCA criteria weighting'!$D$7:$M$36,10,FALSE)) -> 0.1666666667 | E5: 3
B6: ='Targeted indicators'!B10 -> Safety | C6: ='Targeted indicators'!C10 -> Population at risk | D6: =IF(B6="","",VLOOKUP(B6,'MCA criteria weighting'!$D$7:$M$36,10,FALSE)) -> 0.1666666667 | E6: 3
B7: ='Targeted indicators'!B11 -> Safety | C7: ='Targeted indicators'!C11 -> Isolation duration and risk | D7: =IF(B7="","",VLOOKUP(B7,'MCA criteria weighting'!$D$7:$M$36,10,FALSE)) -> 0.1666666667 | E7: 3
B8: ='Targeted indicators'!B12 -> Economic | C8: ='Targeted indicators'!C12 -> Economic growth and investment | D8: =IF(B8="","",VLOOKUP(B8,'MCA criteria weighting'!$D$7:$M$36,10,FALSE)) -> 0.1666666667 | E8: 3
B9: ='Targeted indicators'!B13 -> Economic | C9: ='Targeted indicators'!C13 -> Damages and costs (property, assets and operations) | D9: =IF(B9="","",VLOOKUP(B9,'MCA criteria weighting'!$D$7:$M$36,10,FALSE)) -> 0.1666666667 | E9: 3
B10: ='Targeted indicators'!B14 -> Environmental and cultural heritage impact | C10: ='Targeted indicators'!C14 -> Overall impact on fauna connectivity (fish passage/fauna movement) | D10: =IF(B10="","",VLOOKUP(B10,'MCA criteria weighting'!$D$7:$M$36,10,FALSE)) -> 0.1666666667 | E10: 3
B11: ='Targeted indicators'!B15 -> Environmental and cultural heritage impact | C11: ='Targeted indicators'!C15 -> Overall impacts to vegetation and habitat | D11: =IF(B11="","",VLOOKUP(B11,'MCA criteria weighting'!$D$7:$M$36,10,FALSE)) -> 0.1666666667 | E11: 3
B12: ='Targeted indicators'!B16 -> Environmental and cultural heritage impact | C12: ='Targeted indicators'!C16 -> Impact on cultural heritage sites | D12: =IF(B12="","",VLOOKUP(B12,'MCA criteria weighting'!$D$7:$M$36,10,FALSE)) -> 0.1666666667 | E12: 3
B13: ='Targeted indicators'!B17 -> Social | C13: ='Targeted indicators'!C17 -> Disruption to daily life | D13: =IF(B13="","",VLOOKUP(B13,'MCA criteria weighting'!$D$7:$M$36,10,FALSE)) -> 0.1666666667 | E13: 3
B14: ='Targeted indicators'!B18 -> Social | C14: ='Targeted indicators'!C18 -> Additional community benefits | D14: =IF(B14="","",VLOOKUP(B14,'MCA criteria weighting'!$D$7:$M$36,10,FALSE)) -> 0.1666666667 | E14: 3
B15: ='Targeted indicators'!B19 -> Flood behaviour/impact | C15: ='Targeted indicators'!C19 -> Flood impacts | D15: =IF(B15="","",VLOOKUP(B15,'MCA criteria weighting'!$D$7:$M$36,10,FALSE)) -> 0.1666666667 | E15: 3
B16: ='Targeted indicators'!B20 -> Additional constraints | C16: ='Targeted indicators'!C20 -> Engineering/construction constraints | D16: =IF(B16="","",VLOOKUP(B16,'MCA criteria weighting'!$D$7:$M$36,10,FALSE)) -> 0.1666666667 | E16: 3
D17: =IF(B17="","",VLOOKUP(C17,'MCA criteria weighting'!D29:M48,24,FALSE)) ->  | E17: =IF($C17="","",3) -> 
D18: =IF(B18="","",VLOOKUP(C18,'MCA criteria weighting'!D30:M49,24,FALSE)) -> 
D19: =IF(B19="","",VLOOKUP(C19,'MCA criteria weighting'!D31:M50,24,FALSE)) -> 
D20: =IF(B20="","",VLOOKUP(C20,'MCA criteria weighting'!D32:M51,24,FALSE)) -> 
D21: =IF(B21="","",VLOOKUP(C21,'MCA criteria weighting'!D33:M52,24,FALSE)) -> 
D22: =IF(B22="","",VLOOKUP(C22,'MCA criteria weighting'!D34:M53,24,FALSE)) -> 
D23: =IF(B23="","",VLOOKUP(C23,'MCA criteria weighting'!D35:M54,24,FALSE)) -> 
D24: =IF(B24="","",VLOOKUP(C24,'MCA criteria weighting'!D36:M55,24,FALSE)) -> 
D25: =IF(B25="","",VLOOKUP(C25,'MCA criteria weighting'!D37:M56,24,FALSE)) -> 
D26: =IF(B26="","",VLOOKUP(C26,'MCA criteria weighting'!D38:M57,24,FALSE)) -> 
D27: =IF(B27="","",VLOOKUP(C27,'MCA criteria weighting'!D39:M58,24,FALSE)) -> 
D28: =IF(B28="","",VLOOKUP(C28,'MCA criteria weighting'!D40:M59,24,FALSE)) -> 
D29: =IF(B29="","",VLOOKUP(C29,'MCA criteria weighting'!D41:M60,24,FALSE)) -> 
D30: =IF(B30="","",VLOOKUP(C30,'MCA criteria weighting'!D42:M61,24,FALSE)) -> 
D31: =IF(B31="","",VLOOKUP(C31,'MCA criteria weighting'!D43:M62,24,FALSE)) -> 

Sheet MCA indicator weighting (hidden)
C2: **DO NOT EDIT**
F5: =IF(ROWS($D$7:$D7)>'Targeted indicators'!$N$8,"",INDEX('Targeted indicators'!$B:$B,MATCH(ROWS($D$7:$D7),'Targeted indicators'!$O:$O,0))) -> Safety | G5: =IF(ROWS($D$7:$D8)>'Targeted indicators'!$N$8,"",INDEX('Targeted indicators'!$B:$B,MATCH(ROWS($D$7:$D8),'Targeted indicators'!$O:$O,0))) -> Economic | H5: =IF(ROWS($D$7:$D9)>'Targeted indicators'!$N$8,"",INDEX('Targeted indicators'!$B:$B,MATCH(ROWS($D$7:$D9),'Targeted indicators'!$O:$O,0))) -> Environmental and cultural heritage impact | I5: =IF(ROWS($D$7:$D10)>'Targeted indicators'!$N$8,"",INDEX('Targeted indicators'!$B:$B,MATCH(ROWS($D$7:$D10),'Targeted indicators'!$O:$O,0))) -> Social | J5: =IF(ROWS($D$7:$D11)>'Targeted indicators'!$N$8,"",INDEX('Targeted indicators'!$B:$B,MATCH(ROWS($D$7:$D11),'Targeted indicators'!$O:$O,0))) -> Flood behaviour/impact | K5: =IF(ROWS($D$7:$D12)>'Targeted indicators'!$N$8,"",INDEX('Targeted indicators'!$B:$B,MATCH(ROWS($D$7:$D12),'Targeted indicators'!$O:$O,0))) -> Additional constraints | L5: =IF(ROWS($D$7:$D13)>'Targeted indicators'!$N$8,"",INDEX('Targeted indicators'!$B:$B,MATCH(ROWS($D$7:$D13),'Targeted indicators'!$O:$O,0))) ->  | M5: =IF(ROWS($D$7:$D14)>'Targeted indicators'!$N$8,"",INDEX('Targeted indicators'!$B:$B,MATCH(ROWS($D$7:$D14),'Targeted indicators'!$O:$O,0))) ->  | N5: =IF(ROWS($D$7:$D15)>'Targeted indicators'!$N$8,"",INDEX('Targeted indicators'!$B:$B,MATCH(ROWS($D$7:$D15),'Targeted indicators'!$O:$O,0))) ->  | O5: =IF(ROWS($D$7:$D16)>'Targeted indicators'!$N$8,"",INDEX('Targeted indicators'!$B:$B,MATCH(ROWS($D$7:$D16),'Targeted indicators'!$O:$O,0))) ->  | P5: =IF(ROWS($D$7:$D17)>'Targeted indicators'!$N$8,"",INDEX('Targeted indicators'!$B:$B,MATCH(ROWS($D$7:$D17),'Targeted indicators'!$O:$O,0))) ->  | Q5: =IF(ROWS($D$7:$D18)>'Targeted indicators'!$N$8,"",INDEX('Targeted indicators'!$B:$B,MATCH(ROWS($D$7:$D18),'Targeted indicators'!$O:$O,0))) ->  | R5: Occurrence +1 | S5: WEIGHTING
F6: =IF(F5="","",INDEX('General Calc'!$B$5:$B$24,COLUMNS($F$5:F$5))) -> A | G6: =IF(G5="","",INDEX('General Calc'!$B$5:$B$24,COLUMNS($F$5:G$5))) -> B | H6: =IF(H5="","",INDEX('General Calc'!$B$5:$B$24,COLUMNS($F$5:H$5))) -> C | I6: =IF(I5="","",INDEX('General Calc'!$B$5:$B$24,COLUMNS($F$5:I$5))) -> D | J6: =IF(J5="","",INDEX('General Calc'!$B$5:$B$24,COLUMNS($F$5:J$5))) -> E | K6: =IF(K5="","",INDEX('General Calc'!$B$5:$B$24,COLUMNS($F$5:K$5))) -> F | L6: =IF(L5="","",INDEX('General Calc'!$B$5:$B$24,COLUMNS($F$5:L$5))) ->  | M6: =IF(M5="","",INDEX('General Calc'!$B$5:$B$24,COLUMNS($F$5:M$5))) ->  | N6: =IF(N5="","",INDEX('General Calc'!$B$5:$B$24,COLUMNS($F$5:N$5))) ->  | O6: =IF(O5="","",INDEX('General Calc'!$B$5:$B$24,COLUMNS($F$5:O$5))) ->  | P6: =IF(P5="","",INDEX('General Calc'!$B$5:$B$24,COLUMNS($F$5:P$5))) ->  | Q6: =IF(Q5="","",INDEX('General Calc'!$B$5:$B$24,COLUMNS($F$5:Q$5))) -> 
D7: =IF(ROWS($D$7:$D7)>'Targeted indicators'!$N$8,"",INDEX('Targeted indicators'!$B:$B,MATCH(ROWS($D$7:$D7),'Targeted indicators'!$O:$O,0))) -> Safety | E7: =IF(D7="","",INDEX('General Calc'!$B$5:$B$24,ROWS($E$7:$E7))) -> A | F7: =IF($E7="","",$E7) -> A | G7: A | H7: A | I7: A | J7: A | K7: A | R7: =IF($D7="","",COUNTIF($F$7:$Q$26,$E7)) -> 6 | S7: =IF($D7="","",R7/$R$27) -> 
D8: =IF(ROWS($D$7:$D8)>'Targeted indicators'!$N$8,"",INDEX('Targeted indicators'!$B:$B,MATCH(ROWS($D$7:$D8),'Targeted indicators'!$O:$O,0))) -> Economic | E8: =IF(D8="","",INDEX('General Calc'!$B$5:$B$24,ROWS($E$7:$E8))) -> B | G8: =IF($E8="","",$E8) -> B | H8: B | I8: B | J8: B | K8: B | R8: 5
D9: =IF(ROWS($D$7:$D9)>'Targeted indicators'!$N$8,"",INDEX('Targeted indicators'!$B:$B,MATCH(ROWS($D$7:$D9),'Targeted indicators'!$O:$O,0))) -> Environmental and cultural heritage impact | E9: =IF(D9="","",INDEX('General Calc'!$B$5:$B$24,ROWS($E$7:$E9))) -> C | H9: =IF($E9="","",$E9) -> C | I9: C | J9: C | K9: C | R9: 4
D10: =IF(ROWS($D$7:$D10)>'Targeted indicators'!$N$8,"",INDEX('Targeted indicators'!$B:$B,MATCH(ROWS($D$7:$D10),'Targeted indicators'!$O:$O,0))) -> Social | E10: =IF(D10="","",INDEX('General Calc'!$B$5:$B$24,ROWS($E$7:$E10))) -> D | I10: =IF($E10="","",$E10) -> D | J10: D | K10: D | R10: 3
D11: =IF(ROWS($D$7:$D11)>'Targeted indicators'!$N$8,"",INDEX('Targeted indicators'!$B:$B,MATCH(ROWS($D$7:$D11),'Targeted indicators'!$O:$O,0))) -> Flood behaviour/impact | E11: =IF(D11="","",INDEX('General Calc'!$B$5:$B$24,ROWS($E$7:$E11))) -> E | J11: =IF($E11="","",$E11) -> E | K11: E | R11: 2
D12: =IF(ROWS($D$7:$D12)>'Targeted indicators'!$N$8,"",INDEX('Targeted indicators'!$B:$B,MATCH(ROWS($D$7:$D12),'Targeted indicators'!$O:$O,0))) -> Additional constraints | E12: =IF(D12="","",INDEX('General Calc'!$B$5:$B$24,ROWS($E$7:$E12))) -> F | K12: =IF($E12="","",$E12) -> F | R12: 1
D13: =IF(ROWS($D$7:$D13)>'Targeted indicators'!$N$8,"",INDEX('Targeted indicators'!$B:$B,MATCH(ROWS($D$7:$D13),'Targeted indicators'!$O:$O,0))) ->  | E13: =IF(D13="","",INDEX('General Calc'!$B$5:$B$24,ROWS($E$7:$E13))) ->  | L13: =IF($E13="","",$E13) -> 
D14: =IF(ROWS($D$7:$D14)>'Targeted indicators'!$N$8,"",INDEX('Targeted indicators'!$B:$B,MATCH(ROWS($D$7:$D14),'Targeted indicators'!$O:$O,0))) ->  | E14: =IF(D14="","",INDEX('General Calc'!$B$5:$B$24,ROWS($E$7:$E14))) ->  | M14: =IF($E14="","",$E14) -> 
D15: =IF(ROWS($D$7:$D15)>'Targeted indicators'!$N$8,"",INDEX('Targeted indicators'!$B:$B,MATCH(ROWS($D$7:$D15),'Targeted indicators'!$O:$O,0))) ->  | E15: =IF(D15="","",INDEX('General Calc'!$B$5:$B$24,ROWS($E$7:$E15))) ->  | N15: =IF($E15="","",$E15) -> 
E16: =IF(D16="","",INDEX('General Calc'!$B$5:$B$24,ROWS($E$7:$E16))) ->  | O16: =IF($E16="","",$E16) -> 
E17: =IF(D17="","",INDEX('General Calc'!$B$5:$B$24,ROWS($E$7:$E17))) ->  | P17: =IF($E17="","",$E17) -> 
E18: =IF(D18="","",INDEX('General Calc'!$B$5:$B$24,ROWS($E$7:$E18))) ->  | Q18: =IF($E18="","",$E18) -> 
E19: =IF(D19="","",INDEX('General Calc'!$B$5:$B$24,ROWS($E$7:$E19))) -> 
E20: =IF(D20="","",INDEX('General Calc'!$B$5:$B$24,ROWS($E$7:$E20))) -> 
D21: =IF(INDEX(#REF!,ROWS($D$7:$D21))=0,"",INDEX(#REF!,ROWS($D$7:$D21))) ->  | E21: =IF(D21="","",INDEX('General Calc'!$B$5:$B$24,ROWS($E$7:$E21))) -> 
D22: =IF(INDEX(#REF!,ROWS($D$7:$D22))=0,"",INDEX(#REF!,ROWS($D$7:$D22))) ->  | E22: =IF(D22="","",INDEX('General Calc'!$B$5:$B$24,ROWS($E$7:$E22))) -> 
D23: =IF(INDEX(#REF!,ROWS($D$7:$D23))=0,"",INDEX(#REF!,ROWS($D$7:$D23))) ->  | E23: =IF(D23="","",INDEX('General Calc'!$B$5:$B$24,ROWS($E$7:$E23))) -> 
D24: =IF(INDEX(#REF!,ROWS($D$7:$D24))=0,"",INDEX(#REF!,ROWS($D$7:$D24))) ->  | E24: =IF(D24="","",INDEX('General Calc'!$B$5:$B$24,ROWS($E$7:$E24))) -> 
D25: =IF(INDEX(#REF!,ROWS($D$7:$D25))=0,"",INDEX(#REF!,ROWS($D$7:$D25))) ->  | E25: =IF(D25="","",INDEX('General Calc'!$B$5:$B$24,ROWS($E$7:$E25))) -> 
D26: =IF(INDEX(#REF!,ROWS($D$7:$D26))=0,"",INDEX(#REF!,ROWS($D$7:$D26))) ->  | E26: =IF(D26="","",INDEX('General Calc'!$B$5:$B$24,ROWS($E$7:$E26))) -> 
R27: =SUM(R7:R26) -> 
F28: =C31 -> Safety | G28: =C32 -> Safety | H28: =C33 -> Safety | I28: =C34 -> Economic | J28: =C35 -> Economic | K28: =C36 -> Environmental and cultural heritage impact | L28: =C37 -> Environmental and cultural heritage impact | M28: =C38 -> Environmental and cultural heritage impact | N28: =C39 -> Social | O28: =C40 -> Social | P28: =C41 -> Flood behaviour/impact | Q28: =C42 -> Additional constraints
F29: =D31 -> Ability to evacuate to safer locations or evacuation centres | G29: =D32 -> Population at risk | H29: =D33 -> Isolation duration and risk | I29: =D34 -> Economic growth and investment | J29: =D35 -> Damages and costs (property, assets and operations) | K29: =D36 -> Overall impact on fauna connectivity (fish passage/fauna movement) | L29: =D37 -> Overall impacts to vegetation and habitat | M29: =D38 -> Impact on cultural heritage sites | N29: =D39 -> Disruption to daily life | O29: =D40 -> Additional community benefits | P29: =D41 -> Flood impacts | Q29: =D42 -> Engineering/construction constraints | R29: Occurrence +1 | S29: WEIGHTING
F30: =IF(F29="","",INDEX('General Calc'!$B$5:$B$24,COLUMNS($F$5:F$5))) -> A | G30: =IF(G29="","",INDEX('General Calc'!$B$5:$B$24,COLUMNS($F$5:G$5))) -> B | H30: =IF(H29="","",INDEX('General Calc'!$B$5:$B$24,COLUMNS($F$5:H$5))) -> C | I30: =IF(I29="","",INDEX('General Calc'!$B$5:$B$24,COLUMNS($F$5:I$5))) -> D | J30: =IF(J29="","",INDEX('General Calc'!$B$5:$B$24,COLUMNS($F$5:J$5))) -> E | K30: =IF(K29="","",INDEX('General Calc'!$B$5:$B$24,COLUMNS($F$5:K$5))) -> F | L30: =IF(L29="","",INDEX('General Calc'!$B$5:$B$24,COLUMNS($F$5:L$5))) -> G | M30: =IF(M29="","",INDEX('General Calc'!$B$5:$B$24,COLUMNS($F$5:M$5))) -> H | N30: =IF(N29="","",INDEX('General Calc'!$B$5:$B$24,COLUMNS($F$5:N$5))) -> I | O30: =IF(O29="","",INDEX('General Calc'!$B$5:$B$24,COLUMNS($F$5:O$5))) -> J | P30: =IF(P29="","",INDEX('General Calc'!$B$5:$B$24,COLUMNS($F$5:P$5))) -> K | Q30: =IF(Q29="","",INDEX('General Calc'!$B$5:$B$24,COLUMNS($F$5:Q$5))) -> L
C31: =IF('Targeted indicators'!D9="YES",'Targeted indicators'!B9,"NOT REQUIRED") -> Safety | D31: =IF('Targeted indicators'!D9="YES",'Targeted indicators'!C9,"NOT REQUIRED") -> Ability to evacuate to safer locations or evacuation centres | E31: =IF(D31="NOT REQUIRED","",INDEX('General Calc'!$B$5:$B$24,ROWS($E$31:$E31))) -> A | F31: =IF($E31="","",$E31) -> A | R31: =IF(C31="NOT REQUIRED","",COUNTIF(OFFSET($E$30,COUNTA($C$31:C31),COUNTA($C$31:C31),1,COUNTIF(OFFSET($E$27,1,COUNTA($C$31:C31),1,10),C31)),E31)) -> 1 | S31: =IF($D31="NOT REQUIRED","",R31/T31) -> 0.3333333333 | T31: =IF(C31="","",SUMIF(C:C,C31,R:R)) -> 3
C32: =IF('Targeted indicators'!D10="YES",'Targeted indicators'!B10,"NOT REQUIRED") -> Safety | D32: =IF('Targeted indicators'!D10="YES",'Targeted indicators'!C10,"NOT REQUIRED") -> Population at risk | E32: =IF(D32="NOT REQUIRED","",INDEX('General Calc'!$B$5:$B$24,ROWS($E$31:$E32))) -> B | G32: =IF($E32="","",$E32) -> B | R32: =IF(C32="NOT REQUIRED","",COUNTIF(OFFSET($E$30,COUNTA($C$31:C32),COUNTA($C$31:C32),1,COUNTIF(OFFSET($E$27,1,COUNTA($C$31:C32),1,10),C32)),E32)) -> 1 | S32: =IF($D32="NOT REQUIRED","",R32/T32) -> 0.3333333333 | T32: 3
C33: =IF('Targeted indicators'!D11="YES",'Targeted indicators'!B11,"NOT REQUIRED") -> Safety | D33: =IF('Targeted indicators'!D11="YES",'Targeted indicators'!C11,"NOT REQUIRED") -> Isolation duration and risk | E33: =IF(D33="NOT REQUIRED","",INDEX('General Calc'!$B$5:$B$24,ROWS($E$31:$E33))) -> C | H33: =IF($E33="","",$E33) -> C | R33: =IF(C33="NOT REQUIRED","",COUNTIF(OFFSET($E$30,COUNTA($C$31:C33),COUNTA($C$31:C33),1,COUNTIF(OFFSET($E$27,1,COUNTA($C$31:C33),1,10),C33)),E33)) -> 1 | S33: 0.3333333333 | T33: 3
C34: =IF('Targeted indicators'!D12="YES",'Targeted indicators'!B12,"NOT REQUIRED") -> Economic | D34: =IF('Targeted indicators'!D12="YES",'Targeted indicators'!C12,"NOT REQUIRED") -> Economic growth and investment | E34: =IF(D34="NOT REQUIRED","",INDEX('General Calc'!$B$5:$B$24,ROWS($E$31:$E34))) -> D | I34: =IF($E34="","",$E34) -> D | R34: =IF(C34="NOT REQUIRED","",COUNTIF(OFFSET($E$30,COUNTA($C$31:C34),COUNTA($C$31:C34),1,COUNTIF(OFFSET($E$27,1,COUNTA($C$31:C34),1,10),C34)),E34)) -> 1 | S34: 0.5 | T34: 2
C35: =IF('Targeted indicators'!D13="YES",'Targeted indicators'!B13,"NOT REQUIRED") -> Economic | D35: =IF('Targeted indicators'!D13="YES",'Targeted indicators'!C13,"NOT REQUIRED") -> Damages and costs (property, assets and operations) | E35: =IF(D35="NOT REQUIRED","",INDEX('General Calc'!$B$5:$B$24,ROWS($E$31:$E35))) -> E | J35: =IF($E35="","",$E35) -> E | R35: =IF(C35="NOT REQUIRED","",COUNTIF(OFFSET($E$30,COUNTA($C$31:C35),COUNTA($C$31:C35),1,COUNTIF(OFFSET($E$27,1,COUNTA($C$31:C35),1,10),C35)),E35)) -> 1 | S35: 0.5 | T35: 2
C36: =IF('Targeted indicators'!D14="YES",'Targeted indicators'!B14,"NOT REQUIRED") -> Environmental and cultural heritage impact | D36: =IF('Targeted indicators'!D14="YES",'Targeted indicators'!C14,"NOT REQUIRED") -> Overall impact on fauna connectivity (fish passage/fauna movement) | E36: =IF(D36="NOT REQUIRED","",INDEX('General Calc'!$B$5:$B$24,ROWS($E$31:$E36))) -> F | K36: =IF($E36="","",$E36) -> F | R36: =IF(C36="NOT REQUIRED","",COUNTIF(OFFSET($E$30,COUNTA($C$31:C36),COUNTA($C$31:C36),1,COUNTIF(OFFSET($E$27,1,COUNTA($C$31:C36),1,10),C36)),E36)) -> 1 | S36: 0.3333333333 | T36: 3
C37: =IF('Targeted indicators'!D15="YES",'Targeted indicators'!B15,"NOT REQUIRED") -> Environmental and cultural heritage impact | D37: =IF('Targeted indicators'!D15="YES",'Targeted indicators'!C15,"NOT REQUIRED") -> Overall impacts to vegetation and habitat | E37: =IF(D37="NOT REQUIRED","",INDEX('General Calc'!$B$5:$B$24,ROWS($E$31:$E37))) -> G | L37: =IF($E37="","",$E37) -> G | R37: =IF(C37="NOT REQUIRED","",COUNTIF(OFFSET($E$30,COUNTA($C$31:C37),COUNTA($C$31:C37),1,COUNTIF(OFFSET($E$27,1,COUNTA($C$31:C37),1,10),C37)),E37)) -> 1 | S37: =IF($D37="NOT REQUIRED","",R37/T37) -> 0.3333333333 | T37: 3
C38: =IF('Targeted indicators'!D16="YES",'Targeted indicators'!B16,"NOT REQUIRED") -> Environmental and cultural heritage impact | D38: =IF('Targeted indicators'!D16="YES",'Targeted indicators'!C16,"NOT REQUIRED") -> Impact on cultural heritage sites | E38: =IF(D38="NOT REQUIRED","",INDEX('General Calc'!$B$5:$B$24,ROWS($E$31:$E38))) -> H | M38: =IF($E38="","",$E38) -> H | R38: =IF(C38="NOT REQUIRED","",COUNTIF(OFFSET($E$30,COUNTA($C$31:C38),COUNTA($C$31:C38),1,COUNTIF(OFFSET($E$27,1,COUNTA($C$31:C38),1,10),C38)),E38)) -> 1 | S38: 0.3333333333 | T38: 3
C39: =IF('Targeted indicators'!D17="YES",'Targeted indicators'!B17,"NOT REQUIRED") -> Social | D39: =IF('Targeted indicators'!D17="YES",'Targeted indicators'!C17,"NOT REQUIRED") -> Disruption to daily life | E39: =IF(D39="NOT REQUIRED","",INDEX('General Calc'!$B$5:$B$24,ROWS($E$31:$E39))) -> I | N39: =IF($E39="","",$E39) -> I | R39: =IF(C39="NOT REQUIRED","",COUNTIF(OFFSET($E$30,COUNTA($C$31:C39),COUNTA($C$31:C39),1,COUNTIF(OFFSET($E$27,1,COUNTA($C$31:C39),1,10),C39)),E39)) -> 1 | S39: 0.5 | T39: 2
C40: =IF('Targeted indicators'!D18="YES",'Targeted indicators'!B18,"NOT REQUIRED") -> Social | D40: =IF('Targeted indicators'!D18="YES",'Targeted indicators'!C18,"NOT REQUIRED") -> Additional community benefits | E40: =IF(D40="NOT REQUIRED","",INDEX('General Calc'!$B$5:$B$24,ROWS($E$31:$E40))) -> J | O40: =IF($E40="","",$E40) -> J | R40: =IF(C40="NOT REQUIRED","",COUNTIF(OFFSET($E$30,COUNTA($C$31:C40),COUNTA($C$31:C40),1,COUNTIF(OFFSET($E$27,1,COUNTA($C$31:C40),1,10),C40)),E40)) -> 1 | S40: 0.5 | T40: 2
C41: =IF('Targeted indicators'!D19="YES",'Targeted indicators'!B19,"NOT REQUIRED") -> Flood behaviour/impact | D41: =IF('Targeted indicators'!D19="YES",'Targeted indicators'!C19,"NOT REQUIRED") -> Flood impacts | E41: =IF(D41="NOT REQUIRED","",INDEX('General Calc'!$B$5:$B$24,ROWS($E$31:$E41))) -> K | P41: =IF($E41="","",$E41) -> K | R41: =IF(C41="NOT REQUIRED","",COUNTIF(OFFSET($E$30,COUNTA($C$31:C41),COUNTA($C$31:C41),1,COUNTIF(OFFSET($E$27,1,COUNTA($C$31:C41),1,10),C41)),E41)) -> 1 | S41: 1 | T41: 1
C42: =IF('Targeted indicators'!D20="YES",'Targeted indicators'!B20,"NOT REQUIRED") -> Additional constraints | D42: =IF('Targeted indicators'!D20="YES",'Targeted indicators'!C20,"NOT REQUIRED") -> Engineering/construction constraints | E42: =IF(D42="NOT REQUIRED","",INDEX('General Calc'!$B$5:$B$24,ROWS($E$31:$E42))) -> L | Q42: =IF($E42="","",$E42) -> L | R42: =IF(C42="NOT REQUIRED","",COUNTIF(OFFSET($E$30,COUNTA($C$31:C42),COUNTA($C$31:C42),1,COUNTIF(OFFSET($E$27,1,COUNTA($C$31:C42),1,10),C42)),E42)) -> 1 | S42: 1 | T42: 1
R43: =SUM(R31:R42) -> 12

Sheet Results
B3: Results The results of the Stage two: multi-criteria assessment is shown in the table below. The table shows both results for each criteria and the overall results. Criteria results are the average scores for each criteria and do not apply the assigned weightings. The overall results take into account weightings and are determined by totalling the weighted scores for each targeted indicator.
B5: Highest scoring option
B6: Overall | C6: =INDEX(Analysis!$G$4:$AB$4,MATCH(1,Results!$B$19:$Y$19,0)) ->  | D6: =INDEX('Identify potential options'!$D$7:$D$26,MATCH(C6,'Identify potential options'!$C$7:$C$26,0)) -> 
B7: =IF(ROWS($B$7:$B7)>'Targeted indicators'!$N$8,"",INDEX('Targeted indicators'!$B:$B,MATCH(ROWS($B$7:$B7),'Targeted indicators'!$O:$O,0))) -> Safety | C7: =IF(B7="","",INDEX($C$45:$L$45,MATCH(MAX(C46:L46),C46:L46,0))) -> 
B8: =IF(ROWS($B$7:$B8)>'Targeted indicators'!$N$8,"",INDEX('Targeted indicators'!$B:$B,MATCH(ROWS($B$7:$B8),'Targeted indicators'!$O:$O,0))) -> Economic
B9: =IF(ROWS($B$7:$B9)>'Targeted indicators'!$N$8,"",INDEX('Targeted indicators'!$B:$B,MATCH(ROWS($B$7:$B9),'Targeted indicators'!$O:$O,0))) -> Environmental and cultural heritage impact
B10: =IF(ROWS($B$7:$B10)>'Targeted indicators'!$N$8,"",INDEX('Targeted indicators'!$B:$B,MATCH(ROWS($B$7:$B10),'Targeted indicators'!$O:$O,0))) -> Social
B11: =IF(ROWS($B$7:$B11)>'Targeted indicators'!$N$8,"",INDEX('Targeted indicators'!$B:$B,MATCH(ROWS($B$7:$B11),'Targeted indicators'!$O:$O,0))) -> Flood behaviour/impact
B12: =IF(ROWS($B$7:$B12)>'Targeted indicators'!$N$8,"",INDEX('Targeted indicators'!$B:$B,MATCH(ROWS($B$7:$B12),'Targeted indicators'!$O:$O,0))) -> Additional constraints
B13: =IF(ROWS($B$7:$B13)>'Targeted indicators'!$N$8,"",INDEX('Targeted indicators'!$B:$B,MATCH(ROWS($B$7:$B13),'Targeted indicators'!$O:$O,0))) ->  | C13: =IF(B13="","",INDEX($C$45:$L$45,MATCH(MAX(D52:L52),D52:L52,0))) -> 
B14: =IF(ROWS($B$7:$B14)>'Targeted indicators'!$N$8,"",INDEX('Targeted indicators'!$B:$B,MATCH(ROWS($B$7:$B14),'Targeted indicators'!$O:$O,0))) ->  | C14: =IF(B14="","",INDEX($C$45:$L$45,MATCH(MAX(D53:L53),D53:L53,0))) -> 
B15: =IF(ROWS($B$7:$B15)>'Targeted indicators'!$N$8,"",INDEX('Targeted indicators'!$B:$B,MATCH(ROWS($B$7:$B15),'Targeted indicators'!$O:$O,0))) ->  | C15: =IF(B15="","",INDEX($C$45:$L$45,MATCH(MAX(D54:L54),D54:L54,0))) -> 
A17: Summary of option scoring | C17: =Scoring!F4 ->  | D17: =Scoring!G4 ->  | E17: =Scoring!H4 ->  | F17: =Scoring!I4 ->  | G17: =Scoring!J4 ->  | H17: =Scoring!K4 ->  | I17: =Scoring!L4 ->  | J17: =Scoring!M4 ->  | K17: =Scoring!N4 ->  | L17: =Scoring!O4 ->  | M17: =Scoring!P4 ->  | N17: =Scoring!Q4 ->  | O17: =Scoring!R4 ->  | P17: =Scoring!S4 ->  | Q17: =Scoring!T4 ->  | R17: =Scoring!U4 ->  | S17: =Scoring!V4 ->  | T17: =Scoring!W4 ->  | U17: =Scoring!X4 ->  | V17: =Scoring!Y4 -> 
A18: Score | C18: =ROUND(SUMPRODUCT(Analysis!H5:H16),2) -> 0 | D18: =ROUND(SUMPRODUCT(Analysis!I5:I16),2) -> 0 | E18: =ROUND(SUMPRODUCT(Analysis!J5:J16),2) -> 0 | F18: =ROUND(SUMPRODUCT(Analysis!K5:K16),2) -> 0 | G18: =ROUND(SUMPRODUCT(Analysis!L5:L16),2) -> 0 | H18: =ROUND(SUMPRODUCT(Analysis!M5:M16),2) -> 0 | I18: =ROUND(SUMPRODUCT(Analysis!N5:N16),2) -> 0 | J18: =ROUND(SUMPRODUCT(Analysis!O5:O16),2) -> 0 | K18: =ROUND(SUMPRODUCT(Analysis!P5:P16),2) -> 0 | L18: =ROUND(SUMPRODUCT(Analysis!Q5:Q16),2) -> 0 | M18: =ROUND(SUMPRODUCT(Analysis!R5:R16),2) -> 0 | N18: =ROUND(SUMPRODUCT(Analysis!S5:S16),2) -> 0 | O18: =ROUND(SUMPRODUCT(Analysis!T5:T16),2) -> 0 | P18: =ROUND(SUMPRODUCT(Analysis!U5:U16),2) -> 0 | Q18: =ROUND(SUMPRODUCT(Analysis!V5:V16),2) -> 0 | R18: =ROUND(SUMPRODUCT(Analysis!W5:W16),2) -> 0 | S18: =ROUND(SUMPRODUCT(Analysis!X5:X16),2) -> 0 | T18: =ROUND(SUMPRODUCT(Analysis!Y5:Y16),2) -> 0 | U18: =ROUND(SUMPRODUCT(Analysis!Z5:Z16),2) -> 0 | V18: =ROUND(SUMPRODUCT(Analysis!AA5:AA16),2) -> 0
A19: Rank | B19: =IF(B18<>0,RANK(B18,$B$18:$K$18),"") ->  | C19: =IF(C18<>0,RANK(C18,$C$18:$Y$18,0),"") ->  | D19: =IF(D18<>0,RANK(D18,$C$18:$Y$18,0),"") -> 
B20: Option | C20: Criteria results (no weighting applied) | I20: Overall results (weighting applied)
C21: Safety | D21: Economic | E21: Environmental and cultural heritage impact | F21: Social | G21: Flood behaviour/impact | H21: Additional constraints | I21: Score | J21: Rank
B22: =C17 ->  | C22: =TRANSPOSE($C$46:$V$51) ->  | I22: =HLOOKUP(B22,$C$17:$V$19,2,FALSE) -> 0 | J22: =HLOOKUP(B22,$C$17:$V$19,3,FALSE) -> 
B23: =D17 ->  | I23: 0 | J23: =HLOOKUP(B23,$C$17:$V$19,3,FALSE) -> 
B24: =E17 ->  | I24: 0
B25: =F17 ->  | I25: 0
B26: =G17 ->  | I26: 0
B27: =H17 ->  | I27: 0
B28: =I17 ->  | I28: 0
B29: =J17 ->  | I29: 0
B30: =K17 ->  | I30: 0
B31: =L17 ->  | I31: 0
B32: =M17 ->  | I32: 0
B33: =N17 ->  | I33: 0
B34: =O17 ->  | I34: 0
B35: =P17 ->  | I35: 0
B36: =Q17 ->  | I36: 0
B37: =R17 ->  | I37: 0
B38: =S17 ->  | I38: 0
B39: =T17 ->  | I39: 0
B40: =U17 ->  | I40: 0
B41: =V17 ->  | I41: 0
B43: Scores per criteria
B44: Criteria | C44: Options
C45: =Scoring!F4 ->  | D45: =Scoring!G4 ->  | E45: =Scoring!H4 ->  | F45: =Scoring!I4 ->  | G45: =Scoring!J4 ->  | H45: =Scoring!K4 ->  | I45: =Scoring!L4 ->  | J45: =Scoring!M4 ->  | K45: =Scoring!N4 ->  | L45: =Scoring!O4 ->  | M45: =Scoring!P4 ->  | N45: =Scoring!Q4 ->  | O45: =Scoring!R4 ->  | P45: =Scoring!S4 ->  | Q45: =Scoring!T4 ->  | R45: =Scoring!U4 ->  | S45: =Scoring!V4 ->  | T45: =Scoring!W4 ->  | U45: =Scoring!X4 ->  | V45: =Scoring!Y4 -> 
B46: Safety | C46: =IF($B46="","",IF(COUNTBLANK(C$45)=0,SUMPRODUCT((Analysis!$B$5:$B$25=$B46)*1,Scoring!F$5:F$25)/SUMPRODUCT((Analysis!$B$5:$B$25=$B46)*1),"")) ->  | D46: =IF($B46="","",IF(COUNTBLANK(D$45)=0,SUMPRODUCT((Analysis!$B$5:$B$25=$B46)*1,Scoring!G$5:G$25)/SUMPRODUCT((Analysis!$B$5:$B$25=$B46)*1),"")) ->  | E46: =IF($B46="","",IF(COUNTBLANK(E$45)=0,SUMPRODUCT((Analysis!$B$5:$B$25=$B46)*1,Scoring!H$5:H$25)/SUMPRODUCT((Analysis!$B$5:$B$25=$B46)*1),"")) ->  | F46: =IF($B46="","",IF(COUNTBLANK(F$45)=0,SUMPRODUCT((Analysis!$B$5:$B$25=$B46)*1,Scoring!I$5:I$25)/SUMPRODUCT((Analysis!$B$5:$B$25=$B46)*1),"")) ->  | G46: =IF($B46="","",IF(COUNTBLANK(G$45)=0,SUMPRODUCT((Analysis!$B$5:$B$25=$B46)*1,Scoring!J$5:J$25)/SUMPRODUCT((Analysis!$B$5:$B$25=$B46)*1),"")) ->  | H46: =IF($B46="","",IF(COUNTBLANK(H$45)=0,SUMPRODUCT((Analysis!$B$5:$B$25=$B46)*1,Scoring!K$5:K$25)/SUMPRODUCT((Analysis!$B$5:$B$25=$B46)*1),"")) ->  | I46: =IF($B46="","",IF(COUNTBLANK(I$45)=0,SUMPRODUCT((Analysis!$B$5:$B$25=$B46)*1,Scoring!L$5:L$25)/SUMPRODUCT((Analysis!$B$5:$B$25=$B46)*1),"")) ->  | J46: =IF($B46="","",IF(COUNTBLANK(J$45)=0,SUMPRODUCT((Analysis!$B$5:$B$25=$B46)*1,Scoring!M$5:M$25)/SUMPRODUCT((Analysis!$B$5:$B$25=$B46)*1),"")) ->  | K46: =IF($B46="","",IF(COUNTBLANK(K$45)=0,SUMPRODUCT((Analysis!$B$5:$B$25=$B46)*1,Scoring!N$5:N$25)/SUMPRODUCT((Analysis!$B$5:$B$25=$B46)*1),"")) ->  | L46: =IF($B46="","",IF(COUNTBLANK(L$45)=0,SUMPRODUCT((Analysis!$B$5:$B$25=$B46)*1,Scoring!O$5:O$25)/SUMPRODUCT((Analysis!$B$5:$B$25=$B46)*1),"")) ->  | M46: =IF($B46="","",IF(COUNTBLANK(M$45)=0,SUMPRODUCT((Analysis!$B$5:$B$25=$B46)*1,Scoring!P$5:P$25)/SUMPRODUCT((Analysis!$B$5:$B$25=$B46)*1),"")) ->  | N46: =IF($B46="","",IF(COUNTBLANK(N$45)=0,SUMPRODUCT((Analysis!$B$5:$B$25=$B46)*1,Scoring!Q$5:Q$25)/SUMPRODUCT((Analysis!$B$5:$B$25=$B46)*1),"")) ->  | O46: =IF($B46="","",IF(COUNTBLANK(O$45)=0,SUMPRODUCT((Analysis!$B$5:$B$25=$B46)*1,Scoring!R$5:R$25)/SUMPRODUCT((Analysis!$B$5:$B$25=$B46)*1),"")) ->  | P46: =IF($B46="","",IF(COUNTBLANK(P$45)=0,SUMPRODUCT((Analysis!$B$5:$B$25=$B46)*1,Scoring!S$5:S$25)/SUMPRODUCT((Analysis!$B$5:$B$25=$B46)*1),"")) ->  | Q46: =IF($B46="","",IF(COUNTBLANK(Q$45)=0,SUMPRODUCT((Analysis!$B$5:$B$25=$B46)*1,Scoring!T$5:T$25)/SUMPRODUCT((Analysis!$B$5:$B$25=$B46)*1),"")) ->  | R46: =IF($B46="","",IF(COUNTBLANK(R$45)=0,SUMPRODUCT((Analysis!$B$5:$B$25=$B46)*1,Scoring!U$5:U$25)/SUMPRODUCT((Analysis!$B$5:$B$25=$B46)*1),"")) ->  | S46: =IF($B46="","",IF(COUNTBLANK(S$45)=0,SUMPRODUCT((Analysis!$B$5:$B$25=$B46)*1,Scoring!V$5:V$25)/SUMPRODUCT((Analysis!$B$5:$B$25=$B46)*1),"")) ->  | T46: =IF($B46="","",IF(COUNTBLANK(T$45)=0,SUMPRODUCT((Analysis!$B$5:$B$25=$B46)*1,Scoring!W$5:W$25)/SUMPRODUCT((Analysis!$B$5:$B$25=$B46)*1),"")) ->  | U46: =IF($B46="","",IF(COUNTBLANK(U$45)=0,SUMPRODUCT((Analysis!$B$5:$B$25=$B46)*1,Scoring!X$5:X$25)/SUMPRODUCT((Analysis!$B$5:$B$25=$B46)*1),"")) ->  | V46: =IF($B46="","",IF(COUNTBLANK(V$45)=0,SUMPRODUCT((Analysis!$B$5:$B$25=$B46)*1,Scoring!Y$5:Y$25)/SUMPRODUCT((Analysis!$B$5:$B$25=$B46)*1),"")) -> 
B47: Economic | C47: =IF($B47="","",IF(COUNTBLANK(C$45)=0,SUMPRODUCT((Analysis!$B$5:$B$25=$B47)*1,Scoring!F$5:F$25)/SUMPRODUCT((Analysis!$B$5:$B$25=$B47)*1),"")) ->  | D47: =IF($B47="","",IF(COUNTBLANK(D$45)=0,SUMPRODUCT((Analysis!$B$5:$B$25=$B47)*1,Scoring!G$5:G$25)/SUMPRODUCT((Analysis!$B$5:$B$25=$B47)*1),"")) ->  | E47: =IF($B47="","",IF(COUNTBLANK(E$45)=0,SUMPRODUCT((Analysis!$B$5:$B$25=$B47)*1,Scoring!H$5:H$25)/SUMPRODUCT((Analysis!$B$5:$B$25=$B47)*1),"")) ->  | F47: =IF($B47="","",IF(COUNTBLANK(F$45)=0,SUMPRODUCT((Analysis!$B$5:$B$25=$B47)*1,Scoring!I$5:I$25)/SUMPRODUCT((Analysis!$B$5:$B$25=$B47)*1),"")) ->  | G47: =IF($B47="","",IF(COUNTBLANK(G$45)=0,SUMPRODUCT((Analysis!$B$5:$B$25=$B47)*1,Scoring!J$5:J$25)/SUMPRODUCT((Analysis!$B$5:$B$25=$B47)*1),"")) ->  | H47: =IF($B47="","",IF(COUNTBLANK(H$45)=0,SUMPRODUCT((Analysis!$B$5:$B$25=$B47)*1,Scoring!K$5:K$25)/SUMPRODUCT((Analysis!$B$5:$B$25=$B47)*1),"")) ->  | I47: =IF($B47="","",IF(COUNTBLANK(I$45)=0,SUMPRODUCT((Analysis!$B$5:$B$25=$B47)*1,Scoring!L$5:L$25)/SUMPRODUCT((Analysis!$B$5:$B$25=$B47)*1),"")) ->  | J47: =IF($B47="","",IF(COUNTBLANK(J$45)=0,SUMPRODUCT((Analysis!$B$5:$B$25=$B47)*1,Scoring!M$5:M$25)/SUMPRODUCT((Analysis!$B$5:$B$25=$B47)*1),"")) ->  | K47: =IF($B47="","",IF(COUNTBLANK(K$45)=0,SUMPRODUCT((Analysis!$B$5:$B$25=$B47)*1,Scoring!N$5:N$25)/SUMPRODUCT((Analysis!$B$5:$B$25=$B47)*1),"")) ->  | L47: =IF($B47="","",IF(COUNTBLANK(L$45)=0,SUMPRODUCT((Analysis!$B$5:$B$25=$B47)*1,Scoring!O$5:O$25)/SUMPRODUCT((Analysis!$B$5:$B$25=$B47)*1),"")) ->  | M47: =IF($B47="","",IF(COUNTBLANK(M$45)=0,SUMPRODUCT((Analysis!$B$5:$B$25=$B47)*1,Scoring!P$5:P$25)/SUMPRODUCT((Analysis!$B$5:$B$25=$B47)*1),"")) ->  | N47: =IF($B47="","",IF(COUNTBLANK(N$45)=0,SUMPRODUCT((Analysis!$B$5:$B$25=$B47)*1,Scoring!Q$5:Q$25)/SUMPRODUCT((Analysis!$B$5:$B$25=$B47)*1),"")) ->  | O47: =IF($B47="","",IF(COUNTBLANK(O$45)=0,SUMPRODUCT((Analysis!$B$5:$B$25=$B47)*1,Scoring!R$5:R$25)/SUMPRODUCT((Analysis!$B$5:$B$25=$B47)*1),"")) ->  | P47: =IF($B47="","",IF(COUNTBLANK(P$45)=0,SUMPRODUCT((Analysis!$B$5:$B$25=$B47)*1,Scoring!S$5:S$25)/SUMPRODUCT((Analysis!$B$5:$B$25=$B47)*1),"")) ->  | Q47: =IF($B47="","",IF(COUNTBLANK(Q$45)=0,SUMPRODUCT((Analysis!$B$5:$B$25=$B47)*1,Scoring!T$5:T$25)/SUMPRODUCT((Analysis!$B$5:$B$25=$B47)*1),"")) ->  | R47: =IF($B47="","",IF(COUNTBLANK(R$45)=0,SUMPRODUCT((Analysis!$B$5:$B$25=$B47)*1,Scoring!U$5:U$25)/SUMPRODUCT((Analysis!$B$5:$B$25=$B47)*1),"")) ->  | S47: =IF($B47="","",IF(COUNTBLANK(S$45)=0,SUMPRODUCT((Analysis!$B$5:$B$25=$B47)*1,Scoring!V$5:V$25)/SUMPRODUCT((Analysis!$B$5:$B$25=$B47)*1),"")) ->  | T47: =IF($B47="","",IF(COUNTBLANK(T$45)=0,SUMPRODUCT((Analysis!$B$5:$B$25=$B47)*1,Scoring!W$5:W$25)/SUMPRODUCT((Analysis!$B$5:$B$25=$B47)*1),"")) ->  | U47: =IF($B47="","",IF(COUNTBLANK(U$45)=0,SUMPRODUCT((Analysis!$B$5:$B$25=$B47)*1,Scoring!X$5:X$25)/SUMPRODUCT((Analysis!$B$5:$B$25=$B47)*1),"")) ->  | V47: =IF($B47="","",IF(COUNTBLANK(V$45)=0,SUMPRODUCT((Analysis!$B$5:$B$25=$B47)*1,Scoring!Y$5:Y$25)/SUMPRODUCT((Analysis!$B$5:$B$25=$B47)*1),"")) -> 
B48: Environmental and cultural heritage impact | C48: =IF($B48="","",IF(COUNTBLANK(C$45)=0,SUMPRODUCT((Analysis!$B$5:$B$25=$B48)*1,Scoring!F$5:F$25)/SUMPRODUCT((Analysis!$B$5:$B$25=$B48)*1),"")) ->  | D48: =IF($B48="","",IF(COUNTBLANK(D$45)=0,SUMPRODUCT((Analysis!$B$5:$B$25=$B48)*1,Scoring!G$5:G$25)/SUMPRODUCT((Analysis!$B$5:$B$25=$B48)*1),"")) ->  | E48: =IF($B48="","",IF(COUNTBLANK(E$45)=0,SUMPRODUCT((Analysis!$B$5:$B$25=$B48)*1,Scoring!H$5:H$25)/SUMPRODUCT((Analysis!$B$5:$B$25=$B48)*1),"")) ->  | F48: =IF($B48="","",IF(COUNTBLANK(F$45)=0,SUMPRODUCT((Analysis!$B$5:$B$25=$B48)*1,Scoring!I$5:I$25)/SUMPRODUCT((Analysis!$B$5:$B$25=$B48)*1),"")) ->  | G48: =IF($B48="","",IF(COUNTBLANK(G$45)=0,SUMPRODUCT((Analysis!$B$5:$B$25=$B48)*1,Scoring!J$5:J$25)/SUMPRODUCT((Analysis!$B$5:$B$25=$B48)*1),"")) ->  | H48: =IF($B48="","",IF(COUNTBLANK(H$45)=0,SUMPRODUCT((Analysis!$B$5:$B$25=$B48)*1,Scoring!K$5:K$25)/SUMPRODUCT((Analysis!$B$5:$B$25=$B48)*1),"")) ->  | I48: =IF($B48="","",IF(COUNTBLANK(I$45)=0,SUMPRODUCT((Analysis!$B$5:$B$25=$B48)*1,Scoring!L$5:L$25)/SUMPRODUCT((Analysis!$B$5:$B$25=$B48)*1),"")) ->  | J48: =IF($B48="","",IF(COUNTBLANK(J$45)=0,SUMPRODUCT((Analysis!$B$5:$B$25=$B48)*1,Scoring!M$5:M$25)/SUMPRODUCT((Analysis!$B$5:$B$25=$B48)*1),"")) ->  | K48: =IF($B48="","",IF(COUNTBLANK(K$45)=0,SUMPRODUCT((Analysis!$B$5:$B$25=$B48)*1,Scoring!N$5:N$25)/SUMPRODUCT((Analysis!$B$5:$B$25=$B48)*1),"")) ->  | L48: =IF($B48="","",IF(COUNTBLANK(L$45)=0,SUMPRODUCT((Analysis!$B$5:$B$25=$B48)*1,Scoring!O$5:O$25)/SUMPRODUCT((Analysis!$B$5:$B$25=$B48)*1),"")) ->  | M48: =IF($B48="","",IF(COUNTBLANK(M$45)=0,SUMPRODUCT((Analysis!$B$5:$B$25=$B48)*1,Scoring!P$5:P$25)/SUMPRODUCT((Analysis!$B$5:$B$25=$B48)*1),"")) ->  | N48: =IF($B48="","",IF(COUNTBLANK(N$45)=0,SUMPRODUCT((Analysis!$B$5:$B$25=$B48)*1,Scoring!Q$5:Q$25)/SUMPRODUCT((Analysis!$B$5:$B$25=$B48)*1),"")) ->  | O48: =IF($B48="","",IF(COUNTBLANK(O$45)=0,SUMPRODUCT((Analysis!$B$5:$B$25=$B48)*1,Scoring!R$5:R$25)/SUMPRODUCT((Analysis!$B$5:$B$25=$B48)*1),"")) ->  | P48: =IF($B48="","",IF(COUNTBLANK(P$45)=0,SUMPRODUCT((Analysis!$B$5:$B$25=$B48)*1,Scoring!S$5:S$25)/SUMPRODUCT((Analysis!$B$5:$B$25=$B48)*1),"")) ->  | Q48: =IF($B48="","",IF(COUNTBLANK(Q$45)=0,SUMPRODUCT((Analysis!$B$5:$B$25=$B48)*1,Scoring!T$5:T$25)/SUMPRODUCT((Analysis!$B$5:$B$25=$B48)*1),"")) ->  | R48: =IF($B48="","",IF(COUNTBLANK(R$45)=0,SUMPRODUCT((Analysis!$B$5:$B$25=$B48)*1,Scoring!U$5:U$25)/SUMPRODUCT((Analysis!$B$5:$B$25=$B48)*1),"")) ->  | S48: =IF($B48="","",IF(COUNTBLANK(S$45)=0,SUMPRODUCT((Analysis!$B$5:$B$25=$B48)*1,Scoring!V$5:V$25)/SUMPRODUCT((Analysis!$B$5:$B$25=$B48)*1),"")) ->  | T48: =IF($B48="","",IF(COUNTBLANK(T$45)=0,SUMPRODUCT((Analysis!$B$5:$B$25=$B48)*1,Scoring!W$5:W$25)/SUMPRODUCT((Analysis!$B$5:$B$25=$B48)*1),"")) ->  | U48: =IF($B48="","",IF(COUNTBLANK(U$45)=0,SUMPRODUCT((Analysis!$B$5:$B$25=$B48)*1,Scoring!X$5:X$25)/SUMPRODUCT((Analysis!$B$5:$B$25=$B48)*1),"")) ->  | V48: =IF($B48="","",IF(COUNTBLANK(V$45)=0,SUMPRODUCT((Analysis!$B$5:$B$25=$B48)*1,Scoring!Y$5:Y$25)/SUMPRODUCT((Analysis!$B$5:$B$25=$B48)*1),"")) -> 
B49: Social | C49: =IF($B49="","",IF(COUNTBLANK(C$45)=0,SUMPRODUCT((Analysis!$B$5:$B$25=$B49)*1,Scoring!F$5:F$25)/SUMPRODUCT((Analysis!$B$5:$B$25=$B49)*1),"")) ->  | D49: =IF($B49="","",IF(COUNTBLANK(D$45)=0,SUMPRODUCT((Analysis!$B$5:$B$25=$B49)*1,Scoring!G$5:G$25)/SUMPRODUCT((Analysis!$B$5:$B$25=$B49)*1),"")) ->  | E49: =IF($B49="","",IF(COUNTBLANK(E$45)=0,SUMPRODUCT((Analysis!$B$5:$B$25=$B49)*1,Scoring!H$5:H$25)/SUMPRODUCT((Analysis!$B$5:$B$25=$B49)*1),"")) ->  | F49: =IF($B49="","",IF(COUNTBLANK(F$45)=0,SUMPRODUCT((Analysis!$B$5:$B$25=$B49)*1,Scoring!I$5:I$25)/SUMPRODUCT((Analysis!$B$5:$B$25=$B49)*1),"")) ->  | G49: =IF($B49="","",IF(COUNTBLANK(G$45)=0,SUMPRODUCT((Analysis!$B$5:$B$25=$B49)*1,Scoring!J$5:J$25)/SUMPRODUCT((Analysis!$B$5:$B$25=$B49)*1),"")) ->  | H49: =IF($B49="","",IF(COUNTBLANK(H$45)=0,SUMPRODUCT((Analysis!$B$5:$B$25=$B49)*1,Scoring!K$5:K$25)/SUMPRODUCT((Analysis!$B$5:$B$25=$B49)*1),"")) ->  | I49: =IF($B49="","",IF(COUNTBLANK(I$45)=0,SUMPRODUCT((Analysis!$B$5:$B$25=$B49)*1,Scoring!L$5:L$25)/SUMPRODUCT((Analysis!$B$5:$B$25=$B49)*1),"")) ->  | J49: =IF($B49="","",IF(COUNTBLANK(J$45)=0,SUMPRODUCT((Analysis!$B$5:$B$25=$B49)*1,Scoring!M$5:M$25)/SUMPRODUCT((Analysis!$B$5:$B$25=$B49)*1),"")) ->  | K49: =IF($B49="","",IF(COUNTBLANK(K$45)=0,SUMPRODUCT((Analysis!$B$5:$B$25=$B49)*1,Scoring!N$5:N$25)/SUMPRODUCT((Analysis!$B$5:$B$25=$B49)*1),"")) ->  | L49: =IF($B49="","",IF(COUNTBLANK(L$45)=0,SUMPRODUCT((Analysis!$B$5:$B$25=$B49)*1,Scoring!O$5:O$25)/SUMPRODUCT((Analysis!$B$5:$B$25=$B49)*1),"")) ->  | M49: =IF($B49="","",IF(COUNTBLANK(M$45)=0,SUMPRODUCT((Analysis!$B$5:$B$25=$B49)*1,Scoring!P$5:P$25)/SUMPRODUCT((Analysis!$B$5:$B$25=$B49)*1),"")) ->  | N49: =IF($B49="","",IF(COUNTBLANK(N$45)=0,SUMPRODUCT((Analysis!$B$5:$B$25=$B49)*1,Scoring!Q$5:Q$25)/SUMPRODUCT((Analysis!$B$5:$B$25=$B49)*1),"")) ->  | O49: =IF($B49="","",IF(COUNTBLANK(O$45)=0,SUMPRODUCT((Analysis!$B$5:$B$25=$B49)*1,Scoring!R$5:R$25)/SUMPRODUCT((Analysis!$B$5:$B$25=$B49)*1),"")) ->  | P49: =IF($B49="","",IF(COUNTBLANK(P$45)=0,SUMPRODUCT((Analysis!$B$5:$B$25=$B49)*1,Scoring!S$5:S$25)/SUMPRODUCT((Analysis!$B$5:$B$25=$B49)*1),"")) ->  | Q49: =IF($B49="","",IF(COUNTBLANK(Q$45)=0,SUMPRODUCT((Analysis!$B$5:$B$25=$B49)*1,Scoring!T$5:T$25)/SUMPRODUCT((Analysis!$B$5:$B$25=$B49)*1),"")) ->  | R49: =IF($B49="","",IF(COUNTBLANK(R$45)=0,SUMPRODUCT((Analysis!$B$5:$B$25=$B49)*1,Scoring!U$5:U$25)/SUMPRODUCT((Analysis!$B$5:$B$25=$B49)*1),"")) ->  | S49: =IF($B49="","",IF(COUNTBLANK(S$45)=0,SUMPRODUCT((Analysis!$B$5:$B$25=$B49)*1,Scoring!V$5:V$25)/SUMPRODUCT((Analysis!$B$5:$B$25=$B49)*1),"")) ->  | T49: =IF($B49="","",IF(COUNTBLANK(T$45)=0,SUMPRODUCT((Analysis!$B$5:$B$25=$B49)*1,Scoring!W$5:W$25)/SUMPRODUCT((Analysis!$B$5:$B$25=$B49)*1),"")) ->  | U49: =IF($B49="","",IF(COUNTBLANK(U$45)=0,SUMPRODUCT((Analysis!$B$5:$B$25=$B49)*1,Scoring!X$5:X$25)/SUMPRODUCT((Analysis!$B$5:$B$25=$B49)*1),"")) ->  | V49: =IF($B49="","",IF(COUNTBLANK(V$45)=0,SUMPRODUCT((Analysis!$B$5:$B$25=$B49)*1,Scoring!Y$5:Y$25)/SUMPRODUCT((Analysis!$B$5:$B$25=$B49)*1),"")) -> 
B50: Flood behaviour/impact | C50: =IF($B50="","",IF(COUNTBLANK(C$45)=0,SUMPRODUCT((Analysis!$B$5:$B$25=$B50)*1,Scoring!F$5:F$25)/SUMPRODUCT((Analysis!$B$5:$B$25=$B50)*1),"")) ->  | D50: =IF($B50="","",IF(COUNTBLANK(D$45)=0,SUMPRODUCT((Analysis!$B$5:$B$25=$B50)*1,Scoring!G$5:G$25)/SUMPRODUCT((Analysis!$B$5:$B$25=$B50)*1),"")) ->  | E50: =IF($B50="","",IF(COUNTBLANK(E$45)=0,SUMPRODUCT((Analysis!$B$5:$B$25=$B50)*1,Scoring!H$5:H$25)/SUMPRODUCT((Analysis!$B$5:$B$25=$B50)*1),"")) ->  | F50: =IF($B50="","",IF(COUNTBLANK(F$45)=0,SUMPRODUCT((Analysis!$B$5:$B$25=$B50)*1,Scoring!I$5:I$25)/SUMPRODUCT((Analysis!$B$5:$B$25=$B50)*1),"")) ->  | G50: =IF($B50="","",IF(COUNTBLANK(G$45)=0,SUMPRODUCT((Analysis!$B$5:$B$25=$B50)*1,Scoring!J$5:J$25)/SUMPRODUCT((Analysis!$B$5:$B$25=$B50)*1),"")) ->  | H50: =IF($B50="","",IF(COUNTBLANK(H$45)=0,SUMPRODUCT((Analysis!$B$5:$B$25=$B50)*1,Scoring!K$5:K$25)/SUMPRODUCT((Analysis!$B$5:$B$25=$B50)*1),"")) ->  | I50: =IF($B50="","",IF(COUNTBLANK(I$45)=0,SUMPRODUCT((Analysis!$B$5:$B$25=$B50)*1,Scoring!L$5:L$25)/SUMPRODUCT((Analysis!$B$5:$B$25=$B50)*1),"")) ->  | J50: =IF($B50="","",IF(COUNTBLANK(J$45)=0,SUMPRODUCT((Analysis!$B$5:$B$25=$B50)*1,Scoring!M$5:M$25)/SUMPRODUCT((Analysis!$B$5:$B$25=$B50)*1),"")) ->  | K50: =IF($B50="","",IF(COUNTBLANK(K$45)=0,SUMPRODUCT((Analysis!$B$5:$B$25=$B50)*1,Scoring!N$5:N$25)/SUMPRODUCT((Analysis!$B$5:$B$25=$B50)*1),"")) ->  | L50: =IF($B50="","",IF(COUNTBLANK(L$45)=0,SUMPRODUCT((Analysis!$B$5:$B$25=$B50)*1,Scoring!O$5:O$25)/SUMPRODUCT((Analysis!$B$5:$B$25=$B50)*1),"")) ->  | M50: =IF($B50="","",IF(COUNTBLANK(M$45)=0,SUMPRODUCT((Analysis!$B$5:$B$25=$B50)*1,Scoring!P$5:P$25)/SUMPRODUCT((Analysis!$B$5:$B$25=$B50)*1),"")) ->  | N50: =IF($B50="","",IF(COUNTBLANK(N$45)=0,SUMPRODUCT((Analysis!$B$5:$B$25=$B50)*1,Scoring!Q$5:Q$25)/SUMPRODUCT((Analysis!$B$5:$B$25=$B50)*1),"")) ->  | O50: =IF($B50="","",IF(COUNTBLANK(O$45)=0,SUMPRODUCT((Analysis!$B$5:$B$25=$B50)*1,Scoring!R$5:R$25)/SUMPRODUCT((Analysis!$B$5:$B$25=$B50)*1),"")) ->  | P50: =IF($B50="","",IF(COUNTBLANK(P$45)=0,SUMPRODUCT((Analysis!$B$5:$B$25=$B50)*1,Scoring!S$5:S$25)/SUMPRODUCT((Analysis!$B$5:$B$25=$B50)*1),"")) ->  | Q50: =IF($B50="","",IF(COUNTBLANK(Q$45)=0,SUMPRODUCT((Analysis!$B$5:$B$25=$B50)*1,Scoring!T$5:T$25)/SUMPRODUCT((Analysis!$B$5:$B$25=$B50)*1),"")) ->  | R50: =IF($B50="","",IF(COUNTBLANK(R$45)=0,SUMPRODUCT((Analysis!$B$5:$B$25=$B50)*1,Scoring!U$5:U$25)/SUMPRODUCT((Analysis!$B$5:$B$25=$B50)*1),"")) ->  | S50: =IF($B50="","",IF(COUNTBLANK(S$45)=0,SUMPRODUCT((Analysis!$B$5:$B$25=$B50)*1,Scoring!V$5:V$25)/SUMPRODUCT((Analysis!$B$5:$B$25=$B50)*1),"")) ->  | T50: =IF($B50="","",IF(COUNTBLANK(T$45)=0,SUMPRODUCT((Analysis!$B$5:$B$25=$B50)*1,Scoring!W$5:W$25)/SUMPRODUCT((Analysis!$B$5:$B$25=$B50)*1),"")) ->  | U50: =IF($B50="","",IF(COUNTBLANK(U$45)=0,SUMPRODUCT((Analysis!$B$5:$B$25=$B50)*1,Scoring!X$5:X$25)/SUMPRODUCT((Analysis!$B$5:$B$25=$B50)*1),"")) ->  | V50: =IF($B50="","",IF(COUNTBLANK(V$45)=0,SUMPRODUCT((Analysis!$B$5:$B$25=$B50)*1,Scoring!Y$5:Y$25)/SUMPRODUCT((Analysis!$B$5:$B$25=$B50)*1),"")) -> 
B51: Additional constraints | C51: =IF($B51="","",IF(COUNTBLANK(C$45)=0,SUMPRODUCT((Analysis!$B$5:$B$25=$B51)*1,Scoring!F$5:F$25)/SUMPRODUCT((Analysis!$B$5:$B$25=$B51)*1),"")) ->  | D51: =IF($B51="","",IF(COUNTBLANK(D$45)=0,SUMPRODUCT((Analysis!$B$5:$B$25=$B51)*1,Scoring!G$5:G$25)/SUMPRODUCT((Analysis!$B$5:$B$25=$B51)*1),"")) ->  | E51: =IF($B51="","",IF(COUNTBLANK(E$45)=0,SUMPRODUCT((Analysis!$B$5:$B$25=$B51)*1,Scoring!H$5:H$25)/SUMPRODUCT((Analysis!$B$5:$B$25=$B51)*1),"")) ->  | F51: =IF($B51="","",IF(COUNTBLANK(F$45)=0,SUMPRODUCT((Analysis!$B$5:$B$25=$B51)*1,Scoring!I$5:I$25)/SUMPRODUCT((Analysis!$B$5:$B$25=$B51)*1),"")) ->  | G51: =IF($B51="","",IF(COUNTBLANK(G$45)=0,SUMPRODUCT((Analysis!$B$5:$B$25=$B51)*1,Scoring!J$5:J$25)/SUMPRODUCT((Analysis!$B$5:$B$25=$B51)*1),"")) ->  | H51: =IF($B51="","",IF(COUNTBLANK(H$45)=0,SUMPRODUCT((Analysis!$B$5:$B$25=$B51)*1,Scoring!K$5:K$25)/SUMPRODUCT((Analysis!$B$5:$B$25=$B51)*1),"")) ->  | I51: =IF($B51="","",IF(COUNTBLANK(I$45)=0,SUMPRODUCT((Analysis!$B$5:$B$25=$B51)*1,Scoring!L$5:L$25)/SUMPRODUCT((Analysis!$B$5:$B$25=$B51)*1),"")) ->  | J51: =IF($B51="","",IF(COUNTBLANK(J$45)=0,SUMPRODUCT((Analysis!$B$5:$B$25=$B51)*1,Scoring!M$5:M$25)/SUMPRODUCT((Analysis!$B$5:$B$25=$B51)*1),"")) ->  | K51: =IF($B51="","",IF(COUNTBLANK(K$45)=0,SUMPRODUCT((Analysis!$B$5:$B$25=$B51)*1,Scoring!N$5:N$25)/SUMPRODUCT((Analysis!$B$5:$B$25=$B51)*1),"")) ->  | L51: =IF($B51="","",IF(COUNTBLANK(L$45)=0,SUMPRODUCT((Analysis!$B$5:$B$25=$B51)*1,Scoring!O$5:O$25)/SUMPRODUCT((Analysis!$B$5:$B$25=$B51)*1),"")) ->  | M51: =IF($B51="","",IF(COUNTBLANK(M$45)=0,SUMPRODUCT((Analysis!$B$5:$B$25=$B51)*1,Scoring!P$5:P$25)/SUMPRODUCT((Analysis!$B$5:$B$25=$B51)*1),"")) ->  | N51: =IF($B51="","",IF(COUNTBLANK(N$45)=0,SUMPRODUCT((Analysis!$B$5:$B$25=$B51)*1,Scoring!Q$5:Q$25)/SUMPRODUCT((Analysis!$B$5:$B$25=$B51)*1),"")) ->  | O51: =IF($B51="","",IF(COUNTBLANK(O$45)=0,SUMPRODUCT((Analysis!$B$5:$B$25=$B51)*1,Scoring!R$5:R$25)/SUMPRODUCT((Analysis!$B$5:$B$25=$B51)*1),"")) ->  | P51: =IF($B51="","",IF(COUNTBLANK(P$45)=0,SUMPRODUCT((Analysis!$B$5:$B$25=$B51)*1,Scoring!S$5:S$25)/SUMPRODUCT((Analysis!$B$5:$B$25=$B51)*1),"")) ->  | Q51: =IF($B51="","",IF(COUNTBLANK(Q$45)=0,SUMPRODUCT((Analysis!$B$5:$B$25=$B51)*1,Scoring!T$5:T$25)/SUMPRODUCT((Analysis!$B$5:$B$25=$B51)*1),"")) ->  | R51: =IF($B51="","",IF(COUNTBLANK(R$45)=0,SUMPRODUCT((Analysis!$B$5:$B$25=$B51)*1,Scoring!U$5:U$25)/SUMPRODUCT((Analysis!$B$5:$B$25=$B51)*1),"")) ->  | S51: =IF($B51="","",IF(COUNTBLANK(S$45)=0,SUMPRODUCT((Analysis!$B$5:$B$25=$B51)*1,Scoring!V$5:V$25)/SUMPRODUCT((Analysis!$B$5:$B$25=$B51)*1),"")) ->  | T51: =IF($B51="","",IF(COUNTBLANK(T$45)=0,SUMPRODUCT((Analysis!$B$5:$B$25=$B51)*1,Scoring!W$5:W$25)/SUMPRODUCT((Analysis!$B$5:$B$25=$B51)*1),"")) ->  | U51: =IF($B51="","",IF(COUNTBLANK(U$45)=0,SUMPRODUCT((Analysis!$B$5:$B$25=$B51)*1,Scoring!X$5:X$25)/SUMPRODUCT((Analysis!$B$5:$B$25=$B51)*1),"")) ->  | V51: =IF($B51="","",IF(COUNTBLANK(V$45)=0,SUMPRODUCT((Analysis!$B$5:$B$25=$B51)*1,Scoring!Y$5:Y$25)/SUMPRODUCT((Analysis!$B$5:$B$25=$B51)*1),"")) -> 
B52: =IF(ROWS($B$46:$B52)>'Targeted indicators'!$N$8,"",INDEX('Targeted indicators'!$B:$B,MATCH(ROWS($B$46:$B52),'Targeted indicators'!$O:$O,0))) ->  | C52: =IF(B52="","",AVERAGEIF(Analysis!$B$5:$B$25,B52,Analysis!$C$5:$C$25)) -> 
B53: =IF(ROWS($B$46:$B53)>'Targeted indicators'!$N$8,"",INDEX('Targeted indicators'!$B:$B,MATCH(ROWS($B$46:$B53),'Targeted indicators'!$O:$O,0))) ->  | C53: =IF(B53="","",AVERAGEIF(Analysis!$B$5:$B$25,B53,Analysis!$C$5:$C$25)) -> 
B54: =IF(ROWS($B$46:$B54)>'Targeted indicators'!$N$8,"",INDEX('Targeted indicators'!$B:$B,MATCH(ROWS($B$46:$B54),'Targeted indicators'!$O:$O,0))) ->  | C54: =IF(B54="","",AVERAGEIF(Analysis!$B$5:$B$25,B54,Analysis!$C$5:$C$25)) ->  | D54: =IF($B54="","",SUMPRODUCT(Scoring!$E$6:$E$25,(Scoring!$B$6:$B$25=$B54)*1,Scoring!G$6:G$25)) ->  | E54: =IF($B54="","",SUMPRODUCT(Scoring!$E$6:$E$25,(Scoring!$B$6:$B$25=$B54)*1,Scoring!H$6:H$25)) ->  | F54: =IF($B54="","",SUMPRODUCT(Scoring!$E$6:$E$25,(Scoring!$B$6:$B$25=$B54)*1,Scoring!I$6:I$25)) ->  | G54: =IF($B54="","",SUMPRODUCT(Scoring!$E$6:$E$25,(Scoring!$B$6:$B$25=$B54)*1,Scoring!J$6:J$25)) ->  | H54: =IF($B54="","",SUMPRODUCT(Scoring!$E$6:$E$25,(Scoring!$B$6:$B$25=$B54)*1,Scoring!K$6:K$25)) ->  | I54: =IF($B54="","",SUMPRODUCT(Scoring!$E$6:$E$25,(Scoring!$B$6:$B$25=$B54)*1,Scoring!L$6:L$25)) ->  | J54: =IF($B54="","",SUMPRODUCT(Scoring!$E$6:$E$25,(Scoring!$B$6:$B$25=$B54)*1,Scoring!M$6:M$25)) ->  | K54: =IF($B54="","",SUMPRODUCT(Scoring!$E$6:$E$25,(Scoring!$B$6:$B$25=$B54)*1,Scoring!N$6:N$25)) ->  | L54: =IF($B54="","",SUMPRODUCT(Scoring!$E$6:$E$25,(Scoring!$B$6:$B$25=$B54)*1,Scoring!O$6:O$25)) -> 
B55: Final Score | C55: =SUM(C46:C54) -> 0 | D55: =SUM(D46:D54) -> 0 | E55: 0 | F55: 0 | G55: 0 | H55: 0 | I55: 0 | J55: 0 | K55: 0 | L55: 0
B56: Rank | C56: =IF(C55<>0,RANK(C55,$C$55:$L$55),"") ->  | D56: =IF(D55<>0,RANK(D55,$C$55:$L$55),"") -> 

Sheet Analysis
B2: Analysis An analysis of the results is shown in the table below. The table displays the following: Criteria weighting - weightings determined through the pairwise method in the Multi-criteria Assessment Criteria Weighting Worksheet Targeted indicator weighting - determined by dividing criteria weighting by the number of targeted indicators within the criterion. Weighted scores - determined by multiplying scores by the targeted indicator weightings Overall scores - sum of the weighted scores for each option.
B4: Criteria | C4: Criteria Weighting | D4: Targeted indicator | E4: Weighting of issue within criteria (%) | F4: Targeted indicator weighting | G4: =Scoring!E4 -> Base Case | H4: =Scoring!F4 ->  | I4: =Scoring!G4 ->  | J4: =Scoring!H4 ->  | K4: =Scoring!I4 ->  | L4: =Scoring!J4 ->  | M4: =Scoring!K4 ->  | N4: =Scoring!L4 ->  | O4: =Scoring!M4 ->  | P4: =Scoring!N4 ->  | Q4: =Scoring!O4 ->  | R4: =Scoring!P4 ->  | S4: =Scoring!Q4 ->  | T4: =Scoring!R4 ->  | U4: =Scoring!S4 ->  | V4: =Scoring!T4 ->  | W4: =Scoring!U4 ->  | X4: =Scoring!V4 ->  | Y4: =Scoring!W4 ->  | Z4: =Scoring!X4 ->  | AA4: =Scoring!Y4 -> 
B5: =Scoring!B5 -> Safety | C5: =IF(COUNTBLANK(B5)=0,VLOOKUP(B5,'MCA criteria weighting'!$D$7:$M$12,10,FALSE),"") -> 0.1666666667 | D5: =Scoring!C5 -> Ability to evacuate to safer locations or evacuation centres | E5: =IF(B5="","",VLOOKUP(D5,'MCA indicator weighting'!D31:S42,16,FALSE)) -> 0.3333333333 | F5: =E5*C5 -> 0.05555555556 | G5: =IF($B5="","",IF(G$4="","",AVERAGEIF(Scoring!$C$5:$C$37,$D5,Scoring!E$5:E$30)*$E5*$C5)) -> 0.1666666667 | H5: =IF($B5="","",IF(H$4="","",AVERAGEIF(Scoring!$C$5:$C$37,$D5,Scoring!F$5:F$30)*$E5*$C5)) ->  | I5: =IF($B5="","",IF(I$4="","",AVERAGEIF(Scoring!$C$5:$C$37,$D5,Scoring!G$5:G$30)*$E5*$C5)) ->  | J5: =IF($B5="","",IF(J$4="","",AVERAGEIF(Scoring!$C$5:$C$37,$D5,Scoring!H$5:H$30)*$E5*$C5)) ->  | K5: =IF($B5="","",IF(K$4="","",AVERAGEIF(Scoring!$C$5:$C$37,$D5,Scoring!I$5:I$30)*$E5*$C5)) ->  | L5: =IF($B5="","",IF(L$4="","",AVERAGEIF(Scoring!$C$5:$C$37,$D5,Scoring!J$5:J$30)*$E5*$C5)) ->  | M5: =IF($B5="","",IF(M$4="","",AVERAGEIF(Scoring!$C$5:$C$37,$D5,Scoring!K$5:K$30)*$E5*$C5)) ->  | N5: =IF($B5="","",IF(N$4="","",AVERAGEIF(Scoring!$C$5:$C$37,$D5,Scoring!L$5:L$30)*$E5*$C5)) ->  | O5: =IF($B5="","",IF(O$4="","",AVERAGEIF(Scoring!$C$5:$C$37,$D5,Scoring!M$5:M$30)*$E5*$C5)) ->  | P5: =IF($B5="","",IF(P$4="","",AVERAGEIF(Scoring!$C$5:$C$37,$D5,Scoring!N$5:N$30)*$E5*$C5)) ->  | Q5: =IF($B5="","",IF(Q$4="","",AVERAGEIF(Scoring!$C$5:$C$37,$D5,Scoring!O$5:O$30)*$E5*$C5)) ->  | R5: =IF($B5="","",IF(R$4="","",AVERAGEIF(Scoring!$C$5:$C$37,$D5,Scoring!P$5:P$30)*$E5*$C5)) ->  | S5: =IF($B5="","",IF(S$4="","",AVERAGEIF(Scoring!$C$5:$C$37,$D5,Scoring!Q$5:Q$30)*$E5*$C5)) ->  | T5: =IF($B5="","",IF(T$4="","",AVERAGEIF(Scoring!$C$5:$C$37,$D5,Scoring!R$5:R$30)*$E5*$C5)) ->  | U5: =IF($B5="","",IF(U$4="","",AVERAGEIF(Scoring!$C$5:$C$37,$D5,Scoring!S$5:S$30)*$E5*$C5)) ->  | V5: =IF($B5="","",IF(V$4="","",AVERAGEIF(Scoring!$C$5:$C$37,$D5,Scoring!T$5:T$30)*$E5*$C5)) ->  | W5: =IF($B5="","",IF(W$4="","",AVERAGEIF(Scoring!$C$5:$C$37,$D5,Scoring!U$5:U$30)*$E5*$C5)) ->  | X5: =IF($B5="","",IF(X$4="","",AVERAGEIF(Scoring!$C$5:$C$37,$D5,Scoring!V$5:V$30)*$E5*$C5)) ->  | Y5: =IF($B5="","",IF(Y$4="","",AVERAGEIF(Scoring!$C$5:$C$37,$D5,Scoring!W$5:W$30)*$E5*$C5)) ->  | Z5: =IF($B5="","",IF(Z$4="","",AVERAGEIF(Scoring!$C$5:$C$37,$D5,Scoring!X$5:X$30)*$E5*$C5)) ->  | AA5: =IF($B5="","",IF(AA$4="","",AVERAGEIF(Scoring!$C$5:$C$37,$D5,Scoring!Y$5:Y$30)*$E5*$C5)) -> 
B6: =Scoring!B6 -> Safety | C6: =IF(COUNTBLANK(B6)=0,VLOOKUP(B6,'MCA criteria weighting'!$D$7:$M$12,10,FALSE),"") -> 0.1666666667 | D6: =Scoring!C6 -> Population at risk | E6: =IF(B6="","",VLOOKUP(D6,'MCA indicator weighting'!D32:S43,16,FALSE)) -> 0.3333333333 | F6: =E6*C6 -> 0.05555555556 | G6: =IF($B6="","",IF(G$4="","",AVERAGEIF(Scoring!$C$5:$C$37,$D6,Scoring!E$5:E$30)*$E6*$C6)) -> 0.1666666667 | H6: =IF($B6="","",IF(H$4="","",AVERAGEIF(Scoring!$C$5:$C$37,$D6,Scoring!F$5:F$30)*$E6*$C6)) ->  | I6: =IF($B6="","",IF(I$4="","",AVERAGEIF(Scoring!$C$5:$C$37,$D6,Scoring!G$5:G$30)*$E6*$C6)) ->  | J6: =IF($B6="","",IF(J$4="","",AVERAGEIF(Scoring!$C$5:$C$37,$D6,Scoring!H$5:H$30)*$E6*$C6)) ->  | K6: =IF($B6="","",IF(K$4="","",AVERAGEIF(Scoring!$C$5:$C$37,$D6,Scoring!I$5:I$30)*$E6*$C6)) ->  | L6: =IF($B6="","",IF(L$4="","",AVERAGEIF(Scoring!$C$5:$C$37,$D6,Scoring!J$5:J$30)*$E6*$C6)) ->  | M6: =IF($B6="","",IF(M$4="","",AVERAGEIF(Scoring!$C$5:$C$37,$D6,Scoring!K$5:K$30)*$E6*$C6)) ->  | N6: =IF($B6="","",IF(N$4="","",AVERAGEIF(Scoring!$C$5:$C$37,$D6,Scoring!L$5:L$30)*$E6*$C6)) ->  | O6: =IF($B6="","",IF(O$4="","",AVERAGEIF(Scoring!$C$5:$C$37,$D6,Scoring!M$5:M$30)*$E6*$C6)) ->  | P6: =IF($B6="","",IF(P$4="","",AVERAGEIF(Scoring!$C$5:$C$37,$D6,Scoring!N$5:N$30)*$E6*$C6)) ->  | Q6: =IF($B6="","",IF(Q$4="","",AVERAGEIF(Scoring!$C$5:$C$37,$D6,Scoring!O$5:O$30)*$E6*$C6)) ->  | R6: =IF($B6="","",IF(R$4="","",AVERAGEIF(Scoring!$C$5:$C$37,$D6,Scoring!P$5:P$30)*$E6*$C6)) ->  | S6: =IF($B6="","",IF(S$4="","",AVERAGEIF(Scoring!$C$5:$C$37,$D6,Scoring!Q$5:Q$30)*$E6*$C6)) ->  | T6: =IF($B6="","",IF(T$4="","",AVERAGEIF(Scoring!$C$5:$C$37,$D6,Scoring!R$5:R$30)*$E6*$C6)) ->  | U6: =IF($B6="","",IF(U$4="","",AVERAGEIF(Scoring!$C$5:$C$37,$D6,Scoring!S$5:S$30)*$E6*$C6)) ->  | V6: =IF($B6="","",IF(V$4="","",AVERAGEIF(Scoring!$C$5:$C$37,$D6,Scoring!T$5:T$30)*$E6*$C6)) ->  | W6: =IF($B6="","",IF(W$4="","",AVERAGEIF(Scoring!$C$5:$C$37,$D6,Scoring!U$5:U$30)*$E6*$C6)) ->  | X6: =IF($B6="","",IF(X$4="","",AVERAGEIF(Scoring!$C$5:$C$37,$D6,Scoring!V$5:V$30)*$E6*$C6)) ->  | Y6: =IF($B6="","",IF(Y$4="","",AVERAGEIF(Scoring!$C$5:$C$37,$D6,Scoring!W$5:W$30)*$E6*$C6)) ->  | Z6: =IF($B6="","",IF(Z$4="","",AVERAGEIF(Scoring!$C$5:$C$37,$D6,Scoring!X$5:X$30)*$E6*$C6)) ->  | AA6: =IF($B6="","",IF(AA$4="","",AVERAGEIF(Scoring!$C$5:$C$37,$D6,Scoring!Y$5:Y$30)*$E6*$C6)) -> 
B7: =Scoring!B7 -> Safety | C7: =IF(COUNTBLANK(B7)=0,VLOOKUP(B7,'MCA criteria weighting'!$D$7:$M$12,10,FALSE),"") -> 0.1666666667 | D7: =Scoring!C7 -> Isolation duration and risk | E7: =IF(B7="","",VLOOKUP(D7,'MCA indicator weighting'!D33:S44,16,FALSE)) -> 0.3333333333 | F7: 0.05555555556 | G7: =IF($B7="","",IF(G$4="","",AVERAGEIF(Scoring!$C$5:$C$37,$D7,Scoring!E$5:E$30)*$E7*$C7)) -> 0.1666666667 | H7: =IF($B7="","",IF(H$4="","",AVERAGEIF(Scoring!$C$5:$C$37,$D7,Scoring!F$5:F$30)*$E7*$C7)) ->  | I7: =IF($B7="","",IF(I$4="","",AVERAGEIF(Scoring!$C$5:$C$37,$D7,Scoring!G$5:G$30)*$E7*$C7)) ->  | J7: =IF($B7="","",IF(J$4="","",AVERAGEIF(Scoring!$C$5:$C$37,$D7,Scoring!H$5:H$30)*$E7*$C7)) ->  | K7: =IF($B7="","",IF(K$4="","",AVERAGEIF(Scoring!$C$5:$C$37,$D7,Scoring!I$5:I$30)*$E7*$C7)) ->  | L7: =IF($B7="","",IF(L$4="","",AVERAGEIF(Scoring!$C$5:$C$37,$D7,Scoring!J$5:J$30)*$E7*$C7)) ->  | M7: =IF($B7="","",IF(M$4="","",AVERAGEIF(Scoring!$C$5:$C$37,$D7,Scoring!K$5:K$30)*$E7*$C7)) ->  | N7: =IF($B7="","",IF(N$4="","",AVERAGEIF(Scoring!$C$5:$C$37,$D7,Scoring!L$5:L$30)*$E7*$C7)) ->  | O7: =IF($B7="","",IF(O$4="","",AVERAGEIF(Scoring!$C$5:$C$37,$D7,Scoring!M$5:M$30)*$E7*$C7)) ->  | P7: =IF($B7="","",IF(P$4="","",AVERAGEIF(Scoring!$C$5:$C$37,$D7,Scoring!N$5:N$30)*$E7*$C7)) ->  | Q7: =IF($B7="","",IF(Q$4="","",AVERAGEIF(Scoring!$C$5:$C$37,$D7,Scoring!O$5:O$30)*$E7*$C7)) ->  | R7: =IF($B7="","",IF(R$4="","",AVERAGEIF(Scoring!$C$5:$C$37,$D7,Scoring!P$5:P$30)*$E7*$C7)) ->  | S7: =IF($B7="","",IF(S$4="","",AVERAGEIF(Scoring!$C$5:$C$37,$D7,Scoring!Q$5:Q$30)*$E7*$C7)) ->  | T7: =IF($B7="","",IF(T$4="","",AVERAGEIF(Scoring!$C$5:$C$37,$D7,Scoring!R$5:R$30)*$E7*$C7)) ->  | U7: =IF($B7="","",IF(U$4="","",AVERAGEIF(Scoring!$C$5:$C$37,$D7,Scoring!S$5:S$30)*$E7*$C7)) ->  | V7: =IF($B7="","",IF(V$4="","",AVERAGEIF(Scoring!$C$5:$C$37,$D7,Scoring!T$5:T$30)*$E7*$C7)) ->  | W7: =IF($B7="","",IF(W$4="","",AVERAGEIF(Scoring!$C$5:$C$37,$D7,Scoring!U$5:U$30)*$E7*$C7)) ->  | X7: =IF($B7="","",IF(X$4="","",AVERAGEIF(Scoring!$C$5:$C$37,$D7,Scoring!V$5:V$30)*$E7*$C7)) ->  | Y7: =IF($B7="","",IF(Y$4="","",AVERAGEIF(Scoring!$C$5:$C$37,$D7,Scoring!W$5:W$30)*$E7*$C7)) ->  | Z7: =IF($B7="","",IF(Z$4="","",AVERAGEIF(Scoring!$C$5:$C$37,$D7,Scoring!X$5:X$30)*$E7*$C7)) ->  | AA7: =IF($B7="","",IF(AA$4="","",AVERAGEIF(Scoring!$C$5:$C$37,$D7,Scoring!Y$5:Y$30)*$E7*$C7)) -> 
B8: =Scoring!B8 -> Economic | C8: =IF(COUNTBLANK(B8)=0,VLOOKUP(B8,'MCA criteria weighting'!$D$7:$M$12,10,FALSE),"") -> 0.1666666667 | D8: =Scoring!C8 -> Economic growth and investment | E8: =IF(B8="","",VLOOKUP(D8,'MCA indicator weighting'!D34:S45,16,FALSE)) -> 0.5 | F8: 0.08333333333 | G8: =IF($B8="","",IF(G$4="","",AVERAGEIF(Scoring!$C$5:$C$37,$D8,Scoring!E$5:E$30)*$E8*$C8)) -> 0.25 | H8: =IF($B8="","",IF(H$4="","",AVERAGEIF(Scoring!$C$5:$C$37,$D8,Scoring!F$5:F$30)*$E8*$C8)) ->  | I8: =IF($B8="","",IF(I$4="","",AVERAGEIF(Scoring!$C$5:$C$37,$D8,Scoring!G$5:G$30)*$E8*$C8)) ->  | J8: =IF($B8="","",IF(J$4="","",AVERAGEIF(Scoring!$C$5:$C$37,$D8,Scoring!H$5:H$30)*$E8*$C8)) ->  | K8: =IF($B8="","",IF(K$4="","",AVERAGEIF(Scoring!$C$5:$C$37,$D8,Scoring!I$5:I$30)*$E8*$C8)) ->  | L8: =IF($B8="","",IF(L$4="","",AVERAGEIF(Scoring!$C$5:$C$37,$D8,Scoring!J$5:J$30)*$E8*$C8)) ->  | M8: =IF($B8="","",IF(M$4="","",AVERAGEIF(Scoring!$C$5:$C$37,$D8,Scoring!K$5:K$30)*$E8*$C8)) ->  | N8: =IF($B8="","",IF(N$4="","",AVERAGEIF(Scoring!$C$5:$C$37,$D8,Scoring!L$5:L$30)*$E8*$C8)) ->  | O8: =IF($B8="","",IF(O$4="","",AVERAGEIF(Scoring!$C$5:$C$37,$D8,Scoring!M$5:M$30)*$E8*$C8)) ->  | P8: =IF($B8="","",IF(P$4="","",AVERAGEIF(Scoring!$C$5:$C$37,$D8,Scoring!N$5:N$30)*$E8*$C8)) ->  | Q8: =IF($B8="","",IF(Q$4="","",AVERAGEIF(Scoring!$C$5:$C$37,$D8,Scoring!O$5:O$30)*$E8*$C8)) ->  | R8: =IF($B8="","",IF(R$4="","",AVERAGEIF(Scoring!$C$5:$C$37,$D8,Scoring!P$5:P$30)*$E8*$C8)) ->  | S8: =IF($B8="","",IF(S$4="","",AVERAGEIF(Scoring!$C$5:$C$37,$D8,Scoring!Q$5:Q$30)*$E8*$C8)) ->  | T8: =IF($B8="","",IF(T$4="","",AVERAGEIF(Scoring!$C$5:$C$37,$D8,Scoring!R$5:R$30)*$E8*$C8)) ->  | U8: =IF($B8="","",IF(U$4="","",AVERAGEIF(Scoring!$C$5:$C$37,$D8,Scoring!S$5:S$30)*$E8*$C8)) ->  | V8: =IF($B8="","",IF(V$4="","",AVERAGEIF(Scoring!$C$5:$C$37,$D8,Scoring!T$5:T$30)*$E8*$C8)) ->  | W8: =IF($B8="","",IF(W$4="","",AVERAGEIF(Scoring!$C$5:$C$37,$D8,Scoring!U$5:U$30)*$E8*$C8)) ->  | X8: =IF($B8="","",IF(X$4="","",AVERAGEIF(Scoring!$C$5:$C$37,$D8,Scoring!V$5:V$30)*$E8*$C8)) ->  | Y8: =IF($B8="","",IF(Y$4="","",AVERAGEIF(Scoring!$C$5:$C$37,$D8,Scoring!W$5:W$30)*$E8*$C8)) ->  | Z8: =IF($B8="","",IF(Z$4="","",AVERAGEIF(Scoring!$C$5:$C$37,$D8,Scoring!X$5:X$30)*$E8*$C8)) ->  | AA8: =IF($B8="","",IF(AA$4="","",AVERAGEIF(Scoring!$C$5:$C$37,$D8,Scoring!Y$5:Y$30)*$E8*$C8)) -> 
B9: =Scoring!B9 -> Economic | C9: =IF(COUNTBLANK(B9)=0,VLOOKUP(B9,'MCA criteria weighting'!$D$7:$M$12,10,FALSE),"") -> 0.1666666667 | D9: =Scoring!C9 -> Damages and costs (property, assets and operations) | E9: =IF(B9="","",VLOOKUP(D9,'MCA indicator weighting'!D35:S46,16,FALSE)) -> 0.5 | F9: 0.08333333333 | G9: =IF($B9="","",IF(G$4="","",AVERAGEIF(Scoring!$C$5:$C$37,$D9,Scoring!E$5:E$30)*$E9*$C9)) -> 0.25 | H9: =IF($B9="","",IF(H$4="","",AVERAGEIF(Scoring!$C$5:$C$37,$D9,Scoring!F$5:F$30)*$E9*$C9)) ->  | I9: =IF($B9="","",IF(I$4="","",AVERAGEIF(Scoring!$C$5:$C$37,$D9,Scoring!G$5:G$30)*$E9*$C9)) ->  | J9: =IF($B9="","",IF(J$4="","",AVERAGEIF(Scoring!$C$5:$C$37,$D9,Scoring!H$5:H$30)*$E9*$C9)) ->  | K9: =IF($B9="","",IF(K$4="","",AVERAGEIF(Scoring!$C$5:$C$37,$D9,Scoring!I$5:I$30)*$E9*$C9)) ->  | L9: =IF($B9="","",IF(L$4="","",AVERAGEIF(Scoring!$C$5:$C$37,$D9,Scoring!J$5:J$30)*$E9*$C9)) ->  | M9: =IF($B9="","",IF(M$4="","",AVERAGEIF(Scoring!$C$5:$C$37,$D9,Scoring!K$5:K$30)*$E9*$C9)) ->  | N9: =IF($B9="","",IF(N$4="","",AVERAGEIF(Scoring!$C$5:$C$37,$D9,Scoring!L$5:L$30)*$E9*$C9)) ->  | O9: =IF($B9="","",IF(O$4="","",AVERAGEIF(Scoring!$C$5:$C$37,$D9,Scoring!M$5:M$30)*$E9*$C9)) ->  | P9: =IF($B9="","",IF(P$4="","",AVERAGEIF(Scoring!$C$5:$C$37,$D9,Scoring!N$5:N$30)*$E9*$C9)) ->  | Q9: =IF($B9="","",IF(Q$4="","",AVERAGEIF(Scoring!$C$5:$C$37,$D9,Scoring!O$5:O$30)*$E9*$C9)) ->  | R9: =IF($B9="","",IF(R$4="","",AVERAGEIF(Scoring!$C$5:$C$37,$D9,Scoring!P$5:P$30)*$E9*$C9)) ->  | S9: =IF($B9="","",IF(S$4="","",AVERAGEIF(Scoring!$C$5:$C$37,$D9,Scoring!Q$5:Q$30)*$E9*$C9)) ->  | T9: =IF($B9="","",IF(T$4="","",AVERAGEIF(Scoring!$C$5:$C$37,$D9,Scoring!R$5:R$30)*$E9*$C9)) ->  | U9: =IF($B9="","",IF(U$4="","",AVERAGEIF(Scoring!$C$5:$C$37,$D9,Scoring!S$5:S$30)*$E9*$C9)) ->  | V9: =IF($B9="","",IF(V$4="","",AVERAGEIF(Scoring!$C$5:$C$37,$D9,Scoring!T$5:T$30)*$E9*$C9)) ->  | W9: =IF($B9="","",IF(W$4="","",AVERAGEIF(Scoring!$C$5:$C$37,$D9,Scoring!U$5:U$30)*$E9*$C9)) ->  | X9: =IF($B9="","",IF(X$4="","",AVERAGEIF(Scoring!$C$5:$C$37,$D9,Scoring!V$5:V$30)*$E9*$C9)) ->  | Y9: =IF($B9="","",IF(Y$4="","",AVERAGEIF(Scoring!$C$5:$C$37,$D9,Scoring!W$5:W$30)*$E9*$C9)) ->  | Z9: =IF($B9="","",IF(Z$4="","",AVERAGEIF(Scoring!$C$5:$C$37,$D9,Scoring!X$5:X$30)*$E9*$C9)) ->  | AA9: =IF($B9="","",IF(AA$4="","",AVERAGEIF(Scoring!$C$5:$C$37,$D9,Scoring!Y$5:Y$30)*$E9*$C9)) -> 
B10: =Scoring!B10 -> Environmental and cultural heritage impact | C10: =IF(COUNTBLANK(B10)=0,VLOOKUP(B10,'MCA criteria weighting'!$D$7:$M$12,10,FALSE),"") -> 0.1666666667 | D10: =Scoring!C10 -> Overall impact on fauna connectivity (fish passage/fauna movement) | E10: =IF(B10="","",VLOOKUP(D10,'MCA indicator weighting'!D36:S47,16,FALSE)) -> 0.3333333333 | F10: 0.05555555556 | G10: =IF($B10="","",IF(G$4="","",AVERAGEIF(Scoring!$C$5:$C$37,$D10,Scoring!E$5:E$30)*$E10*$C10)) -> 0.1666666667 | H10: =IF($B10="","",IF(H$4="","",AVERAGEIF(Scoring!$C$5:$C$37,$D10,Scoring!F$5:F$30)*$E10*$C10)) ->  | I10: =IF($B10="","",IF(I$4="","",AVERAGEIF(Scoring!$C$5:$C$37,$D10,Scoring!G$5:G$30)*$E10*$C10)) ->  | J10: =IF($B10="","",IF(J$4="","",AVERAGEIF(Scoring!$C$5:$C$37,$D10,Scoring!H$5:H$30)*$E10*$C10)) ->  | K10: =IF($B10="","",IF(K$4="","",AVERAGEIF(Scoring!$C$5:$C$37,$D10,Scoring!I$5:I$30)*$E10*$C10)) ->  | L10: =IF($B10="","",IF(L$4="","",AVERAGEIF(Scoring!$C$5:$C$37,$D10,Scoring!J$5:J$30)*$E10*$C10)) ->  | M10: =IF($B10="","",IF(M$4="","",AVERAGEIF(Scoring!$C$5:$C$37,$D10,Scoring!K$5:K$30)*$E10*$C10)) ->  | N10: =IF($B10="","",IF(N$4="","",AVERAGEIF(Scoring!$C$5:$C$37,$D10,Scoring!L$5:L$30)*$E10*$C10)) ->  | O10: =IF($B10="","",IF(O$4="","",AVERAGEIF(Scoring!$C$5:$C$37,$D10,Scoring!M$5:M$30)*$E10*$C10)) ->  | P10: =IF($B10="","",IF(P$4="","",AVERAGEIF(Scoring!$C$5:$C$37,$D10,Scoring!N$5:N$30)*$E10*$C10)) ->  | Q10: =IF($B10="","",IF(Q$4="","",AVERAGEIF(Scoring!$C$5:$C$37,$D10,Scoring!O$5:O$30)*$E10*$C10)) ->  | R10: =IF($B10="","",IF(R$4="","",AVERAGEIF(Scoring!$C$5:$C$37,$D10,Scoring!P$5:P$30)*$E10*$C10)) ->  | S10: =IF($B10="","",IF(S$4="","",AVERAGEIF(Scoring!$C$5:$C$37,$D10,Scoring!Q$5:Q$30)*$E10*$C10)) ->  | T10: =IF($B10="","",IF(T$4="","",AVERAGEIF(Scoring!$C$5:$C$37,$D10,Scoring!R$5:R$30)*$E10*$C10)) ->  | U10: =IF($B10="","",IF(U$4="","",AVERAGEIF(Scoring!$C$5:$C$37,$D10,Scoring!S$5:S$30)*$E10*$C10)) ->  | V10: =IF($B10="","",IF(V$4="","",AVERAGEIF(Scoring!$C$5:$C$37,$D10,Scoring!T$5:T$30)*$E10*$C10)) ->  | W10: =IF($B10="","",IF(W$4="","",AVERAGEIF(Scoring!$C$5:$C$37,$D10,Scoring!U$5:U$30)*$E10*$C10)) ->  | X10: =IF($B10="","",IF(X$4="","",AVERAGEIF(Scoring!$C$5:$C$37,$D10,Scoring!V$5:V$30)*$E10*$C10)) ->  | Y10: =IF($B10="","",IF(Y$4="","",AVERAGEIF(Scoring!$C$5:$C$37,$D10,Scoring!W$5:W$30)*$E10*$C10)) ->  | Z10: =IF($B10="","",IF(Z$4="","",AVERAGEIF(Scoring!$C$5:$C$37,$D10,Scoring!X$5:X$30)*$E10*$C10)) ->  | AA10: =IF($B10="","",IF(AA$4="","",AVERAGEIF(Scoring!$C$5:$C$37,$D10,Scoring!Y$5:Y$30)*$E10*$C10)) -> 
B11: =Scoring!B11 -> Environmental and cultural heritage impact | C11: =IF(COUNTBLANK(B11)=0,VLOOKUP(B11,'MCA criteria weighting'!$D$7:$M$12,10,FALSE),"") -> 0.1666666667 | D11: =Scoring!C11 -> Overall impacts to vegetation and habitat | E11: =IF(B11="","",VLOOKUP(D11,'MCA indicator weighting'!D37:S48,16,FALSE)) -> 0.3333333333 | F11: 0.05555555556 | G11: =IF($B11="","",IF(G$4="","",AVERAGEIF(Scoring!$C$5:$C$37,$D11,Scoring!E$5:E$30)*$E11*$C11)) -> 0.1666666667 | H11: =IF($B11="","",IF(H$4="","",AVERAGEIF(Scoring!$C$5:$C$37,$D11,Scoring!F$5:F$30)*$E11*$C11)) ->  | I11: =IF($B11="","",IF(I$4="","",AVERAGEIF(Scoring!$C$5:$C$37,$D11,Scoring!G$5:G$30)*$E11*$C11)) ->  | J11: =IF($B11="","",IF(J$4="","",AVERAGEIF(Scoring!$C$5:$C$37,$D11,Scoring!H$5:H$30)*$E11*$C11)) ->  | K11: =IF($B11="","",IF(K$4="","",AVERAGEIF(Scoring!$C$5:$C$37,$D11,Scoring!I$5:I$30)*$E11*$C11)) ->  | L11: =IF($B11="","",IF(L$4="","",AVERAGEIF(Scoring!$C$5:$C$37,$D11,Scoring!J$5:J$30)*$E11*$C11)) ->  | M11: =IF($B11="","",IF(M$4="","",AVERAGEIF(Scoring!$C$5:$C$37,$D11,Scoring!K$5:K$30)*$E11*$C11)) ->  | N11: =IF($B11="","",IF(N$4="","",AVERAGEIF(Scoring!$C$5:$C$37,$D11,Scoring!L$5:L$30)*$E11*$C11)) ->  | O11: =IF($B11="","",IF(O$4="","",AVERAGEIF(Scoring!$C$5:$C$37,$D11,Scoring!M$5:M$30)*$E11*$C11)) ->  | P11: =IF($B11="","",IF(P$4="","",AVERAGEIF(Scoring!$C$5:$C$37,$D11,Scoring!N$5:N$30)*$E11*$C11)) ->  | Q11: =IF($B11="","",IF(Q$4="","",AVERAGEIF(Scoring!$C$5:$C$37,$D11,Scoring!O$5:O$30)*$E11*$C11)) ->  | R11: =IF($B11="","",IF(R$4="","",AVERAGEIF(Scoring!$C$5:$C$37,$D11,Scoring!P$5:P$30)*$E11*$C11)) ->  | S11: =IF($B11="","",IF(S$4="","",AVERAGEIF(Scoring!$C$5:$C$37,$D11,Scoring!Q$5:Q$30)*$E11*$C11)) ->  | T11: =IF($B11="","",IF(T$4="","",AVERAGEIF(Scoring!$C$5:$C$37,$D11,Scoring!R$5:R$30)*$E11*$C11)) ->  | U11: =IF($B11="","",IF(U$4="","",AVERAGEIF(Scoring!$C$5:$C$37,$D11,Scoring!S$5:S$30)*$E11*$C11)) ->  | V11: =IF($B11="","",IF(V$4="","",AVERAGEIF(Scoring!$C$5:$C$37,$D11,Scoring!T$5:T$30)*$E11*$C11)) ->  | W11: =IF($B11="","",IF(W$4="","",AVERAGEIF(Scoring!$C$5:$C$37,$D11,Scoring!U$5:U$30)*$E11*$C11)) ->  | X11: =IF($B11="","",IF(X$4="","",AVERAGEIF(Scoring!$C$5:$C$37,$D11,Scoring!V$5:V$30)*$E11*$C11)) ->  | Y11: =IF($B11="","",IF(Y$4="","",AVERAGEIF(Scoring!$C$5:$C$37,$D11,Scoring!W$5:W$30)*$E11*$C11)) ->  | Z11: =IF($B11="","",IF(Z$4="","",AVERAGEIF(Scoring!$C$5:$C$37,$D11,Scoring!X$5:X$30)*$E11*$C11)) ->  | AA11: =IF($B11="","",IF(AA$4="","",AVERAGEIF(Scoring!$C$5:$C$37,$D11,Scoring!Y$5:Y$30)*$E11*$C11)) -> 
B12: =Scoring!B12 -> Environmental and cultural heritage impact | C12: =IF(COUNTBLANK(B12)=0,VLOOKUP(B12,'MCA criteria weighting'!$D$7:$M$12,10,FALSE),"") -> 0.1666666667 | D12: =Scoring!C12 -> Impact on cultural heritage sites | E12: =IF(B12="","",VLOOKUP(D12,'MCA indicator weighting'!D38:S49,16,FALSE)) -> 0.3333333333 | F12: 0.05555555556 | G12: =IF($B12="","",IF(G$4="","",AVERAGEIF(Scoring!$C$5:$C$37,$D12,Scoring!E$5:E$30)*$E12*$C12)) -> 0.1666666667 | H12: =IF($B12="","",IF(H$4="","",AVERAGEIF(Scoring!$C$5:$C$37,$D12,Scoring!F$5:F$30)*$E12*$C12)) ->  | I12: =IF($B12="","",IF(I$4="","",AVERAGEIF(Scoring!$C$5:$C$37,$D12,Scoring!G$5:G$30)*$E12*$C12)) ->  | J12: =IF($B12="","",IF(J$4="","",AVERAGEIF(Scoring!$C$5:$C$37,$D12,Scoring!H$5:H$30)*$E12*$C12)) ->  | K12: =IF($B12="","",IF(K$4="","",AVERAGEIF(Scoring!$C$5:$C$37,$D12,Scoring!I$5:I$30)*$E12*$C12)) ->  | L12: =IF($B12="","",IF(L$4="","",AVERAGEIF(Scoring!$C$5:$C$37,$D12,Scoring!J$5:J$30)*$E12*$C12)) ->  | M12: =IF($B12="","",IF(M$4="","",AVERAGEIF(Scoring!$C$5:$C$37,$D12,Scoring!K$5:K$30)*$E12*$C12)) ->  | N12: =IF($B12="","",IF(N$4="","",AVERAGEIF(Scoring!$C$5:$C$37,$D12,Scoring!L$5:L$30)*$E12*$C12)) ->  | O12: =IF($B12="","",IF(O$4="","",AVERAGEIF(Scoring!$C$5:$C$37,$D12,Scoring!M$5:M$30)*$E12*$C12)) ->  | P12: =IF($B12="","",IF(P$4="","",AVERAGEIF(Scoring!$C$5:$C$37,$D12,Scoring!N$5:N$30)*$E12*$C12)) ->  | Q12: =IF($B12="","",IF(Q$4="","",AVERAGEIF(Scoring!$C$5:$C$37,$D12,Scoring!O$5:O$30)*$E12*$C12)) ->  | R12: =IF($B12="","",IF(R$4="","",AVERAGEIF(Scoring!$C$5:$C$37,$D12,Scoring!P$5:P$30)*$E12*$C12)) ->  | S12: =IF($B12="","",IF(S$4="","",AVERAGEIF(Scoring!$C$5:$C$37,$D12,Scoring!Q$5:Q$30)*$E12*$C12)) ->  | T12: =IF($B12="","",IF(T$4="","",AVERAGEIF(Scoring!$C$5:$C$37,$D12,Scoring!R$5:R$30)*$E12*$C12)) ->  | U12: =IF($B12="","",IF(U$4="","",AVERAGEIF(Scoring!$C$5:$C$37,$D12,Scoring!S$5:S$30)*$E12*$C12)) ->  | V12: =IF($B12="","",IF(V$4="","",AVERAGEIF(Scoring!$C$5:$C$37,$D12,Scoring!T$5:T$30)*$E12*$C12)) ->  | W12: =IF($B12="","",IF(W$4="","",AVERAGEIF(Scoring!$C$5:$C$37,$D12,Scoring!U$5:U$30)*$E12*$C12)) ->  | X12: =IF($B12="","",IF(X$4="","",AVERAGEIF(Scoring!$C$5:$C$37,$D12,Scoring!V$5:V$30)*$E12*$C12)) ->  | Y12: =IF($B12="","",IF(Y$4="","",AVERAGEIF(Scoring!$C$5:$C$37,$D12,Scoring!W$5:W$30)*$E12*$C12)) ->  | Z12: =IF($B12="","",IF(Z$4="","",AVERAGEIF(Scoring!$C$5:$C$37,$D12,Scoring!X$5:X$30)*$E12*$C12)) ->  | AA12: =IF($B12="","",IF(AA$4="","",AVERAGEIF(Scoring!$C$5:$C$37,$D12,Scoring!Y$5:Y$30)*$E12*$C12)) -> 
B13: =Scoring!B13 -> Social | C13: =IF(COUNTBLANK(B13)=0,VLOOKUP(B13,'MCA criteria weighting'!$D$7:$M$12,10,FALSE),"") -> 0.1666666667 | D13: =Scoring!C13 -> Disruption to daily life | E13: =IF(B13="","",VLOOKUP(D13,'MCA indicator weighting'!D39:S50,16,FALSE)) -> 0.5 | F13: 0.08333333333 | G13: =IF($B13="","",IF(G$4="","",AVERAGEIF(Scoring!$C$5:$C$37,$D13,Scoring!E$5:E$30)*$E13*$C13)) -> 0.25 | H13: =IF($B13="","",IF(H$4="","",AVERAGEIF(Scoring!$C$5:$C$37,$D13,Scoring!F$5:F$30)*$E13*$C13)) ->  | I13: =IF($B13="","",IF(I$4="","",AVERAGEIF(Scoring!$C$5:$C$37,$D13,Scoring!G$5:G$30)*$E13*$C13)) ->  | J13: =IF($B13="","",IF(J$4="","",AVERAGEIF(Scoring!$C$5:$C$37,$D13,Scoring!H$5:H$30)*$E13*$C13)) ->  | K13: =IF($B13="","",IF(K$4="","",AVERAGEIF(Scoring!$C$5:$C$37,$D13,Scoring!I$5:I$30)*$E13*$C13)) ->  | L13: =IF($B13="","",IF(L$4="","",AVERAGEIF(Scoring!$C$5:$C$37,$D13,Scoring!J$5:J$30)*$E13*$C13)) ->  | M13: =IF($B13="","",IF(M$4="","",AVERAGEIF(Scoring!$C$5:$C$37,$D13,Scoring!K$5:K$30)*$E13*$C13)) ->  | N13: =IF($B13="","",IF(N$4="","",AVERAGEIF(Scoring!$C$5:$C$37,$D13,Scoring!L$5:L$30)*$E13*$C13)) ->  | O13: =IF($B13="","",IF(O$4="","",AVERAGEIF(Scoring!$C$5:$C$37,$D13,Scoring!M$5:M$30)*$E13*$C13)) ->  | P13: =IF($B13="","",IF(P$4="","",AVERAGEIF(Scoring!$C$5:$C$37,$D13,Scoring!N$5:N$30)*$E13*$C13)) ->  | Q13: =IF($B13="","",IF(Q$4="","",AVERAGEIF(Scoring!$C$5:$C$37,$D13,Scoring!O$5:O$30)*$E13*$C13)) ->  | R13: =IF($B13="","",IF(R$4="","",AVERAGEIF(Scoring!$C$5:$C$37,$D13,Scoring!P$5:P$30)*$E13*$C13)) ->  | S13: =IF($B13="","",IF(S$4="","",AVERAGEIF(Scoring!$C$5:$C$37,$D13,Scoring!Q$5:Q$30)*$E13*$C13)) ->  | T13: =IF($B13="","",IF(T$4="","",AVERAGEIF(Scoring!$C$5:$C$37,$D13,Scoring!R$5:R$30)*$E13*$C13)) ->  | U13: =IF($B13="","",IF(U$4="","",AVERAGEIF(Scoring!$C$5:$C$37,$D13,Scoring!S$5:S$30)*$E13*$C13)) ->  | V13: =IF($B13="","",IF(V$4="","",AVERAGEIF(Scoring!$C$5:$C$37,$D13,Scoring!T$5:T$30)*$E13*$C13)) ->  | W13: =IF($B13="","",IF(W$4="","",AVERAGEIF(Scoring!$C$5:$C$37,$D13,Scoring!U$5:U$30)*$E13*$C13)) ->  | X13: =IF($B13="","",IF(X$4="","",AVERAGEIF(Scoring!$C$5:$C$37,$D13,Scoring!V$5:V$30)*$E13*$C13)) ->  | Y13: =IF($B13="","",IF(Y$4="","",AVERAGEIF(Scoring!$C$5:$C$37,$D13,Scoring!W$5:W$30)*$E13*$C13)) ->  | Z13: =IF($B13="","",IF(Z$4="","",AVERAGEIF(Scoring!$C$5:$C$37,$D13,Scoring!X$5:X$30)*$E13*$C13)) ->  | AA13: =IF($B13="","",IF(AA$4="","",AVERAGEIF(Scoring!$C$5:$C$37,$D13,Scoring!Y$5:Y$30)*$E13*$C13)) -> 
B14: =Scoring!B14 -> Social | C14: =IF(COUNTBLANK(B14)=0,VLOOKUP(B14,'MCA criteria weighting'!$D$7:$M$12,10,FALSE),"") -> 0.1666666667 | D14: =Scoring!C14 -> Additional community benefits | E14: =IF(B14="","",VLOOKUP(D14,'MCA indicator weighting'!D40:S51,16,FALSE)) -> 0.5 | F14: 0.08333333333 | G14: =IF($B14="","",IF(G$4="","",AVERAGEIF(Scoring!$C$5:$C$37,$D14,Scoring!E$5:E$30)*$E14*$C14)) -> 0.25 | H14: =IF($B14="","",IF(H$4="","",AVERAGEIF(Scoring!$C$5:$C$37,$D14,Scoring!F$5:F$30)*$E14*$C14)) ->  | I14: =IF($B14="","",IF(I$4="","",AVERAGEIF(Scoring!$C$5:$C$37,$D14,Scoring!G$5:G$30)*$E14*$C14)) ->  | J14: =IF($B14="","",IF(J$4="","",AVERAGEIF(Scoring!$C$5:$C$37,$D14,Scoring!H$5:H$30)*$E14*$C14)) ->  | K14: =IF($B14="","",IF(K$4="","",AVERAGEIF(Scoring!$C$5:$C$37,$D14,Scoring!I$5:I$30)*$E14*$C14)) ->  | L14: =IF($B14="","",IF(L$4="","",AVERAGEIF(Scoring!$C$5:$C$37,$D14,Scoring!J$5:J$30)*$E14*$C14)) ->  | M14: =IF($B14="","",IF(M$4="","",AVERAGEIF(Scoring!$C$5:$C$37,$D14,Scoring!K$5:K$30)*$E14*$C14)) ->  | N14: =IF($B14="","",IF(N$4="","",AVERAGEIF(Scoring!$C$5:$C$37,$D14,Scoring!L$5:L$30)*$E14*$C14)) ->  | O14: =IF($B14="","",IF(O$4="","",AVERAGEIF(Scoring!$C$5:$C$37,$D14,Scoring!M$5:M$30)*$E14*$C14)) ->  | P14: =IF($B14="","",IF(P$4="","",AVERAGEIF(Scoring!$C$5:$C$37,$D14,Scoring!N$5:N$30)*$E14*$C14)) ->  | Q14: =IF($B14="","",IF(Q$4="","",AVERAGEIF(Scoring!$C$5:$C$37,$D14,Scoring!O$5:O$30)*$E14*$C14)) ->  | R14: =IF($B14="","",IF(R$4="","",AVERAGEIF(Scoring!$C$5:$C$37,$D14,Scoring!P$5:P$30)*$E14*$C14)) ->  | S14: =IF($B14="","",IF(S$4="","",AVERAGEIF(Scoring!$C$5:$C$37,$D14,Scoring!Q$5:Q$30)*$E14*$C14)) ->  | T14: =IF($B14="","",IF(T$4="","",AVERAGEIF(Scoring!$C$5:$C$37,$D14,Scoring!R$5:R$30)*$E14*$C14)) ->  | U14: =IF($B14="","",IF(U$4="","",AVERAGEIF(Scoring!$C$5:$C$37,$D14,Scoring!S$5:S$30)*$E14*$C14)) ->  | V14: =IF($B14="","",IF(V$4="","",AVERAGEIF(Scoring!$C$5:$C$37,$D14,Scoring!T$5:T$30)*$E14*$C14)) ->  | W14: =IF($B14="","",IF(W$4="","",AVERAGEIF(Scoring!$C$5:$C$37,$D14,Scoring!U$5:U$30)*$E14*$C14)) ->  | X14: =IF($B14="","",IF(X$4="","",AVERAGEIF(Scoring!$C$5:$C$37,$D14,Scoring!V$5:V$30)*$E14*$C14)) ->  | Y14: =IF($B14="","",IF(Y$4="","",AVERAGEIF(Scoring!$C$5:$C$37,$D14,Scoring!W$5:W$30)*$E14*$C14)) ->  | Z14: =IF($B14="","",IF(Z$4="","",AVERAGEIF(Scoring!$C$5:$C$37,$D14,Scoring!X$5:X$30)*$E14*$C14)) ->  | AA14: =IF($B14="","",IF(AA$4="","",AVERAGEIF(Scoring!$C$5:$C$37,$D14,Scoring!Y$5:Y$30)*$E14*$C14)) -> 
B15: =Scoring!B15 -> Flood behaviour/impact | C15: =IF(COUNTBLANK(B15)=0,VLOOKUP(B15,'MCA criteria weighting'!$D$7:$M$12,10,FALSE),"") -> 0.1666666667 | D15: =Scoring!C15 -> Flood impacts | E15: =IF(B15="","",VLOOKUP(D15,'MCA indicator weighting'!D41:S52,16,FALSE)) -> 1 | F15: 0.1666666667 | G15: =IF($B15="","",IF(G$4="","",AVERAGEIF(Scoring!$C$5:$C$37,$D15,Scoring!E$5:E$30)*$E15*$C15)) -> 0.5 | H15: =IF($B15="","",IF(H$4="","",AVERAGEIF(Scoring!$C$5:$C$37,$D15,Scoring!F$5:F$30)*$E15*$C15)) ->  | I15: =IF($B15="","",IF(I$4="","",AVERAGEIF(Scoring!$C$5:$C$37,$D15,Scoring!G$5:G$30)*$E15*$C15)) ->  | J15: =IF($B15="","",IF(J$4="","",AVERAGEIF(Scoring!$C$5:$C$37,$D15,Scoring!H$5:H$30)*$E15*$C15)) ->  | K15: =IF($B15="","",IF(K$4="","",AVERAGEIF(Scoring!$C$5:$C$37,$D15,Scoring!I$5:I$30)*$E15*$C15)) ->  | L15: =IF($B15="","",IF(L$4="","",AVERAGEIF(Scoring!$C$5:$C$37,$D15,Scoring!J$5:J$30)*$E15*$C15)) ->  | M15: =IF($B15="","",IF(M$4="","",AVERAGEIF(Scoring!$C$5:$C$37,$D15,Scoring!K$5:K$30)*$E15*$C15)) ->  | N15: =IF($B15="","",IF(N$4="","",AVERAGEIF(Scoring!$C$5:$C$37,$D15,Scoring!L$5:L$30)*$E15*$C15)) ->  | O15: =IF($B15="","",IF(O$4="","",AVERAGEIF(Scoring!$C$5:$C$37,$D15,Scoring!M$5:M$30)*$E15*$C15)) ->  | P15: =IF($B15="","",IF(P$4="","",AVERAGEIF(Scoring!$C$5:$C$37,$D15,Scoring!N$5:N$30)*$E15*$C15)) ->  | Q15: =IF($B15="","",IF(Q$4="","",AVERAGEIF(Scoring!$C$5:$C$37,$D15,Scoring!O$5:O$30)*$E15*$C15)) ->  | R15: =IF($B15="","",IF(R$4="","",AVERAGEIF(Scoring!$C$5:$C$37,$D15,Scoring!P$5:P$30)*$E15*$C15)) ->  | S15: =IF($B15="","",IF(S$4="","",AVERAGEIF(Scoring!$C$5:$C$37,$D15,Scoring!Q$5:Q$30)*$E15*$C15)) ->  | T15: =IF($B15="","",IF(T$4="","",AVERAGEIF(Scoring!$C$5:$C$37,$D15,Scoring!R$5:R$30)*$E15*$C15)) ->  | U15: =IF($B15="","",IF(U$4="","",AVERAGEIF(Scoring!$C$5:$C$37,$D15,Scoring!S$5:S$30)*$E15*$C15)) ->  | V15: =IF($B15="","",IF(V$4="","",AVERAGEIF(Scoring!$C$5:$C$37,$D15,Scoring!T$5:T$30)*$E15*$C15)) ->  | W15: =IF($B15="","",IF(W$4="","",AVERAGEIF(Scoring!$C$5:$C$37,$D15,Scoring!U$5:U$30)*$E15*$C15)) ->  | X15: =IF($B15="","",IF(X$4="","",AVERAGEIF(Scoring!$C$5:$C$37,$D15,Scoring!V$5:V$30)*$E15*$C15)) ->  | Y15: =IF($B15="","",IF(Y$4="","",AVERAGEIF(Scoring!$C$5:$C$37,$D15,Scoring!W$5:W$30)*$E15*$C15)) ->  | Z15: =IF($B15="","",IF(Z$4="","",AVERAGEIF(Scoring!$C$5:$C$37,$D15,Scoring!X$5:X$30)*$E15*$C15)) ->  | AA15: =IF($B15="","",IF(AA$4="","",AVERAGEIF(Scoring!$C$5:$C$37,$D15,Scoring!Y$5:Y$30)*$E15*$C15)) -> 
B16: =Scoring!B16 -> Additional constraints | C16: =IF(COUNTBLANK(B16)=0,VLOOKUP(B16,'MCA criteria weighting'!$D$7:$M$12,10,FALSE),"") -> 0.1666666667 | D16: =Scoring!C16 -> Engineering/construction constraints | E16: =IF(B16="","",VLOOKUP(D16,'MCA indicator weighting'!D42:S53,16,FALSE)) -> 1 | F16: 0.1666666667 | G16: =IF($B16="","",IF(G$4="","",AVERAGEIF(Scoring!$C$5:$C$37,$D16,Scoring!E$5:E$30)*$E16*$C16)) -> 0.5 | H16: =IF($B16="","",IF(H$4="","",AVERAGEIF(Scoring!$C$5:$C$37,$D16,Scoring!F$5:F$30)*$E16*$C16)) ->  | I16: =IF($B16="","",IF(I$4="","",AVERAGEIF(Scoring!$C$5:$C$37,$D16,Scoring!G$5:G$30)*$E16*$C16)) ->  | J16: =IF($B16="","",IF(J$4="","",AVERAGEIF(Scoring!$C$5:$C$37,$D16,Scoring!H$5:H$30)*$E16*$C16)) ->  | K16: =IF($B16="","",IF(K$4="","",AVERAGEIF(Scoring!$C$5:$C$37,$D16,Scoring!I$5:I$30)*$E16*$C16)) ->  | L16: =IF($B16="","",IF(L$4="","",AVERAGEIF(Scoring!$C$5:$C$37,$D16,Scoring!J$5:J$30)*$E16*$C16)) ->  | M16: =IF($B16="","",IF(M$4="","",AVERAGEIF(Scoring!$C$5:$C$37,$D16,Scoring!K$5:K$30)*$E16*$C16)) ->  | N16: =IF($B16="","",IF(N$4="","",AVERAGEIF(Scoring!$C$5:$C$37,$D16,Scoring!L$5:L$30)*$E16*$C16)) ->  | O16: =IF($B16="","",IF(O$4="","",AVERAGEIF(Scoring!$C$5:$C$37,$D16,Scoring!M$5:M$30)*$E16*$C16)) ->  | P16: =IF($B16="","",IF(P$4="","",AVERAGEIF(Scoring!$C$5:$C$37,$D16,Scoring!N$5:N$30)*$E16*$C16)) ->  | Q16: =IF($B16="","",IF(Q$4="","",AVERAGEIF(Scoring!$C$5:$C$37,$D16,Scoring!O$5:O$30)*$E16*$C16)) ->  | R16: =IF($B16="","",IF(R$4="","",AVERAGEIF(Scoring!$C$5:$C$37,$D16,Scoring!P$5:P$30)*$E16*$C16)) ->  | S16: =IF($B16="","",IF(S$4="","",AVERAGEIF(Scoring!$C$5:$C$37,$D16,Scoring!Q$5:Q$30)*$E16*$C16)) ->  | T16: =IF($B16="","",IF(T$4="","",AVERAGEIF(Scoring!$C$5:$C$37,$D16,Scoring!R$5:R$30)*$E16*$C16)) ->  | U16: =IF($B16="","",IF(U$4="","",AVERAGEIF(Scoring!$C$5:$C$37,$D16,Scoring!S$5:S$30)*$E16*$C16)) ->  | V16: =IF($B16="","",IF(V$4="","",AVERAGEIF(Scoring!$C$5:$C$37,$D16,Scoring!T$5:T$30)*$E16*$C16)) ->  | W16: =IF($B16="","",IF(W$4="","",AVERAGEIF(Scoring!$C$5:$C$37,$D16,Scoring!U$5:U$30)*$E16*$C16)) ->  | X16: =IF($B16="","",IF(X$4="","",AVERAGEIF(Scoring!$C$5:$C$37,$D16,Scoring!V$5:V$30)*$E16*$C16)) ->  | Y16: =IF($B16="","",IF(Y$4="","",AVERAGEIF(Scoring!$C$5:$C$37,$D16,Scoring!W$5:W$30)*$E16*$C16)) ->  | Z16: =IF($B16="","",IF(Z$4="","",AVERAGEIF(Scoring!$C$5:$C$37,$D16,Scoring!X$5:X$30)*$E16*$C16)) ->  | AA16: =IF($B16="","",IF(AA$4="","",AVERAGEIF(Scoring!$C$5:$C$37,$D16,Scoring!Y$5:Y$30)*$E16*$C16)) -> 
B17: Overall Score | G17: =IF(COUNT(G16)=1,SUM(G5:G16),"") -> 3 | H17: =IF(COUNT(H16)=1,SUM(H5:H16),"") ->  | I17: =IF(COUNT(I16)=1,SUM(I5:I16),"") ->  | J17: =IF(COUNT(J16)=1,SUM(J5:J16),"") ->  | AA17: =IF(COUNT(AA16)=1,SUM(AA5:AA16),"") -> 
E27: =IF(B27="","",VLOOKUP(D27,'MCA indicator weighting'!D53:S64,16,FALSE)) -> 
E28: =IF(B28="","",VLOOKUP(D28,'MCA indicator weighting'!D54:S65,16,FALSE)) -> 
E29: =IF(B29="","",VLOOKUP(D29,'MCA indicator weighting'!D55:S66,16,FALSE)) -> 
E30: =IF(B30="","",VLOOKUP(D30,'MCA indicator weighting'!D56:S67,16,FALSE)) -> 
E31: =IF(B31="","",VLOOKUP(D31,'MCA indicator weighting'!D57:S68,16,FALSE)) -> 

Sheet Sensitivity
B2: Sensitivity Testing Conduct sensitivity testing by adjusting the weightings of the assessment criteria to determine the impact on the results. To ensure apprioriate sensitivity results are calculated, the sum of the criteria weightings must equal 100%.
B4: Criteria | C4: Weighting
B5: Safety | D5: =C5/3 -> 0 | E5: =IF($C$11=100%,"","Criteria weighting does not total 100%") -> Criteria weighting does not total 100%
B6: Economic | D6: =C6/2 -> 0
B7: Environmental and cultural heritage impacts | D7: =C7/3 -> 0
B8: Social | D8: =C8/2 -> 0
B9: Flood behaviour/impact | D9: =C9 -> 0
B10: Additional constraints | D10: =C10 -> 0
B11: Total | C11: =SUM(C5:C10) -> 0
B13: Option | D13: Overall Score | E13: Overall Score | F13: Rank | G13: New Score | H13: New Rank
B14: =Results!$B$22 ->  | D14: =IF(Results!B22="","",Results!I22) ->  | E14: =IF(Results!$B$22="","",Results!$I$22) ->  | F14: =Results!$J$22 ->  | G14: =IF(Results!$B$22="","",'Sensitivity Calc'!$F$17) ->  | H14: =IF(Results!$B22="","",'Sensitivity Calc'!F$18) -> 
B15: =Results!$B$23 ->  | D15: =IF(Results!B23="","",Results!I23) ->  | E15: =IF(Results!$B$23="","",Results!$I$23) ->  | F15: =Results!$J$23 ->  | G15: =IF(Results!$B$23="","",'Sensitivity Calc'!$G$17) ->  | H15: =IF(Results!$B$23="","",'Sensitivity Calc'!$G$18) -> 
B16: =Results!$B$24 ->  | D16: =IF(Results!B24="","",Results!I24) ->  | E16: =IF(Results!$B$24="","",Results!$I$24) ->  | F16: =Results!$J$24 ->  | G16: =IF(Results!$B$24="","",'Sensitivity Calc'!$H$17) ->  | H16: =IF(Results!$B$24="","",'Sensitivity Calc'!$H$18) -> 
B17: =Results!$B$25 ->  | D17: =IF(Results!B25="","",Results!I25) ->  | E17: =IF(Results!$B$25="","",Results!$I$25) ->  | F17: =Results!$J$25 ->  | G17: =IF(Results!$B$25="","",'Sensitivity Calc'!$I$17) ->  | H17: =IF(Results!$B$25="","",'Sensitivity Calc'!$I$18) -> 
B18: =Results!$B$26 ->  | D18: =IF(Results!B26="","",Results!I26) ->  | E18: =IF(Results!$B$26="","",Results!$I$26) ->  | F18: =Results!$J$26 ->  | G18: =IF(Results!$B$26="","",'Sensitivity Calc'!$J$17) ->  | H18: =IF(Results!$B$26="","",'Sensitivity Calc'!$J$18) -> 
B19: =Results!$B$27 ->  | D19: =IF(Results!B27="","",Results!I27) ->  | E19: =IF(Results!$B$27="","",Results!$I$27) ->  | F19: =Results!$J$27 ->  | G19: =IF(Results!$B$27="","",'Sensitivity Calc'!$K$17) ->  | H19: =IF(Results!$B$27="","",'Sensitivity Calc'!$K$18) -> 
B20: =Results!$B$28 ->  | D20: =IF(Results!B28="","",Results!I28) ->  | E20: =IF(Results!$B$28="","",Results!$I$28) ->  | F20: =Results!$J$28 ->  | G20: =IF(Results!$B$28="","",'Sensitivity Calc'!$L$17) ->  | H20: =IF(Results!$B$28="","",'Sensitivity Calc'!$L$18) -> 
B21: =Results!$B$29 ->  | D21: =IF(Results!B29="","",Results!I29) ->  | E21: =IF(Results!$B$29="","",Results!$I$29) ->  | F21: =Results!$J$29 ->  | G21: =IF(Results!$B$29="","",'Sensitivity Calc'!$M$17) ->  | H21: =IF(Results!$B$29="","",'Sensitivity Calc'!$M$18) -> 
B22: =Results!$B$30 ->  | D22: =IF(Results!B30="","",Results!I30) ->  | E22: =IF(Results!$B$30="","",Results!$I$30) ->  | F22: =Results!$J$30 ->  | G22: =IF(Results!$B$30="","",'Sensitivity Calc'!$N$17) ->  | H22: =IF(Results!$B$30="","",'Sensitivity Calc'!$N$18) -> 
B23: =Results!$B$31 ->  | D23: =IF(Results!B31="","",Results!I31) ->  | E23: =IF(Results!$B$31="","",Results!$I$31) ->  | F23: =Results!$J$31 ->  | G23: =IF(Results!$B$31="","",'Sensitivity Calc'!$O$17) ->  | H23: =IF(Results!$B$31="","",'Sensitivity Calc'!$O$18) -> 
B24: =Results!$B$32 ->  | D24: =IF(Results!B32="","",Results!I32) ->  | E24: =IF(Results!$B$32="","",Results!$I$32) ->  | F24: =Results!$J$32 ->  | G24: =IF(Results!$B$32="","",'Sensitivity Calc'!$P$17) ->  | H24: =IF(Results!$B$32="","",'Sensitivity Calc'!$P$18) -> 
B25: =Results!$B$33 ->  | D25: =IF(Results!B33="","",Results!I33) ->  | E25: =IF(Results!$B$33="","",Results!$I$33) ->  | F25: =Results!$J$33 ->  | G25: =IF(Results!$B$33="","",'Sensitivity Calc'!$Q$17) ->  | H25: =IF(Results!$B$33="","",'Sensitivity Calc'!$Q$18) -> 
B26: =Results!$B$34 ->  | D26: =IF(Results!B34="","",Results!I34) ->  | E26: =IF(Results!$B$34="","",Results!$I$34) ->  | F26: =Results!$J$34 ->  | G26: =IF(Results!$B$34="","",'Sensitivity Calc'!$R$17) ->  | H26: =IF(Results!$B$34="","",'Sensitivity Calc'!$R$18) -> 
B27: =Results!$B$35 ->  | D27: =IF(Results!B35="","",Results!I35) ->  | E27: =IF(Results!$B$35="","",Results!$I$35) ->  | F27: =Results!$J$35 ->  | G27: =IF(Results!$B$35="","",'Sensitivity Calc'!$S$17) ->  | H27: =IF(Results!$B$35="","",'Sensitivity Calc'!$S$18) -> 
B28: =Results!$B$36 ->  | D28: =IF(Results!B36="","",Results!I36) ->  | E28: =IF(Results!$B$36="","",Results!$I$36) ->  | F28: =Results!$J$36 ->  | G28: =IF(Results!$B$36="","",'Sensitivity Calc'!$T$17) ->  | H28: =IF(Results!$B$36="","",'Sensitivity Calc'!$T$18) -> 
B29: =Results!$B$37 ->  | D29: =IF(Results!B37="","",Results!I37) ->  | E29: =IF(Results!$B$37="","",Results!$I$37) ->  | F29: =Results!$J$37 ->  | G29: =IF(Results!$B$37="","",'Sensitivity Calc'!$U$17) ->  | H29: =IF(Results!$B$37="","",'Sensitivity Calc'!$U$18) -> 
B30: =Results!$B$38 ->  | D30: =IF(Results!B38="","",Results!I38) ->  | E30: =IF(Results!$B$38="","",Results!$I$38) ->  | F30: =Results!$J$38 ->  | G30: =IF(Results!$B$38="","",'Sensitivity Calc'!$V$17) ->  | H30: =IF(Results!$B$38="","",'Sensitivity Calc'!$V$18) -> 
B31: =Results!$B$39 ->  | D31: =IF(Results!B39="","",Results!I39) ->  | E31: =IF(Results!$B$39="","",Results!$I$39) ->  | F31: =Results!$J$39 ->  | G31: =IF(Results!$B$39="","",'Sensitivity Calc'!$W$17) ->  | H31: =IF(Results!$B$39="","",'Sensitivity Calc'!$W$18) -> 
B32: =Results!$B$40 ->  | D32: =IF(Results!B40="","",Results!I40) ->  | E32: =IF(Results!$B$40="","",Results!$I$40) ->  | F32: =Results!$J$40 ->  | G32: =IF(Results!$B$40="","",'Sensitivity Calc'!X17) ->  | H32: =IF(Results!$B$40="","",'Sensitivity Calc'!$X$18) -> 
B33: =Results!$B$41 ->  | D33: =IF(Results!B41="","",Results!I41) ->  | E33: =IF(Results!$B$41="","",Results!$I$41) ->  | F33: =Results!$J$41 ->  | G33: =IF(Results!$B$41="","",'Sensitivity Calc'!$Y$17) ->  | H33: =IF(Results!$B$41="","",'Sensitivity Calc'!$Y$18) -> 

Sheet Sensitivity Calc (hidden)
F3: =TRANSPOSE('Multi-criteria assessment'!$E$7:$E$26) -> 
B4: Criteria | C4: Targeted Indicator | D4: Pairwise Comparison | E4: Base Case | F4: =IF(F3=0,"",F3) ->  | G4: =IF(G3=0,"",G3) -> 
B5: ='Targeted indicators'!B9 -> Safety | C5: ='Targeted indicators'!C9 -> Ability to evacuate to safer locations or evacuation centres | D5: =IF(B5="","",VLOOKUP(B5,'MCA criteria weighting'!$D$7:$M$36,10,FALSE)) -> 0.1666666667 | E5: 3 | F5: =Scoring!F$5*Sensitivity!$D$5 -> 0 | G5: =Scoring!G$5*Sensitivity!$D$5 -> 0 | H5: =Scoring!H$5*Sensitivity!$D$5 -> 0 | I5: =Scoring!I$5*Sensitivity!$D$5 -> 0 | J5: =Scoring!J$5*Sensitivity!$D$5 -> 0 | K5: =Scoring!K$5*Sensitivity!$D$5 -> 0 | L5: =Scoring!L$5*Sensitivity!$D$5 -> 0 | M5: =Scoring!M$5*Sensitivity!$D$5 -> 0 | N5: =Scoring!N$5*Sensitivity!$D$5 -> 0 | O5: =Scoring!O$5*Sensitivity!$D$5 -> 0 | P5: =Scoring!P$5*Sensitivity!$D$5 -> 0 | Q5: =Scoring!Q$5*Sensitivity!$D$5 -> 0 | R5: =Scoring!R$5*Sensitivity!$D$5 -> 0 | S5: =Scoring!S$5*Sensitivity!$D$5 -> 0 | T5: =Scoring!T$5*Sensitivity!$D$5 -> 0 | U5: =Scoring!U$5*Sensitivity!$D$5 -> 0 | V5: =Scoring!V$5*Sensitivity!$D$5 -> 0 | W5: =Scoring!W$5*Sensitivity!$D$5 -> 0 | X5: =Scoring!X$5*Sensitivity!$D$5 -> 0 | Y5: =Scoring!Y$5*Sensitivity!$D$5 -> 0
B6: ='Targeted indicators'!B10 -> Safety | C6: ='Targeted indicators'!C10 -> Population at risk | D6: =IF(B6="","",VLOOKUP(B6,'MCA criteria weighting'!$D$7:$M$36,10,FALSE)) -> 0.1666666667 | E6: 3 | F6: =Scoring!F$6*Sensitivity!$D$5 -> 0 | G6: =Scoring!G$6*Sensitivity!$D$5 -> 0 | H6: =Scoring!H$6*Sensitivity!$D$5 -> 0 | I6: =Scoring!I$6*Sensitivity!$D$5 -> 0 | J6: =Scoring!J$6*Sensitivity!$D$5 -> 0 | K6: =Scoring!K$6*Sensitivity!$D$5 -> 0 | L6: =Scoring!L$6*Sensitivity!$D$5 -> 0 | M6: =Scoring!M$6*Sensitivity!$D$5 -> 0 | N6: =Scoring!N$6*Sensitivity!$D$5 -> 0 | O6: =Scoring!O$6*Sensitivity!$D$5 -> 0 | P6: =Scoring!P$6*Sensitivity!$D$5 -> 0 | Q6: =Scoring!Q$6*Sensitivity!$D$5 -> 0 | R6: =Scoring!R$6*Sensitivity!$D$5 -> 0 | S6: =Scoring!S$6*Sensitivity!$D$5 -> 0 | T6: =Scoring!T$6*Sensitivity!$D$5 -> 0 | U6: =Scoring!U$6*Sensitivity!$D$5 -> 0 | V6: =Scoring!V$6*Sensitivity!$D$5 -> 0 | W6: =Scoring!W$6*Sensitivity!$D$5 -> 0 | X6: =Scoring!X$6*Sensitivity!$D$5 -> 0 | Y6: =Scoring!Y$6*Sensitivity!$D$5 -> 0
B7: ='Targeted indicators'!B11 -> Safety | C7: ='Targeted indicators'!C11 -> Isolation duration and risk | D7: =IF(B7="","",VLOOKUP(B7,'MCA criteria weighting'!$D$7:$M$36,10,FALSE)) -> 0.1666666667 | E7: 3 | F7: =Scoring!F$7*Sensitivity!$D$5 -> 0 | G7: =Scoring!G$7*Sensitivity!$D$5 -> 0 | H7: =Scoring!H$7*Sensitivity!$D$5 -> 0 | I7: =Scoring!I$7*Sensitivity!$D$5 -> 0 | J7: =Scoring!J$7*Sensitivity!$D$5 -> 0 | K7: =Scoring!K$7*Sensitivity!$D$5 -> 0 | L7: =Scoring!L$7*Sensitivity!$D$5 -> 0 | M7: =Scoring!M$7*Sensitivity!$D$5 -> 0 | N7: =Scoring!N$7*Sensitivity!$D$5 -> 0 | O7: =Scoring!O$7*Sensitivity!$D$5 -> 0 | P7: =Scoring!P$7*Sensitivity!$D$5 -> 0 | Q7: =Scoring!Q$7*Sensitivity!$D$5 -> 0 | R7: =Scoring!R$7*Sensitivity!$D$5 -> 0 | S7: =Scoring!S$7*Sensitivity!$D$5 -> 0 | T7: =Scoring!T$7*Sensitivity!$D$5 -> 0 | U7: =Scoring!U$7*Sensitivity!$D$5 -> 0 | V7: =Scoring!V$7*Sensitivity!$D$5 -> 0 | W7: =Scoring!W$7*Sensitivity!$D$5 -> 0 | X7: =Scoring!X$7*Sensitivity!$D$5 -> 0 | Y7: =Scoring!Y$7*Sensitivity!$D$5 -> 0
B8: ='Targeted indicators'!B12 -> Economic | C8: ='Targeted indicators'!C12 -> Economic growth and investment | D8: =IF(B8="","",VLOOKUP(B8,'MCA criteria weighting'!$D$7:$M$36,10,FALSE)) -> 0.1666666667 | E8: 3 | F8: =Scoring!F$8*Sensitivity!$D$6 -> 0 | G8: =Scoring!G$8*Sensitivity!$D$6 -> 0 | H8: =Scoring!H$8*Sensitivity!$D$6 -> 0 | I8: =Scoring!I$8*Sensitivity!$D$6 -> 0 | J8: =Scoring!J$8*Sensitivity!$D$6 -> 0 | K8: =Scoring!K$8*Sensitivity!$D$6 -> 0 | L8: =Scoring!L$8*Sensitivity!$D$6 -> 0 | M8: =Scoring!M$8*Sensitivity!$D$6 -> 0 | N8: =Scoring!N$8*Sensitivity!$D$6 -> 0 | O8: =Scoring!O$8*Sensitivity!$D$6 -> 0 | P8: =Scoring!P$8*Sensitivity!$D$6 -> 0 | Q8: =Scoring!Q$8*Sensitivity!$D$6 -> 0 | R8: =Scoring!R$8*Sensitivity!$D$6 -> 0 | S8: =Scoring!S$8*Sensitivity!$D$6 -> 0 | T8: =Scoring!T$8*Sensitivity!$D$6 -> 0 | U8: =Scoring!U$8*Sensitivity!$D$6 -> 0 | V8: =Scoring!V$8*Sensitivity!$D$6 -> 0 | W8: =Scoring!W$8*Sensitivity!$D$6 -> 0 | X8: =Scoring!X$8*Sensitivity!$D$6 -> 0 | Y8: =Scoring!Y$8*Sensitivity!$D$6 -> 0
B9: ='Targeted indicators'!B13 -> Economic | C9: ='Targeted indicators'!C13 -> Damages and costs (property, assets and operations) | D9: =IF(B9="","",VLOOKUP(B9,'MCA criteria weighting'!$D$7:$M$36,10,FALSE)) -> 0.1666666667 | E9: 3 | F9: =Scoring!F$9*Sensitivity!$D$6 -> 0 | G9: =Scoring!G$9*Sensitivity!$D$6 -> 0 | H9: =Scoring!H$9*Sensitivity!$D$6 -> 0 | I9: =Scoring!I$9*Sensitivity!$D$6 -> 0 | J9: =Scoring!J$9*Sensitivity!$D$6 -> 0 | K9: =Scoring!K$9*Sensitivity!$D$6 -> 0 | L9: =Scoring!L$9*Sensitivity!$D$6 -> 0 | M9: =Scoring!M$9*Sensitivity!$D$6 -> 0 | N9: =Scoring!N$9*Sensitivity!$D$6 -> 0 | O9: =Scoring!O$9*Sensitivity!$D$6 -> 0 | P9: =Scoring!P$9*Sensitivity!$D$6 -> 0 | Q9: =Scoring!Q$9*Sensitivity!$D$6 -> 0 | R9: =Scoring!R$9*Sensitivity!$D$6 -> 0 | S9: =Scoring!S$9*Sensitivity!$D$6 -> 0 | T9: =Scoring!T$9*Sensitivity!$D$6 -> 0 | U9: =Scoring!U$9*Sensitivity!$D$6 -> 0 | V9: =Scoring!V$9*Sensitivity!$D$6 -> 0 | W9: =Scoring!W$9*Sensitivity!$D$6 -> 0 | X9: =Scoring!X$9*Sensitivity!$D$6 -> 0 | Y9: =Scoring!Y$9*Sensitivity!$D$6 -> 0
B10: ='Targeted indicators'!B14 -> Environmental and cultural heritage impact | C10: ='Targeted indicators'!C14 -> Overall impact on fauna connectivity (fish passage/fauna movement) | D10: =IF(B10="","",VLOOKUP(B10,'MCA criteria weighting'!$D$7:$M$36,10,FALSE)) -> 0.1666666667 | E10: 3 | F10: =Scoring!F$10*Sensitivity!$D$7 -> 0 | G10: =Scoring!G$10*Sensitivity!$D$7 -> 0 | H10: =Scoring!H$10*Sensitivity!$D$7 -> 0 | I10: =Scoring!I$10*Sensitivity!$D$7 -> 0 | J10: =Scoring!J$10*Sensitivity!$D$7 -> 0 | K10: =Scoring!K$10*Sensitivity!$D$7 -> 0 | L10: =Scoring!L$10*Sensitivity!$D$7 -> 0 | M10: =Scoring!M$10*Sensitivity!$D$7 -> 0 | N10: =Scoring!N$10*Sensitivity!$D$7 -> 0 | O10: =Scoring!O$10*Sensitivity!$D$7 -> 0 | P10: =Scoring!P$10*Sensitivity!$D$7 -> 0 | Q10: =Scoring!Q$10*Sensitivity!$D$7 -> 0 | R10: =Scoring!R$10*Sensitivity!$D$7 -> 0 | S10: =Scoring!S$10*Sensitivity!$D$7 -> 0 | T10: =Scoring!T$10*Sensitivity!$D$7 -> 0 | U10: =Scoring!U$10*Sensitivity!$D$7 -> 0 | V10: =Scoring!V$10*Sensitivity!$D$7 -> 0 | W10: =Scoring!W$10*Sensitivity!$D$7 -> 0 | X10: =Scoring!X$10*Sensitivity!$D$7 -> 0 | Y10: =Scoring!Y$10*Sensitivity!$D$7 -> 0
B11: ='Targeted indicators'!B15 -> Environmental and cultural heritage impact | C11: ='Targeted indicators'!C15 -> Overall impacts to vegetation and habitat | D11: =IF(B11="","",VLOOKUP(B11,'MCA criteria weighting'!$D$7:$M$36,10,FALSE)) -> 0.1666666667 | E11: 3 | F11: =Scoring!F$11*Sensitivity!$D$7 -> 0 | G11: =Scoring!G$11*Sensitivity!$D$7 -> 0 | H11: =Scoring!H$11*Sensitivity!$D$7 -> 0 | I11: =Scoring!I$11*Sensitivity!$D$7 -> 0 | J11: =Scoring!J$11*Sensitivity!$D$7 -> 0 | K11: =Scoring!K$11*Sensitivity!$D$7 -> 0 | L11: =Scoring!L$11*Sensitivity!$D$7 -> 0 | M11: =Scoring!M$11*Sensitivity!$D$7 -> 0 | N11: =Scoring!N$11*Sensitivity!$D$7 -> 0 | O11: =Scoring!O$11*Sensitivity!$D$7 -> 0 | P11: =Scoring!P$11*Sensitivity!$D$7 -> 0 | Q11: =Scoring!Q$11*Sensitivity!$D$7 -> 0 | R11: =Scoring!R$11*Sensitivity!$D$7 -> 0 | S11: =Scoring!S$11*Sensitivity!$D$7 -> 0 | T11: =Scoring!T$11*Sensitivity!$D$7 -> 0 | U11: =Scoring!U$11*Sensitivity!$D$7 -> 0 | V11: =Scoring!V$11*Sensitivity!$D$7 -> 0 | W11: =Scoring!W$11*Sensitivity!$D$7 -> 0 | X11: =Scoring!X$11*Sensitivity!$D$7 -> 0 | Y11: =Scoring!Y$11*Sensitivity!$D$7 -> 0
B12: ='Targeted indicators'!B16 -> Environmental and cultural heritage impact | C12: ='Targeted indicators'!C16 -> Impact on cultural heritage sites | D12: =IF(B12="","",VLOOKUP(B12,'MCA criteria weighting'!$D$7:$M$36,10,FALSE)) -> 0.1666666667 | E12: 3 | F12: =Scoring!F$12*Sensitivity!$D$7 -> 0 | G12: =Scoring!G$12*Sensitivity!$D$7 -> 0 | H12: =Scoring!H$12*Sensitivity!$D$7 -> 0 | I12: =Scoring!I$12*Sensitivity!$D$7 -> 0 | J12: =Scoring!J$12*Sensitivity!$D$7 -> 0 | K12: =Scoring!K$12*Sensitivity!$D$7 -> 0 | L12: =Scoring!L$12*Sensitivity!$D$7 -> 0 | M12: =Scoring!M$12*Sensitivity!$D$7 -> 0 | N12: =Scoring!N$12*Sensitivity!$D$7 -> 0 | O12: =Scoring!O$12*Sensitivity!$D$7 -> 0 | P12: =Scoring!P$12*Sensitivity!$D$7 -> 0 | Q12: =Scoring!Q$12*Sensitivity!$D$7 -> 0 | R12: =Scoring!R$12*Sensitivity!$D$7 -> 0 | S12: =Scoring!S$12*Sensitivity!$D$7 -> 0 | T12: =Scoring!T$12*Sensitivity!$D$7 -> 0 | U12: =Scoring!U$12*Sensitivity!$D$7 -> 0 | V12: =Scoring!V$12*Sensitivity!$D$7 -> 0 | W12: =Scoring!W$12*Sensitivity!$D$7 -> 0 | X12: =Scoring!X$12*Sensitivity!$D$7 -> 0 | Y12: =Scoring!Y$12*Sensitivity!$D$7 -> 0
B13: ='Targeted indicators'!B17 -> Social | C13: ='Targeted indicators'!C17 -> Disruption to daily life | D13: =IF(B13="","",VLOOKUP(B13,'MCA criteria weighting'!$D$7:$M$36,10,FALSE)) -> 0.1666666667 | E13: 3 | F13: =Scoring!F$13*Sensitivity!$D$8 -> 0 | G13: =Scoring!G$13*Sensitivity!$D$8 -> 0 | H13: =Scoring!H$13*Sensitivity!$D$8 -> 0 | I13: =Scoring!I$13*Sensitivity!$D$8 -> 0 | J13: =Scoring!J$13*Sensitivity!$D$8 -> 0 | K13: =Scoring!K$13*Sensitivity!$D$8 -> 0 | L13: =Scoring!L$13*Sensitivity!$D$8 -> 0 | M13: =Scoring!M$13*Sensitivity!$D$8 -> 0 | N13: =Scoring!N$13*Sensitivity!$D$8 -> 0 | O13: =Scoring!O$13*Sensitivity!$D$8 -> 0 | P13: =Scoring!P$13*Sensitivity!$D$8 -> 0 | Q13: =Scoring!Q$13*Sensitivity!$D$8 -> 0 | R13: =Scoring!R$13*Sensitivity!$D$8 -> 0 | S13: =Scoring!S$13*Sensitivity!$D$8 -> 0 | T13: =Scoring!T$13*Sensitivity!$D$8 -> 0 | U13: =Scoring!U$13*Sensitivity!$D$8 -> 0 | V13: =Scoring!V$13*Sensitivity!$D$8 -> 0 | W13: =Scoring!W$13*Sensitivity!$D$8 -> 0 | X13: =Scoring!X$13*Sensitivity!$D$8 -> 0 | Y13: =Scoring!Y$13*Sensitivity!$D$8 -> 0
B14: ='Targeted indicators'!B18 -> Social | C14: ='Targeted indicators'!C18 -> Additional community benefits | D14: =IF(B14="","",VLOOKUP(B14,'MCA criteria weighting'!$D$7:$M$36,10,FALSE)) -> 0.1666666667 | E14: 3 | F14: =Scoring!F$14*Sensitivity!$D$8 -> 0 | G14: =Scoring!G$14*Sensitivity!$D$8 -> 0 | H14: =Scoring!H$14*Sensitivity!$D$8 -> 0 | I14: =Scoring!I$14*Sensitivity!$D$8 -> 0 | J14: =Scoring!J$14*Sensitivity!$D$8 -> 0 | K14: =Scoring!K$14*Sensitivity!$D$8 -> 0 | L14: =Scoring!L$14*Sensitivity!$D$8 -> 0 | M14: =Scoring!M$14*Sensitivity!$D$8 -> 0 | N14: =Scoring!N$14*Sensitivity!$D$8 -> 0 | O14: =Scoring!O$14*Sensitivity!$D$8 -> 0 | P14: =Scoring!P$14*Sensitivity!$D$8 -> 0 | Q14: =Scoring!Q$14*Sensitivity!$D$8 -> 0 | R14: =Scoring!R$14*Sensitivity!$D$8 -> 0 | S14: =Scoring!S$14*Sensitivity!$D$8 -> 0 | T14: =Scoring!T$14*Sensitivity!$D$8 -> 0 | U14: =Scoring!U$14*Sensitivity!$D$8 -> 0 | V14: =Scoring!V$14*Sensitivity!$D$8 -> 0 | W14: =Scoring!W$14*Sensitivity!$D$8 -> 0 | X14: =Scoring!X$14*Sensitivity!$D$8 -> 0 | Y14: =Scoring!Y$14*Sensitivity!$D$8 -> 0
B15: ='Targeted indicators'!B19 -> Flood behaviour/impact | C15: ='Targeted indicators'!C19 -> Flood impacts | D15: =IF(B15="","",VLOOKUP(B15,'MCA criteria weighting'!$D$7:$M$36,10,FALSE)) -> 0.1666666667 | E15: 3 | F15: =Scoring!F$15*Sensitivity!$D$9 -> 0 | G15: =Scoring!G$15*Sensitivity!$D$9 -> 0 | H15: =Scoring!H$15*Sensitivity!$D$9 -> 0 | I15: =Scoring!I$15*Sensitivity!$D$9 -> 0 | J15: =Scoring!J$15*Sensitivity!$D$9 -> 0 | K15: =Scoring!K$15*Sensitivity!$D$9 -> 0 | L15: =Scoring!L$15*Sensitivity!$D$9 -> 0 | M15: =Scoring!M$15*Sensitivity!$D$9 -> 0 | N15: =Scoring!N$15*Sensitivity!$D$9 -> 0 | O15: =Scoring!O$15*Sensitivity!$D$9 -> 0 | P15: =Scoring!P$15*Sensitivity!$D$9 -> 0 | Q15: =Scoring!Q$15*Sensitivity!$D$9 -> 0 | R15: =Scoring!R$15*Sensitivity!$D$9 -> 0 | S15: =Scoring!S$15*Sensitivity!$D$9 -> 0 | T15: =Scoring!T$15*Sensitivity!$D$9 -> 0 | U15: =Scoring!U$15*Sensitivity!$D$9 -> 0 | V15: =Scoring!V$15*Sensitivity!$D$9 -> 0 | W15: =Scoring!W$15*Sensitivity!$D$9 -> 0 | X15: =Scoring!X$15*Sensitivity!$D$9 -> 0 | Y15: =Scoring!Y$15*Sensitivity!$D$9 -> 0
B16: ='Targeted indicators'!B20 -> Additional constraints | C16: ='Targeted indicators'!C20 -> Engineering/construction constraints | D16: =IF(B16="","",VLOOKUP(B16,'MCA criteria weighting'!$D$7:$M$36,10,FALSE)) -> 0.1666666667 | E16: 3 | F16: =Scoring!F$16*Sensitivity!$D$10 -> 0 | G16: =Scoring!G$16*Sensitivity!$D$10 -> 0 | H16: =Scoring!H$16*Sensitivity!$D$10 -> 0 | I16: =Scoring!I$16*Sensitivity!$D$10 -> 0 | J16: =Scoring!J$16*Sensitivity!$D$10 -> 0 | K16: =Scoring!K$16*Sensitivity!$D$10 -> 0 | L16: =Scoring!L$16*Sensitivity!$D$10 -> 0 | M16: =Scoring!M$16*Sensitivity!$D$10 -> 0 | N16: =Scoring!N$16*Sensitivity!$D$10 -> 0 | O16: =Scoring!O$16*Sensitivity!$D$10 -> 0 | P16: =Scoring!P$16*Sensitivity!$D$10 -> 0 | Q16: =Scoring!Q$16*Sensitivity!$D$10 -> 0 | R16: =Scoring!R$16*Sensitivity!$D$10 -> 0 | S16: =Scoring!S$16*Sensitivity!$D$10 -> 0 | T16: =Scoring!T$16*Sensitivity!$D$10 -> 0 | U16: =Scoring!U$16*Sensitivity!$D$10 -> 0 | V16: =Scoring!V$16*Sensitivity!$D$10 -> 0 | W16: =Scoring!W$16*Sensitivity!$D$10 -> 0 | X16: =Scoring!X$16*Sensitivity!$D$10 -> 0 | Y16: =Scoring!Y$16*Sensitivity!$D$10 -> 0
C17: Total | D17: =IF(B17="","",VLOOKUP(C17,'MCA criteria weighting'!D29:M48,24,FALSE)) ->  | E17: =IF($C17="","",3) -> 3 | F17: =ROUND(SUM(F$5:F$16),2) -> 0 | G17: 0 | H17: 0 | I17: 0 | J17: 0 | K17: 0 | L17: =ROUND(SUM(L$5:L$16),2) -> 0 | M17: =ROUND(SUM(M$5:M$16),2) -> 0 | N17: 0 | O17: 0 | P17: 0 | Q17: 0 | R17: 0 | S17: 0 | T17: 0 | U17: 0 | V17: 0 | W17: 0 | X17: 0 | Y17: 0
C18: Rank | D18: =IF(B18="","",VLOOKUP(C18,'MCA criteria weighting'!D30:M49,24,FALSE)) ->  | E18: 3 | F18: =IF(F$17<>0,RANK(F$17,$F$17:$Y$17,0),"") ->  | G18: =IF(G$17<>0,RANK(G$17,$F$17:$Y$17,0),"") -> 
D19: =IF(B19="","",VLOOKUP(C19,'MCA criteria weighting'!D31:M50,24,FALSE)) -> 
D20: =IF(B20="","",VLOOKUP(C20,'MCA criteria weighting'!D32:M51,24,FALSE)) -> 
D21: =IF(B21="","",VLOOKUP(C21,'MCA criteria weighting'!D33:M52,24,FALSE)) -> 
D22: =IF(B22="","",VLOOKUP(C22,'MCA criteria weighting'!D34:M53,24,FALSE)) -> 
D23: =IF(B23="","",VLOOKUP(C23,'MCA criteria weighting'!D35:M54,24,FALSE)) -> 
D24: =IF(B24="","",VLOOKUP(C24,'MCA criteria weighting'!D36:M55,24,FALSE)) -> 
D25: =IF(B25="","",VLOOKUP(C25,'MCA criteria weighting'!D37:M56,24,FALSE)) -> 
D26: =IF(B26="","",VLOOKUP(C26,'MCA criteria weighting'!D38:M57,24,FALSE)) -> 
D27: =IF(B27="","",VLOOKUP(C27,'MCA criteria weighting'!D39:M58,24,FALSE)) -> 
D28: =IF(B28="","",VLOOKUP(C28,'MCA criteria weighting'!D40:M59,24,FALSE)) -> 
D29: =IF(B29="","",VLOOKUP(C29,'MCA criteria weighting'!D41:M60,24,FALSE)) -> 
D30: =IF(B30="","",VLOOKUP(C30,'MCA criteria weighting'!D42:M61,24,FALSE)) -> 
D31: =IF(B31="","",VLOOKUP(C31,'MCA criteria weighting'!D43:M62,24,FALSE)) -> 

Sheet General Calc (hidden)
A1: General Calculations and Lists
B4: Pairwise List | C4: Yes/ No List | D4: Grading List | E4: Grading List | G4: Weighting Summary Table | J4: Criterion | K4: Pairwise Comparison | L4: Adjusted Weighting | P4: Difference in Weighting
B5: A | C5: Yes | D5: Indicator Met | E5: Cost is practical | G5: Criterion | H5: Pairwise Comparison | L5: -0.5 | M5: -0.25 | N5: 0.25 | O5: 0.5 | P5: -0.5 | Q5: -0.25 | R5: 0.25 | S5: 0.5
B6: B | C6: No | D6: Not met | E6: Cost is not practical | G6: =IF(INDEX('MCA criteria weighting'!$D$7:$D$12,ROWS($G$6:$G6))=0,"",INDEX('MCA criteria weighting'!$D$7:$D$12,ROWS($G$6:$G6))) -> Safety | H6: =IF($G6="","",INDEX('MCA criteria weighting'!$M$7:$M$12,MATCH($G6,'MCA criteria weighting'!$D$7:$D$12,0))) -> 0.1666666667 | J6: =IF(INDEX('MCA criteria weighting'!$D$7:$D$12,ROWS($J$6:$J6))=0,"",INDEX('MCA criteria weighting'!$D$7:$D$12,ROWS($J$6:$J6))) -> Safety | K6: =IF($J6="","",INDEX($H$6:$H$25,MATCH($G28,$G$6:$G$25,0),MATCH($K$4,$H$5:$H$5,0))) -> 0.1666666667 | L6: =IF($J6="","",$K6*(1+L$5)) -> 0.08333333333 | M6: 0.125 | N6: 0.2083333333 | O6: 0.25 | P6: =IF($J6="","",L6-$K6) -> -0.08333333333 | Q6: =IF($J6="","",M6-$K6) -> -0.04166666667 | R6: 0.04166666667 | S6: 0.08333333333
B7: C | D7: More information | E7: More information | G7: =IF(INDEX('MCA criteria weighting'!$D$7:$D$12,ROWS($G$6:$G7))=0,"",INDEX('MCA criteria weighting'!$D$7:$D$12,ROWS($G$6:$G7))) -> Economic | H7: =IF($G7="","",INDEX('MCA criteria weighting'!$M$7:$M$12,MATCH($G7,'MCA criteria weighting'!$D$7:$D$12,0))) -> 0.1666666667 | J7: =IF(INDEX('MCA criteria weighting'!$D$7:$D$12,ROWS($J$6:$J7))=0,"",INDEX('MCA criteria weighting'!$D$7:$D$12,ROWS($J$6:$J7))) -> Economic | K7: 0.1666666667 | L7: 0.08333333333 | M7: 0.125 | N7: 0.2083333333 | O7: 0.25 | P7: =IF($J7="","",L7-$K7) -> -0.08333333333 | Q7: =IF($J7="","",M7-$K7) -> -0.04166666667 | R7: =IF($J7="","",N7-$K7) -> 0.04166666667 | S7: =IF($J7="","",O7-$K7) -> 0.08333333333
B8: D | D8: Select | E8: Select | G8: =IF(INDEX('MCA criteria weighting'!$D$7:$D$12,ROWS($G$6:$G8))=0,"",INDEX('MCA criteria weighting'!$D$7:$D$12,ROWS($G$6:$G8))) -> Environmental and cultural heritage impact | H8: =IF($G8="","",INDEX('MCA criteria weighting'!$M$7:$M$12,MATCH($G8,'MCA criteria weighting'!$D$7:$D$12,0))) -> 0.1666666667 | J8: =IF(INDEX('MCA criteria weighting'!$D$7:$D$12,ROWS($J$6:$J8))=0,"",INDEX('MCA criteria weighting'!$D$7:$D$12,ROWS($J$6:$J8))) -> Environmental and cultural heritage impact | K8: 0.1666666667 | L8: 0.08333333333 | M8: 0.125 | N8: 0.2083333333 | O8: 0.25 | P8: -0.08333333333 | Q8: -0.04166666667 | R8: 0.04166666667 | S8: 0.08333333333
B9: E | G9: =IF(INDEX('MCA criteria weighting'!$D$7:$D$12,ROWS($G$6:$G9))=0,"",INDEX('MCA criteria weighting'!$D$7:$D$12,ROWS($G$6:$G9))) -> Social | H9: =IF($G9="","",INDEX('MCA criteria weighting'!$M$7:$M$12,MATCH($G9,'MCA criteria weighting'!$D$7:$D$12,0))) -> 0.1666666667 | J9: =IF(INDEX('MCA criteria weighting'!$D$7:$D$12,ROWS($J$6:$J9))=0,"",INDEX('MCA criteria weighting'!$D$7:$D$12,ROWS($J$6:$J9))) -> Social | K9: 0.1666666667 | L9: 0.08333333333 | M9: 0.125 | N9: 0.2083333333 | O9: 0.25 | P9: -0.08333333333 | Q9: -0.04166666667 | R9: 0.04166666667 | S9: 0.08333333333
B10: F | G10: =IF(INDEX('MCA criteria weighting'!$D$7:$D$12,ROWS($G$6:$G10))=0,"",INDEX('MCA criteria weighting'!$D$7:$D$12,ROWS($G$6:$G10))) -> Flood behaviour/impact | H10: =IF($G10="","",INDEX('MCA criteria weighting'!$M$7:$M$12,MATCH($G10,'MCA criteria weighting'!$D$7:$D$12,0))) -> 0.1666666667 | J10: =IF(INDEX('MCA criteria weighting'!$D$7:$D$12,ROWS($J$6:$J10))=0,"",INDEX('MCA criteria weighting'!$D$7:$D$12,ROWS($J$6:$J10))) -> Flood behaviour/impact | K10: 0.1666666667 | L10: 0.08333333333 | M10: 0.125 | N10: 0.2083333333 | O10: 0.25 | P10: -0.08333333333 | Q10: -0.04166666667 | R10: 0.04166666667 | S10: 0.08333333333
B11: G | C11: Eliminate option | G11: =IF(INDEX('MCA criteria weighting'!$D$7:$D$12,ROWS($G$6:$G11))=0,"",INDEX('MCA criteria weighting'!$D$7:$D$12,ROWS($G$6:$G11))) -> Additional constraints | H11: =IF($G11="","",INDEX('MCA criteria weighting'!$M$7:$M$12,MATCH($G11,'MCA criteria weighting'!$D$7:$D$12,0))) -> 0.1666666667 | J11: =IF(INDEX('MCA criteria weighting'!$D$7:$D$12,ROWS($J$6:$J11))=0,"",INDEX('MCA criteria weighting'!$D$7:$D$12,ROWS($J$6:$J11))) -> Additional constraints | K11: 0.1666666667 | L11: 0.08333333333 | M11: 0.125 | N11: 0.2083333333 | O11: 0.25 | P11: -0.08333333333 | Q11: -0.04166666667 | R11: 0.04166666667 | S11: 0.08333333333
B12: H | C12: Progress to MCA
B13: I | C13: Redefine Option
B14: J | C14: Collect further information
B15: K | C15: Select
B16: L
B17: M
B18: N
B19: O
B20: P
B21: Q
B22: R
B23: S
B24: T
B26: Ranks | C26: Ranks Remaining
B27: 1 | C27: 1 | D27: 1 | G27: -0.5 | H27: Pairwise Comparison | I27: =IF(INDEX('MCA criteria weighting'!$D$7:$D$12,COLUMNS($I$27:I$27))=0,"",INDEX('MCA criteria weighting'!$D$7:$D$12,COLUMNS($I$27:I$27))) -> Safety | J27: =IF(INDEX('MCA criteria weighting'!$D$7:$D$12,COLUMNS($I$27:J$27))=0,"",INDEX('MCA criteria weighting'!$D$7:$D$12,COLUMNS($I$27:J$27))) -> Economic | K27: =IF(INDEX('MCA criteria weighting'!$D$7:$D$12,COLUMNS($I$27:K$27))=0,"",INDEX('MCA criteria weighting'!$D$7:$D$12,COLUMNS($I$27:K$27))) -> Environmental and cultural heritage impact | L27: =IF(INDEX('MCA criteria weighting'!$D$7:$D$12,COLUMNS($I$27:L$27))=0,"",INDEX('MCA criteria weighting'!$D$7:$D$12,COLUMNS($I$27:L$27))) -> Social | M27: =IF(INDEX('MCA criteria weighting'!$D$7:$D$12,COLUMNS($I$27:M$27))=0,"",INDEX('MCA criteria weighting'!$D$7:$D$12,COLUMNS($I$27:M$27))) -> Flood behaviour/impact | N27: =IF(INDEX('MCA criteria weighting'!$D$7:$D$12,COLUMNS($I$27:N$27))=0,"",INDEX('MCA criteria weighting'!$D$7:$D$12,COLUMNS($I$27:N$27))) -> Additional constraints
B28: 2 | C28: 2 | D28: 2 | F28: -0.5 | G28: =IF(INDEX('MCA criteria weighting'!$D$7:$D$12,ROWS($G$28:$G28))=0,"",INDEX('MCA criteria weighting'!$D$7:$D$12,ROWS($G$28:$G28))) -> Safety | H28: =IF($G28="","",INDEX($H$6:$H$25,MATCH($G28,$G$6:$G$25,0),MATCH($H$27,$H$5:$H$5,0))) -> 0.1666666667 | I28: =IF(OR($G28="",I$27=""),"",IF($G28=I$27,INDEX($L$6:$O$25,MATCH(I$27,$J$6:$J$25,0),MATCH($F$28,$L$5:$O$5,0)),$H28-($H28/(1-INDEX($H$6:$H$25,MATCH(I$27,$G$6:$G$25,0),MATCH($H$27,$H$5:$H$5,0))))*INDEX($P$6:$S$25,MATCH(I$27,$J$6:$J$25,0),MATCH($F$28,$P$5:$S$5,0)))) -> 0.08333333333 | J28: =IF(OR($G28="",J$27=""),"",IF($G28=J$27,INDEX($L$6:$O$25,MATCH(J$27,$J$6:$J$25,0),MATCH($F$28,$L$5:$O$5,0)),$H28-($H28/(1-INDEX($H$6:$H$25,MATCH(J$27,$G$6:$G$25,0),MATCH($H$27,$H$5:$H$5,0))))*INDEX($P$6:$S$25,MATCH(J$27,$J$6:$J$25,0),MATCH($F$28,$P$5:$S$5,0)))) -> 0.1833333333 | K28: 0.1833333333 | L28: 0.1833333333 | M28: 0.1833333333 | N28: 0.1833333333
B29: 3 | C29: 3 | D29: 3 | F29: -0.5 | G29: =IF(INDEX('MCA criteria weighting'!$D$7:$D$12,ROWS($G$28:$G29))=0,"",INDEX('MCA criteria weighting'!$D$7:$D$12,ROWS($G$28:$G29))) -> Economic | H29: 0.1666666667 | I29: =IF(OR($G29="",I$27=""),"",IF($G29=I$27,INDEX($L$6:$O$25,MATCH(I$27,$J$6:$J$25,0),MATCH($F$28,$L$5:$O$5,0)),$H29-($H29/(1-INDEX($H$6:$H$25,MATCH(I$27,$G$6:$G$25,0),MATCH($H$27,$H$5:$H$5,0))))*INDEX($P$6:$S$25,MATCH(I$27,$J$6:$J$25,0),MATCH($F$28,$P$5:$S$5,0)))) -> 0.1833333333 | J29: 0.08333333333 | K29: 0.1833333333 | L29: 0.1833333333 | M29: 0.1833333333 | N29: 0.1833333333
B30: 4 | C30: 4 | D30: 4 | F30: -0.5 | G30: =IF(INDEX('MCA criteria weighting'!$D$7:$D$12,ROWS($G$28:$G30))=0,"",INDEX('MCA criteria weighting'!$D$7:$D$12,ROWS($G$28:$G30))) -> Environmental and cultural heritage impact | H30: 0.1666666667 | I30: 0.1833333333 | J30: 0.1833333333 | K30: 0.08333333333 | L30: 0.1833333333 | M30: 0.1833333333 | N30: 0.1833333333
B31: 5 | C31: 5 | D31: 5 | F31: -0.5 | G31: =IF(INDEX('MCA criteria weighting'!$D$7:$D$12,ROWS($G$28:$G31))=0,"",INDEX('MCA criteria weighting'!$D$7:$D$12,ROWS($G$28:$G31))) -> Social | H31: 0.1666666667 | I31: 0.1833333333 | J31: 0.1833333333 | K31: 0.1833333333 | L31: 0.08333333333 | M31: 0.1833333333 | N31: 0.1833333333
B32: 6 | F32: -0.5 | G32: =IF(INDEX('MCA criteria weighting'!$D$7:$D$12,ROWS($G$28:$G32))=0,"",INDEX('MCA criteria weighting'!$D$7:$D$12,ROWS($G$28:$G32))) -> Flood behaviour/impact | H32: 0.1666666667 | I32: 0.1833333333 | J32: 0.1833333333 | K32: 0.1833333333 | L32: 0.1833333333 | M32: 0.08333333333 | N32: 0.1833333333
B33: 7 | F33: -0.5 | G33: =IF(INDEX('MCA criteria weighting'!$D$7:$D$12,ROWS($G$28:$G33))=0,"",INDEX('MCA criteria weighting'!$D$7:$D$12,ROWS($G$28:$G33))) -> Additional constraints | H33: 0.1666666667 | I33: 0.1833333333 | J33: 0.1833333333 | K33: 0.1833333333 | L33: 0.1833333333 | M33: 0.1833333333 | N33: 0.08333333333
B34: 8 | F34: -0.25 | G34: =IF(INDEX('MCA criteria weighting'!$D$7:$D$12,ROWS($G$34:$G34))=0,"",INDEX('MCA criteria weighting'!$D$7:$D$12,ROWS($G$34:$G34))) -> Safety | H34: =IF($G34="","",INDEX($H$6:$H$25,MATCH($G34,$G$6:$G$25,0),MATCH($H$27,$H$5:$H$5,0))) -> 0.1666666667 | I34: =IF(OR($G34="",I$27=""),"",IF($G34=I$27,INDEX($L$6:$O$25,MATCH(I$27,$J$6:$J$25,0),MATCH($F$34,$L$5:$O$5,0)),$H34-($H34/(1-INDEX($H$6:$H$25,MATCH(I$27,$G$6:$G$25,0),MATCH($H$27,$H$5:$H$5,0))))*INDEX($P$6:$S$25,MATCH(I$27,$J$6:$J$25,0),MATCH($F$34,$P$5:$S$5,0)))) -> 0.125 | J34: 0.175 | K34: 0.175 | L34: 0.175 | M34: 0.175 | N34: 0.175
B35: 9 | F35: -0.25 | G35: =IF(INDEX('MCA criteria weighting'!$D$7:$D$12,ROWS($G$34:$G35))=0,"",INDEX('MCA criteria weighting'!$D$7:$D$12,ROWS($G$34:$G35))) -> Economic | H35: =IF($G35="","",INDEX($H$6:$H$25,MATCH($G35,$G$6:$G$25,0),MATCH($H$27,$H$5:$H$5,0))) -> 0.1666666667 | I35: 0.175 | J35: 0.125 | K35: 0.175 | L35: 0.175 | M35: 0.175 | N35: 0.175
B36: 10 | F36: -0.25 | G36: =IF(INDEX('MCA criteria weighting'!$D$7:$D$12,ROWS($G$34:$G36))=0,"",INDEX('MCA criteria weighting'!$D$7:$D$12,ROWS($G$34:$G36))) -> Environmental and cultural heritage impact | H36: 0.1666666667 | I36: 0.175 | J36: 0.175 | K36: 0.125 | L36: 0.175 | M36: 0.175 | N36: 0.175
B37: 11 | F37: -0.25 | G37: =IF(INDEX('MCA criteria weighting'!$D$7:$D$12,ROWS($G$34:$G37))=0,"",INDEX('MCA criteria weighting'!$D$7:$D$12,ROWS($G$34:$G37))) -> Social | H37: 0.1666666667 | I37: 0.175 | J37: 0.175 | K37: 0.175 | L37: 0.125 | M37: 0.175 | N37: 0.175
B38: 12 | F38: -0.25 | G38: =IF(INDEX('MCA criteria weighting'!$D$7:$D$12,ROWS($G$34:$G38))=0,"",INDEX('MCA criteria weighting'!$D$7:$D$12,ROWS($G$34:$G38))) -> Flood behaviour/impact | H38: 0.1666666667 | I38: 0.175 | J38: 0.175 | K38: 0.175 | L38: 0.175 | M38: 0.125 | N38: 0.175
B39: 13 | F39: -0.25 | G39: =IF(INDEX('MCA criteria weighting'!$D$7:$D$12,ROWS($G$34:$G39))=0,"",INDEX('MCA criteria weighting'!$D$7:$D$12,ROWS($G$34:$G39))) -> Additional constraints | H39: 0.1666666667 | I39: 0.175 | J39: 0.175 | K39: 0.175 | L39: 0.175 | M39: 0.175 | N39: 0.125
B40: 14 | F40: 0.25 | G40: =IF(INDEX('MCA criteria weighting'!$D$7:$D$12,ROWS($G$40:$G40))=0,"",INDEX('MCA criteria weighting'!$D$7:$D$12,ROWS($G$40:$G40))) -> Safety | H40: =IF($G40="","",INDEX($H$6:$H$25,MATCH($G40,$G$6:$G$25,0),MATCH($H$27,$H$5:$H$5,0))) -> 0.1666666667 | I40: =IF(OR($G40="",I$27=""),"",IF($G40=I$27,INDEX($L$6:$O$25,MATCH(I$27,$J$6:$J$25,0),MATCH($F$40,$L$5:$O$5,0)),$H40-($H40/(1-INDEX($H$6:$H$25,MATCH(I$27,$G$6:$G$25,0),MATCH($H$27,$H$5:$H$5,0))))*INDEX($P$6:$S$25,MATCH(I$27,$J$6:$J$25,0),MATCH($F$40,$P$5:$S$5,0)))) -> 0.2083333333 | J40: 0.1583333333 | K40: 0.1583333333 | L40: 0.1583333333 | M40: 0.1583333333 | N40: 0.1583333333
B41: 15 | F41: 0.25 | G41: =IF(INDEX('MCA criteria weighting'!$D$7:$D$12,ROWS($G$40:$G41))=0,"",INDEX('MCA criteria weighting'!$D$7:$D$12,ROWS($G$40:$G41))) -> Economic | H41: =IF($G41="","",INDEX($H$6:$H$25,MATCH($G41,$G$6:$G$25,0),MATCH($H$27,$H$5:$H$5,0))) -> 0.1666666667 | I41: 0.1583333333 | J41: 0.2083333333 | K41: 0.1583333333 | L41: 0.1583333333 | M41: 0.1583333333 | N41: 0.1583333333
B42: 16 | F42: 0.25 | G42: =IF(INDEX('MCA criteria weighting'!$D$7:$D$12,ROWS($G$40:$G42))=0,"",INDEX('MCA criteria weighting'!$D$7:$D$12,ROWS($G$40:$G42))) -> Environmental and cultural heritage impact | H42: 0.1666666667 | I42: 0.1583333333 | J42: 0.1583333333 | K42: 0.2083333333 | L42: 0.1583333333 | M42: 0.1583333333 | N42: 0.1583333333
B43: 17 | F43: 0.25 | G43: =IF(INDEX('MCA criteria weighting'!$D$7:$D$12,ROWS($G$40:$G43))=0,"",INDEX('MCA criteria weighting'!$D$7:$D$12,ROWS($G$40:$G43))) -> Social | H43: 0.1666666667 | I43: 0.1583333333 | J43: 0.1583333333 | K43: 0.1583333333 | L43: 0.2083333333 | M43: 0.1583333333 | N43: 0.1583333333
B44: 18 | F44: 0.25 | G44: =IF(INDEX('MCA criteria weighting'!$D$7:$D$12,ROWS($G$40:$G44))=0,"",INDEX('MCA criteria weighting'!$D$7:$D$12,ROWS($G$40:$G44))) -> Flood behaviour/impact | H44: 0.1666666667 | I44: 0.1583333333 | J44: 0.1583333333 | K44: 0.1583333333 | L44: 0.1583333333 | M44: 0.2083333333 | N44: 0.1583333333
B45: 19 | F45: 0.25 | G45: =IF(INDEX('MCA criteria weighting'!$D$7:$D$12,ROWS($G$40:$G45))=0,"",INDEX('MCA criteria weighting'!$D$7:$D$12,ROWS($G$40:$G45))) -> Additional constraints | H45: 0.1666666667 | I45: 0.1583333333 | J45: 0.1583333333 | K45: 0.1583333333 | L45: 0.1583333333 | M45: 0.1583333333 | N45: 0.2083333333
B46: 20 | F46: 0.5 | G46: =IF(INDEX('MCA criteria weighting'!$D$7:$D$12,ROWS($G$46:$G46))=0,"",INDEX('MCA criteria weighting'!$D$7:$D$12,ROWS($G$46:$G46))) -> Safety | H46: =IF($G46="","",INDEX($H$6:$H$25,MATCH($G46,$G$6:$G$25,0),MATCH($H$27,$H$5:$H$5,0))) -> 0.1666666667 | I46: =IF(OR($G46="",I$27=""),"",IF($G46=I$27,INDEX($L$6:$O$25,MATCH(I$27,$J$6:$J$25,0),MATCH($F$46,$L$5:$O$5,0)),$H46-($H46/(1-INDEX($H$6:$H$25,MATCH(I$27,$G$6:$G$25,0),MATCH($H$27,$H$5:$H$5,0))))*INDEX($P$6:$S$25,MATCH(I$27,$J$6:$J$25,0),MATCH($F$46,$P$5:$S$5,0)))) -> 0.25 | J46: 0.15 | K46: 0.15 | L46: 0.15 | M46: 0.15 | N46: 0.15
F47: 0.5 | G47: =IF(INDEX('MCA criteria weighting'!$D$7:$D$12,ROWS($G$46:$G47))=0,"",INDEX('MCA criteria weighting'!$D$7:$D$12,ROWS($G$46:$G47))) -> Economic | H47: =IF($G47="","",INDEX($H$6:$H$25,MATCH($G47,$G$6:$G$25,0),MATCH($H$27,$H$5:$H$5,0))) -> 0.1666666667 | I47: 0.15 | J47: 0.25 | K47: 0.15 | L47: 0.15 | M47: 0.15 | N47: 0.15
F48: 0.5 | G48: =IF(INDEX('MCA criteria weighting'!$D$7:$D$12,ROWS($G$46:$G48))=0,"",INDEX('MCA criteria weighting'!$D$7:$D$12,ROWS($G$46:$G48))) -> Environmental and cultural heritage impact | H48: 0.1666666667 | I48: 0.15 | J48: 0.15 | K48: 0.25 | L48: 0.15 | M48: 0.15 | N48: 0.15
F49: 0.5 | G49: =IF(INDEX('MCA criteria weighting'!$D$7:$D$12,ROWS($G$46:$G49))=0,"",INDEX('MCA criteria weighting'!$D$7:$D$12,ROWS($G$46:$G49))) -> Social | H49: 0.1666666667 | I49: 0.15 | J49: 0.15 | K49: 0.15 | L49: 0.25 | M49: 0.15 | N49: 0.15
F50: 0.5 | G50: =IF(INDEX('MCA criteria weighting'!$D$7:$D$12,ROWS($G$46:$G50))=0,"",INDEX('MCA criteria weighting'!$D$7:$D$12,ROWS($G$46:$G50))) -> Flood behaviour/impact | H50: 0.1666666667 | I50: 0.15 | J50: 0.15 | K50: 0.15 | L50: 0.15 | M50: 0.25 | N50: 0.15
F51: 0.5 | G51: =IF(INDEX('MCA criteria weighting'!$D$7:$D$12,ROWS($G$46:$G51))=0,"",INDEX('MCA criteria weighting'!$D$7:$D$12,ROWS($G$46:$G51))) -> Additional constraints | H51: 0.1666666667 | I51: 0.15 | J51: 0.15 | K51: 0.15 | L51: 0.15 | M51: 0.15 | N51: 0.25
